Workbook

Sheet Infos
A1: Présentation du générateur de codes d'éco-participation 2025
A5: Générer des codes Ecomaison
B6: Version 11.2 - 07 octobre 2024 - Valable pour les produits mis en marché à partir du 1er janvier 2025
B7: Mise à jour des tarifs écomodulés
B8: Ajout des codes Sièges non rembourrés et rembourrés en tant que type de produit à part entière Ajout des codes pour les tranches de poids inférieures à 500g Suppression des codes inertes et des tranches de poids supérieures à 300kg. Compatibilité Excel 2013 Mise en place du générateur en lignes Ajout de la feuille sur les perturbateurs de recyclage Correction du tarif pour le code produit Siège avec rembourrage
B10: A qui s’adresse cet outil ?
B11: Cet outil s'adresse aux metteurs sur le marché de mobilier, d'objets et d'éléments d'ameublement, d'agencement et de décoration textile.
B13: A quoi ça sert ?
B14: Les codes produits Ecomaison évoluent et intègrent les éco-modulations ! Ce fichier vous permet de générer les codes produits qui vous serviront au moment de la déclaration de l’éco-participation des mises en marché auprès d’Ecomaison à partir du 1er Janvier 2025. Ces codes produits permettent de classer le mobilier, les objets et les éléments d'ameublement et d'agencement, et les éléments de décoration textile en fonction de leurs caractéristiques (celles demandées réglementairement par l’ADEME, et celles nécessaires à la facturation de l'éco-participation).
B16: Comment est constitué un code produit ?
B17: Pour comprendre comment est constitué ce code produit à 11 chiffres, cliquez sur l’onglet « Comprendre la codification »
B19: Comment générer un code produit ?
B20: Pour générer un code produit cliquez sur l’onglet « Générateur code produit »
B21: Attention : Pour être certain de renseigner les bons codes lors de votre déclaration, utilisez l'onglet «Générateur code produit» et la fonction «copier-coller» en sélectionnant «collage spécial valeur absolue».
B23: Qu'est-ce qu'un code du "barème simplifié" ?
B24: Les codes "Petits Producteurs" ne s'adressent qu'aux sociétés mettant en marché moins de 1000 éléments d'ameublement par an et ne dépassant pas un total mis en marché de 15 tonnes.
B25: Ces codes correspondent à des lots de 10 produits "types". Chaque dizaine entamée est à déclarer.
B26: Ces codes sont à déclarer annuellement ou trimestriellement de manière analogue aux codes produits.
B29: Déclarer l’éco-participation
B31: Consultez toutes les informations pour effectuer votre déclaration d'éco-participation
B37: 0

Sheet Comprendre la codification
A1: Nomenclature des codes produits à 11 chiffres
A2: 0 | B2: Composition du code Ecomaison :
B8: Code catégorie | E8: Code type de produit | H8: Code matériau | K8: Code caractéristique | N8: 11ème chiffre
B10: 01 | C10: Meubles_de_salon_sejour_salle_a_manger | E10: 010 | F10: Cadre à lattes | H10: 00 | I10: Non connu | K10: 020 | L10: Compris entre 0,25 kg et 0,5 kg exclus | N10: 0 | O10: Non spécifié
B11: 02 | C11: Meubles_d_appoint | E11: 013 | F11: Sommier relaxation mécanique ou électrique | H11: 01 | I11: Bois, panneaux et dérivés de bois à plus de 50% en gestion durable certifiée | K11: 021 | L11: Compris entre 0,5 kg et 1 kg exclus | N11: 1 | O11: Evolutif
B12: 03 | C12: Meubles_de_chambre_a_coucher | E12: 017 | F12: Rangement (hors tabletterie) | H12: 02 | I12: Métal à plus de 50% | K12: 022 | L12: Compris entre 1 kg et 2 kg exclus
B13: 04 | C13: Literie_marché_domestique | E13: 018 | F13: Meubles ou éléments d'ameublement servant au couchage (cadre de lit…) (NB: hors matelas, sommiers et têtes de lit) | H13: 03 | I13: Bambou/Rotin certifié ou non à plus de 50% | K13: 023 | L13: Compris entre 2 kg et 5 kg exclus
B14: 14 | C14: Literie_marché_professionnel | E14: 019 | F14: Bureaux, tables… | H14: 04 | I14: Matériaux bio sourcés ou textiles non synthétiques à plus de 50% en gestion non certifiée | K14: 024 | L14: Compris entre 5 kg et 10 kg exclus
B15: 05 | C15: Meubles_de_bureau | E15: 020 | F15: Tabletterie, panneaux à la découpe (au poids) | H15: 05 | I15: Plastiques | K15: 025 | L15: Compris entre 10 kg et 20 kg exclus
B16: 06 | C16: Meubles_de_cuisine | E16: 021 | F16: Plans de pose et plans de travail | H16: 06 | I16: Matériaux bio sourcés ou textiles non synthétiques à plus de 50% en gestion durable certifiée | K16: 026 | L16: Compris entre 20 kg et 30 kg exclus
B17: 07 | C17: Meubles_de_salle_de_bains | E17: 022 | F17: Quincaillerie (poignées de tiroir, rails de tiroir…), accessoires de suspension, de rangement, de pose… | H17: 07 | I17: Verre et miroir | K17: 027 | L17: Compris entre 30 kg et 40 kg exclus
B18: 08 | C18: Meubles_de_jardin | E18: 023 | F18: Matelas gonflable | H18: 09 | I18: Mousse PU | K18: 028 | L18: Compris entre 40 kg et 60 kg exclus
B19: 09 | C19: Sieges | E19: 024 | F19: Lit-coffre | H19: 10 | I19: Mousse Latex | K19: 029 | L19: Compris entre 60 kg et 100 kg exclus
B20: 10 | C20: Mobilier_technique | E20: 025 | F20: Pieds de lit | H20: 11 | I20: Ressorts | K20: 030 | L20: Compris entre 100 kg et 150 kg exclus
B21: 11 | C21: Articles_rembourrés_assise_couchage | E21: 028 | F21: Surmatelas avec rembourrage de type non litier | H21: 12 | I21: Autres ou présence de perturbateurs | K21: 031 | L21: Compris entre 150 kg et 200 kg exclus
B22: 12 | C22: Articles_décoration_textile | E22: 029 | F22: Couette / Edredon | H22: 13 | I22: Rembourrage naturel non certifié ou non textile (plume…) | K22: 032 | L22: Compris entre 200 kg et 250 kg exclus
E23: 030 | F23: Sac de couchage | H23: 14 | I23: Rembourrage Synthétique (mousse, polyester…) | K23: 033 | L23: Compris entre 250 kg et 300 kg exclus
E24: 031 | F24: Oreiller / Traversin / Polochon | H24: 15 | I24: Composites et compact | K24: 034 | L24: Supérieur à 300 kg
E25: 032 | F25: Coussin, galette d'assise | H25: 16 | I25: Pierre artificielle | K25: 106 | L25: Compris entre 0,1 kg et 0,25 kg exclus
E26: 033 | F26: Autres articles rembourrés d’assise ou de couchage | H26: 17 | I26: Ciment, béton | K26: 107 | L26: Compris entre 0,25 kg et 0,5 kg exclus
E27: 034 | F27: Mobilier pour animaux | H27: 18 | I27: Céramique | K27: 108 | L27: Inférieur strictement à 0,1 kg
E28: 036 | F28: Housse de protection | H28: 19 | I28: Papier, carton à plus de 50% en gestion durable certifiée | K28: 097 | L28: de 0 à 60cm de longueur
E29: 038 | F29: Tablette (à la dimension) | H29: 20 | I29: Bois massif à plus de 75% en gestion durable certifiée | K29: 098 | L29: de 60 à 120cm de longueur
E30: 003 | F30: Siège 1 place pivotant ajustable en hauteur* | H30: 21 | I30: Bois massif à plus de 75% en gestion non certifiée | K30: 099 | L30: de 120 à 180cm de longueur
E31: 040 | F31: Siège sans structure 1 place* | H31: 22 | I31: Métal à plus de 75% | K31: 100 | L31: de 180 à 240cm de longueur
E32: 041 | F32: Siège sans structure 2 places* | H32: 23 | I32: OSB et métal à plus de 75% en gestion durable certifiée | K32: 101 | L32: plus de 240cm de longueur
E33: 042 | F33: Siège sans structure plus de 2 places* | H33: 24 | I33: Panneaux de particules et/ou bois et/ou métal à plus de 75% en gestion durable certifiée | K33: 010 | L33: Largeur <= 120 cm
E34: 043 | F34: Siège non convertible 1 place* | H34: 25 | I34: Panneaux de particules à plus de 75% en gestion durable certifiée | K34: 011 | L34: Largeur > 120 cm et <= 140 cm
E35: 044 | F35: Siège non convertible 2 places* | H35: 27 | I35: OSB à plus de 75% en gestion durable certifiée | K35: 013 | L35: Double / duo (ensemble composé de deux éléments unitairement ≤ 120 cm)
E36: 045 | F36: Siège non convertible plus de 2 places* | H36: 28 | I36: Métal à plus de 95% | K36: 094 | L36: de largeur > 140 cm et <= 160 cm
E37: 046 | F37: Siège convertible 1 place* | H37: 29 | I37: Panneaux de particules et/ou bois et/ou métal à plus de 75% en gestion non certifiée | K37: 095 | L37: de largeur > 160 cm et <= 180 cm
E38: 047 | F38: Siège convertible 2 places* | H38: 30 | I38: Panneaux de particules à plus de 75% en gestion non certifiée | K38: 096 | L38: de largeur > 180 cm
E39: 048 | F39: Siège convertible plus de 2 places* | H39: 31 | I39: OSB et métal à plus de 75% en gestion non certifiée | K39: 052 | L39: Compris entre 2 kg et 3 kg exclus
E40: 049 | F40: Siège articulé / électrique 1 place* | H40: 33 | I40: Bois, panneaux et dérivés de bois à plus de 50% en gestion non certifiée | K40: 053 | L40: Compris entre 3 kg et 5 kg exclus
E41: 050 | F41: Siège articulé / électrique 2 places* | H41: 34 | I41: Rembourrage textile naturel (laine…) issu de resssources renouvelables en gestion durable certifiée | K41: 054 | L41: Compris entre 5 kg et 7 kg exclus
E42: 051 | F42: Siège articulé / électrique plus de 2 places* | H42: 35 | I42: Latex biosourcé à plus de 50% issu de ressources renouvelables en gestion durable certifiée | K42: 055 | L42: Compris entre 7 kg et 10 kg exclus
E43: 052 | F43: Autre accessoire, partie de siège, support de hamac | H43: 37 | I43: Matériaux bio sourcés ou textiles non synthétiques à plus de 95% en gestion durable certifiée | K43: 056 | L43: Compris entre 10 kg et 15 kg exclus
E44: 053 | F44: Siège gonflable | H44: 38 | I44: Papier, carton à plus de 50% en gestion non certifiée | K44: 057 | L44: Compris entre 15 kg et 20 kg exclus
E45: 054 | F45: Siège avec rembourrage | H45: 40 | I45: Assemblage caoutchouc synthétique ou latex à plus de 50% avec d'autres matériaux | K45: 058 | L45: Compris entre 20 kg et 25 kg exclus
E46: 055 | F46: Siège sans rembourrage | H46: 41 | I46: Plastiques (mono résine) à plus de 95% | K46: 059 | L46: Compris entre 25 kg et 30 kg exclus
E47: 060 | F47: Matelas et surmatelas litier d'épaisseur ≤10cm | H47: 42 | I47: Polyterephtalate d'Ethylène (PET) à plus de 95% | K47: 060 | L47: Compris entre 40 kg et 50 kg exclus
E48: 061 | F48: Matelas et surmatelas litier d'épaisseur >10cm | H48: 45 | I48: PE ou PP ou mélange PP/PE à plus de 95% | K48: 061 | L48: Compris entre 50 kg et 60 kg exclus
E49: 062 | F49: Sommier (hors sommier relaxation et lit-coffre) | H49: 46 | I49: ABS à plus de 95% | K49: 062 | L49: Compris entre 60 kg et 70 kg exclus
E50: 070 | F50: Tapis de décoration | H50: 47 | I50: Polystyrène à plus de 95% | K50: 063 | L50: Compris entre 70 kg et 80 kg exclus
E51: 071 | F51: Tapis fonctionnel, paillassons | H51: 48 | I51: PVC à plus de 95% | K51: 064 | L51: Compris entre 80 kg et 90 kg exclus
E52: 072 | F52: Stores textiles intérieurs, rideaux, voilages | H52: 49 | I52: Caoutchouc synthétique à plus de à plus de 95% | K52: 065 | L52: Compris entre 90 kg et 100 kg exclus
E53: 073 | F53: Moquettes évènementielles | H53: 52 | I53: Bois massif à plus de 95% en gestion non certifiée | K53: 066 | L53: Compris entre 100 kg et 120 kg exclus
E54: 074 | F54: Autres petits éléments de décoration textile (macramés, guirlandes décoratives,...) | H54: 53 | I54: Bois massif à plus de 95% en gestion durable certifiée | K54: 067 | L54: Compris entre 120 kg et 150 kg exclus
E55: 075 | F55: Accessoires d'éléments de décoration textile (tringle,...) | H55: 55 | I55: Matériaux bio sourcés ou textiles non synthétiques à plus de 95% en gestion non certifiée | K55: 091 | L55: inférieur strictement à 1 kg
E56: 076 | F56: Cadres décoratifs muraux | H56: 60 | I56: OSB à plus de 75% en gestion non certifiée | K56: 092 | L56: Compris entre 1 et 3 kg exclus
E57: 077 | F57: Tête de lit | H57: 62 | I57: Dérivés de bois à plus de 95% en gestion durable certifiée | K57: 093 | L57: supérieur à 3 kg
E58: 078 | F58: Textile d'ameublement, laize <100cm | H58: 63 | I58: Dérivés de bois à plus de 95% en gestion non certifiée | K58: 909 | L58: m²
E59: 079 | F59: Textile d'ameublement, laize entre 100cm et 200cm inclus | H59: 64 | I59: Caoutchouc naturel à plus de 50% | K59: 102 | L59: épaisseur <=12 mm
E60: 080 | F60: Textile d'ameublement, laize >200cm | H60: 65 | I60: Matériaux ou fibres synthétiques à plus de 95% | K60: 103 | L60: épaisseur >12 mm et <=22 mm
E61: 081 | F61: Sommier et tête de lit | H61: 66 | I61: Textile et rembourrage en polyester à plus de 95% | K61: 104 | L61: épaisseur >22 mm
E62: 082 | F62: Caissons <1m de haut | H62: 67 | I62: Matériaux ou fibres synthétiques à plus de 50% | K62: 000 | L62: Non spécifié
E63: 083 | F63: Caissons >=1m de haut | H63: 68 | I63: Verre à plus de 95% | K63: 005 | L63: Lot de 2
E64: 084 | F64: Portes de placard | H64: 69 | I64: Miroir à plus de 95% | K64: 006 | L64: Lot de 4
E65: 085 | F65: Lattes de cadre à lattes | H65: 70 | I65: Assemblage verre à plus de 50% avec métal | K65: 901 | L65: de 0 à 60cm de longueur, largeur inférieure à 25cm
E66: 086 | F66: Panneau de Particules Surfacé Mélaminé (PPSM) | H66: 74 | I66: Béton à plus de 95% | K66: 902 | L66: de 60 à 120cm de longueur, largeur inférieure à 25cm
E67: 087 | F67: Feuille de stratifié HPL (High Pressurized Laminated) | H67: 82 | I67: Assemblage de 3 matériaux ou plus sans un matériau à plus de 50% | K67: 903 | L67: de plus de 120cm de longueur, largeur inférieure à 25cm
E68: 088 | F68: Panneau MDF (Medium Density Fiber), brut, laqué, mélaminé | H68: 84 | I68: Ardoise à plus de 95% | K68: 904 | L68: de 0 à 60cm de longueur, largeur supérieure à 25cm
E69: 089 | F69: Panneau bois massif et assimilé (triplis) | H69: 86 | I69: Pierre calcaire à plus de 95% | K69: 905 | L69: de 60 à 120cm de longueur, largeur supérieure à 25cm
H70: 91 | I70: Granit à plus de 95% | K70: 906 | L70: de plus de 120cm de longueur, largeur supérieure à 25cm
E71: * Valable en 2025, à recoder pour 2026. | H71: 97 | I71: Céramique à plus de 95% | K71: 908 | L71: Mètre linéaire (tissu)
H72: 98 | I72: Pierre artificielle à plus de 95% | K72: 012 | L72: Largeur > 140 cm
K73: 008 | L73: Largeur <= 205 cm
K74: 009 | L74: Largeur > 205 cm
K75: 014 | L75: Largeur <= 205 cm avec 1 oreiller
K76: 015 | L76: Largeur > 205 cm avec 2 oreillers
K77: 105 | L77: épaisseur < 6 mm

Sheet Perturbateurs_recyclage
B1: Liste des perturbateurs de recyclage
B2: Validée en OCABJ le 30 juillet 2024
B4: Description du perturbateur de tri et recyclage | C4: Conditions d’application
B5: Les matières inertes minérales (verre, miroir, ardoise, pierre, céramique, carrelage, marbre etc.) associées ou entrant dans la composition des éléments d’ameublement difficilement séparables avec des outils standards par l’utilisateur | C5: Tous les éléments d’ameublement sont concernés, quel que soit le matériau majoritaire recyclable
B6: Les composants électriques ou électroniques associés au matériau majoritaire recyclable des éléments d’ameublement difficilement séparables avec des outils standards par l’utilisateur | C6: Tous les éléments d’ameublement sont concernés, quel que soit le matériau majoritaire recyclable.
B7: La présence de substances chimiques perturbant le recyclage (telles que définies plus bas) dans la composition des éléments d’ameublement | C7: Tous les éléments d’ameublement sont concernés, quel que soit le matériau majoritaire
B8: Les mousses ou textiles associés de façon complexe au matériau majoritaire recyclable (couture, colle forte, ou tout autre association difficilement séparable lors des étapes de tri, démantelement ou préparation) dans un élément d’ameublement dont le matériau majoritaire serait recyclable sans la présence de cet assemblage | C8: Tous les éléments d’ameublement sont concernés, quel que soit le matériau majoritaire recyclable
B9: La présence de plus de 40% en masse de charges minérales dans un élément d’ameublement majoritairement composé de polypropylène et/ou polyéthylène | C9: La perturbation concerne uniquement les éléments d’ameublement majoritairement composés de polypropylène et/ou polyéthylène.
B10: L’utilisation de polymères réticulés ou tramés dans les éléments d’ameublement majoritairement composés de matières plastiques | C10: La perturbation concerne uniquement les éléments d’ameublement majoritairement composés de matières plastiques
B11: La présence de ressorts moulés dans la mousse d’un élément d’ameublement de type matelas | C11: La perturbation concerne uniquement les éléments d’ameublement de type matelas
B12: La présence de ressorts en plastique dans un élément d’ameublement de type matelas | C12: La perturbation concerne uniquement les éléments d’ameublement de type matelas
B16: Liste des « Substances chimiques perturbant le recyclage » :
B17: - La présence de substances dangereuses en quantité supérieure à 0,1% en masse au sens de l’article L541-9-1 du code de l’environnement1, et définies dans le Décret n° 2021-1285 du 1er octobre 2021 et l’Arrêté du 30 août 2023 relatifs à l'identification des substances dangereuses dans les produits générateurs de déchets.
B18: - La présence de substances soumises à restriction au titre de l’annexe XVII Règlement 1907/2006 du Parlement européen et du Conseil concernant l'enregistrement, l'évaluation et l'autorisation des substances chimiques, ainsi que les restrictions applicables à ces substances (REACH), en quantité supérieure à la limite fixée.
B19: - La présence de substances figurant sur la liste de l’annexe IV du règlement 2019/1021 du Parlement européen et du Conseil concernant les polluants organiques persistants.
B20: - La présence de substances susceptibles de classer le déchet comme dangereux au sens de la Directive 2008/98/ce du Parlement européen et du Conseil relative aux déchets, en quantité supérieure aux limites définies.
B22: Si l'un de vos produit contient un perturbateur de recyclage, il faut le coder avec le matériaux "Autres"

Sheet DEA - Code produit
A1: Générateur de code produit - Ameublement - Barème applicable à partir du 1er janvier 2025 | H1: MASQUER | I1: MASQUER | K1: =Infos!B6 -> Version 11.2 - 07 octobre 2024 - Valable pour les produits mis en marché à partir du 1er janvier 2025
A2: Sélectionner les éléments dans les cases vertes Penser à actionner le bouton "RESET" avant de faire une nouvelle génération. Le montant TTC de l’éco-participation est donné à titre indicatif ; le barème applicable est le barème HT.
G4: Code:
A6: 1 - Choisissez une catégorie : | G6: =IF(D6="","",VLOOKUP(D6,'Param masqué'!$B$3:$C$15,2,FALSE)) ->  | H6: =LEFT(A6,1)+0 -> 1 | I6: =I4&"_"&G6 -> _
A8: =H6+1&" - Choisissez une catégorie de produit : " -> 2 - Choisissez une catégorie de produit : | E8: _ | G8: =IF(D8="","",VLOOKUP(D8,'Param masqué'!$H:$I,2,FALSE)) ->  | H8: =LEFT(A8,1)+0 -> 2 | I8: =I4&"_"&G8 -> _
A11: =H8+1&" - Choisissez un matériau : " -> 3 - Choisissez un matériau : | G11: =IF(D11="","",VLOOKUP(D11,'Param masqué'!M:N,2,FALSE)) ->  | H11: =LEFT(A11,1)+0 -> 3 | I11: ="_"&I8 -> __
D12: =IF(COUNTIF('Param masqué'!$X$2:$X$14,'DEA - Code produit'!G11)>0,"Pensez à bien vérifier les conditions d'éligibilité au tarif Gestion Durable Certifiée !","") -> 
A13: =H11+1&" - Choisissez la caractéristique (ou la dimension) en fonction du type de produit : " -> 4 - Choisissez la caractéristique (ou la dimension) en fonction du type de produit : | G13: =IF(D13="","",VLOOKUP(D13,'Param masqué'!Q:R,2,FALSE)) ->  | H13: =LEFT(A13,1)+0 -> 4
A16: =H13+1&" - Le produit bénéficie-t-il d'une éco-modulation pour évolutivité ? " -> 5 - Le produit bénéficie-t-il d'une éco-modulation pour évolutivité ? | G16: =IF(D16="","",IF(D16="oui",1,0)) ->  | I16: =IF(COUNTIF('Param masqué'!$U$2:$U$10,$G$8)>0,1,0) -> 0
D17: =IF($G$16=1,"Attention, pensez à bien vérifier l'éligibilité de ce produit aux éco-modulations","") -> 
A19: D'où le code produit: | D19: =IF(OR(D16="",D13="",D11="",D8="",D6=""),"",CONCATENATE(G6,G8,G11,G13,G16)) -> 
D20: =IF(D19="","",VLOOKUP(D19,'Grille 2025 définitive'!I:J,2,FALSE)) -> 
A21: Le montant de l'éco-participation est
G22: et son code éco-participation associé :
A23: Vous pouvez le paramétrer le taux de TVA | C23: HT : | D23: =IFERROR(VLOOKUP('DEA - Code produit'!$D$19,'Grille 2025 définitive'!$I:$L,4,FALSE),"") ->  | F23: =IFERROR(VLOOKUP('DEA - Code produit'!$D$19,#REF!,7,FALSE),"") ->  | G23: =IFERROR(VLOOKUP(D19,'Grille 2025 définitive'!$I:$M,5,FALSE),"") -> 
B24: 0.2 | C24: TTC : | D24: =IF(D23="","",D23*(1+$B$24)) ->  | F24: =IFERROR(VLOOKUP('DEA - Code produit'!$D$19,#REF!,7,FALSE),"") -> 
D26: =IF($G$16=1,IF(D23<0.1,"La prime correspondante sera indiquée dans l’espace service après déclaration et validation de vos preuves.","Ce produit bénéficierait, sous réserve de validation, d'une écomodulation de "&ROUND(D23*10%,2)&F23&". Cette prime sera affichée sur votre espace adhérent."),"") -> 

Sheet Param masqué (hidden)
B1: Rayon | C1: Code Rayon | F1: _ | G1: Catégorie | H1: Type produit | I1: Code Produit | K1: Code Type de produit | L1: famille de matériaux | M1: Libellé Mat | N1: Code Matériau | P1: Code Type de produit | Q1: Libellé Carac | R1: Code Caractéristique | U1: Code Type de produit | V1: évolutivité | X1: Code Matériau | Y1: Libellé Mat | Z1: Certifié | AG1: Taux de TVA
F2: 01 | G2: =VLOOKUP(F2,$A$3:$B$15,2,FALSE) -> Meubles_de_salon_sejour_salle_a_manger | H2: Rangement (hors tabletterie) | I2: 017 | K2: 010 | L2: Métal | M2: Métal à plus de 50% | N2: 02 | P2: 010 | Q2: Largeur <= 120 cm | R2: 010 | U2: 017 | X2: 01 | Y2: Bois, panneaux et dérivés de bois à plus de 50% en gestion durable certifiée | AC2: Prix au poids | AE2: Oui | AG2: 0.085
A3: =C3 -> 01 | B3: Meubles_de_salon_sejour_salle_a_manger | C3: =_xlfn.XLOOKUP(B3,'Comprendre la codification'!$C$10:$C$22,'Comprendre la codification'!$B$10:$B$22,,FALSE) -> 01 | F3: 01 | G3: =VLOOKUP(F3,$A$3:$B$15,2,FALSE) -> Meubles_de_salon_sejour_salle_a_manger | H3: Bureaux, tables… | I3: 019 | K3: 010 | L3: Métal | M3: Métal à plus de 75% | N3: 22 | P3: 010 | Q3: Largeur > 120 cm et <= 140 cm | R3: 011 | U3: 018 | X3: 06 | Y3: Matériaux bio sourcés ou textiles non synthétiques à plus de 50% en gestion durable certifiée | AC3: Prix en fonction d'une autre unité fonctionelle | AE3: Non | AG3: 0.1
A4: =C4 -> 02 | B4: Meubles_d_appoint | C4: =_xlfn.XLOOKUP(B4,'Comprendre la codification'!$C$10:$C$22,'Comprendre la codification'!$B$10:$B$22,,FALSE) -> 02 | F4: 01 | G4: Meubles_de_salon_sejour_salle_a_manger | H4: Tabletterie, panneaux à la découpe (au poids) | I4: 020 | K4: 010 | L4: Métal | M4: Métal à plus de 95% | N4: 28 | P4: 010 | Q4: Double / duo (ensemble composé de deux éléments unitairement ≤ 120 cm) | R4: 013 | U4: 019 | X4: 19 | Y4: Papier, carton à plus de 50% en gestion durable certifiée | AG4: 0.2
A5: 03 | B5: Meubles_de_chambre_a_coucher | C5: =_xlfn.XLOOKUP(B5,'Comprendre la codification'!$C$10:$C$22,'Comprendre la codification'!$B$10:$B$22,,FALSE) -> 03 | F5: 01 | G5: Meubles_de_salon_sejour_salle_a_manger | H5: Plans de pose et plans de travail | I5: 021 | K5: 010 | L5: Bois massif | M5: Bois massif à plus de 75% en gestion durable certifiée | N5: 20 | P5: 010 | Q5: de largeur > 140 cm et <= 160 cm | R5: 094 | U5: 054 | X5: 20 | Y5: Bois massif à plus de 75% en gestion durable certifiée
A6: 04 | B6: Literie_marché_domestique | C6: =_xlfn.XLOOKUP(B6,'Comprendre la codification'!$C$10:$C$22,'Comprendre la codification'!$B$10:$B$22,,FALSE) -> 04 | F6: 01 | G6: Meubles_de_salon_sejour_salle_a_manger | H6: Quincaillerie (poignées de tiroir, rails de tiroir…), accessoires de suspension, de rangement, de pose… | I6: 022 | K6: 010 | L6: Bois massif | M6: Bois massif à plus de 75% en gestion non certifiée | N6: 21 | P6: 010 | Q6: de largeur > 160 cm et <= 180 cm | R6: 095 | U6: 055 | X6: 23 | Y6: OSB et métal à plus de 75% en gestion durable certifiée
A7: 14 | B7: Literie_marché_professionnel | C7: =_xlfn.XLOOKUP(B7,'Comprendre la codification'!$C$10:$C$22,'Comprendre la codification'!$B$10:$B$22,,FALSE) -> 14 | F7: 02 | G7: Meubles_d_appoint | H7: Rangement (hors tabletterie) | I7: 017 | K7: 010 | L7: Bois massif | M7: Panneaux de particules à plus de 75% en gestion durable certifiée | N7: 25 | P7: 010 | Q7: de largeur > 180 cm | R7: 096 | U7: 060 | X7: 24 | Y7: Panneaux de particules et/ou bois et/ou métal à plus de 75% en gestion durable certifiée
A8: 05 | B8: Meubles_de_bureau | C8: =_xlfn.XLOOKUP(B8,'Comprendre la codification'!$C$10:$C$22,'Comprendre la codification'!$B$10:$B$22,,FALSE) -> 05 | F8: 02 | G8: Meubles_d_appoint | H8: Bureaux, tables… | I8: 019 | K8: 010 | L8: Bois massif | M8: Bois massif à plus de 95% en gestion non certifiée | N8: 52 | P8: Total 010 | U8: 061 | X8: 25 | Y8: Panneaux de particules à plus de 75% en gestion durable certifiée
A9: 06 | B9: Meubles_de_cuisine | C9: =_xlfn.XLOOKUP(B9,'Comprendre la codification'!$C$10:$C$22,'Comprendre la codification'!$B$10:$B$22,,FALSE) -> 06 | F9: 02 | G9: Meubles_d_appoint | H9: Tabletterie, panneaux à la découpe (au poids) | I9: 020 | K9: 010 | L9: Bois massif | M9: Bois massif à plus de 95% en gestion durable certifiée | N9: 53 | P9: 013 | Q9: Largeur <= 120 cm | R9: 010 | U9: 062 | X9: 27 | Y9: OSB à plus de 75% en gestion durable certifiée
A10: 07 | B10: Meubles_de_salle_de_bains | C10: =_xlfn.XLOOKUP(B10,'Comprendre la codification'!$C$10:$C$22,'Comprendre la codification'!$B$10:$B$22,,FALSE) -> 07 | F10: 02 | G10: Meubles_d_appoint | H10: Plans de pose et plans de travail | I10: 021 | K10: 010 | L10: Dérivés de bois | M10: Bois, panneaux et dérivés de bois à plus de 50% en gestion durable certifiée | N10: 01 | P10: 013 | Q10: Largeur > 120 cm et <= 140 cm | R10: 011 | U10: 081 | X10: 34 | Y10: Rembourrage textile naturel (laine…) issu de resssources renouvelables en gestion durable certifiée
A11: 08 | B11: Meubles_de_jardin | C11: =_xlfn.XLOOKUP(B11,'Comprendre la codification'!$C$10:$C$22,'Comprendre la codification'!$B$10:$B$22,,FALSE) -> 08 | F11: 02 | G11: Meubles_d_appoint | H11: Quincaillerie (poignées de tiroir, rails de tiroir…), accessoires de suspension, de rangement, de pose… | I11: 022 | K11: 010 | L11: Dérivés de bois | M11: Bambou/Rotin certifié ou non à plus de 50% | N11: 03 | P11: 013 | Q11: Double / duo (ensemble composé de deux éléments unitairement ≤ 120 cm) | R11: 013 | X11: 35 | Y11: Latex biosourcé à plus de 50% issu de ressources renouvelables en gestion durable certifiée
A12: 09 | B12: Sieges | C12: =_xlfn.XLOOKUP(B12,'Comprendre la codification'!$C$10:$C$22,'Comprendre la codification'!$B$10:$B$22,,FALSE) -> 09 | F12: 02 | G12: Meubles_d_appoint | H12: Mobilier pour animaux | I12: 034 | K12: 010 | L12: Dérivés de bois | M12: Panneaux de particules et/ou bois et/ou métal à plus de 75% en gestion durable certifiée | N12: 24 | P12: 013 | Q12: de largeur > 140 cm et <= 160 cm | R12: 094 | X12: 37 | Y12: Matériaux bio sourcés ou textiles non synthétiques à plus de 95% en gestion durable certifiée
A13: 10 | B13: Mobilier_technique | C13: =_xlfn.XLOOKUP(B13,'Comprendre la codification'!$C$10:$C$22,'Comprendre la codification'!$B$10:$B$22,,FALSE) -> 10 | F13: 02 | G13: Meubles_d_appoint | H13: Housse de protection | I13: 036 | K13: 010 | L13: Dérivés de bois | M13: Panneaux de particules et/ou bois et/ou métal à plus de 75% en gestion non certifiée | N13: 29 | P13: 013 | Q13: de largeur > 160 cm et <= 180 cm | R13: 095 | X13: 53 | Y13: Bois massif à plus de 95% en gestion durable certifiée
A14: 11 | B14: Articles_rembourrés_assise_couchage | C14: =_xlfn.XLOOKUP(B14,'Comprendre la codification'!$C$10:$C$22,'Comprendre la codification'!$B$10:$B$22,,FALSE) -> 11 | F14: 02 | G14: Meubles_d_appoint | H14: Tablette (à la dimension) | I14: 038 | K14: 010 | L14: Dérivés de bois | M14: Panneaux de particules à plus de 75% en gestion non certifiée | N14: 30 | P14: 013 | Q14: de largeur > 180 cm | R14: 096 | X14: 62 | Y14: Dérivés de bois à plus de 95% en gestion durable certifiée
A15: 12 | B15: Articles_décoration_textile | C15: =_xlfn.XLOOKUP(B15,'Comprendre la codification'!$C$10:$C$22,'Comprendre la codification'!$B$10:$B$22,,FALSE) -> 12 | F15: 02 | G15: Meubles_d_appoint | H15: Textile d'ameublement, laize <100cm | I15: 078 | K15: 010 | L15: Dérivés de bois | M15: Bois, panneaux et dérivés de bois à plus de 50% en gestion non certifiée | N15: 33 | P15: Total 013
F16: 02 | G16: Meubles_d_appoint | H16: Textile d'ameublement, laize entre 100cm et 200cm inclus | I16: 079 | K16: 010 | L16: Avec perturbateur de recyclage | M16: Non connu | N16: 00 | P16: 017 | Q16: Inférieur strictement à 0,1 kg | R16: 108
F17: 02 | G17: Meubles_d_appoint | H17: Textile d'ameublement, laize >200cm | I17: 080 | K17: Total 010 | P17: 017 | Q17: Compris entre 0,1 kg et 0,25 kg exclus | R17: 106
F18: 02 | G18: Meubles_d_appoint | H18: Caissons <1m de haut | I18: 082 | K18: 013 | L18: Métal | M18: Métal à plus de 50% | N18: 02 | P18: 017 | Q18: Compris entre 0,25 kg et 0,5 kg exclus | R18: 107
F19: 02 | G19: Meubles_d_appoint | H19: Caissons >=1m de haut | I19: 083 | K19: 013 | L19: Métal | M19: Métal à plus de 75% | N19: 22 | P19: 017 | Q19: Compris entre 0,25 kg et 0,5 kg exclus | R19: 020
F20: 02 | G20: Meubles_d_appoint | H20: Portes de placard | I20: 084 | K20: 013 | L20: Métal | M20: Métal à plus de 95% | N20: 28 | P20: 017 | Q20: Compris entre 0,5 kg et 1 kg exclus | R20: 021
F21: 02 | G21: Meubles_d_appoint | H21: Panneau de Particules Surfacé Mélaminé (PPSM) | I21: 086 | K21: 013 | L21: Bois massif | M21: Bois massif à plus de 75% en gestion durable certifiée | N21: 20 | P21: 017 | Q21: Compris entre 1 kg et 2 kg exclus | R21: 022
F22: 02 | G22: Meubles_d_appoint | H22: Feuille de stratifié HPL (High Pressurized Laminated) | I22: 087 | K22: 013 | L22: Bois massif | M22: Bois massif à plus de 75% en gestion non certifiée | N22: 21 | P22: 017 | Q22: Compris entre 2 kg et 5 kg exclus | R22: 023
F23: 02 | G23: Meubles_d_appoint | H23: Panneau MDF (Medium Density Fiber), brut, laqué, mélaminé | I23: 088 | K23: 013 | L23: Bois massif | M23: Panneaux de particules à plus de 75% en gestion durable certifiée | N23: 25 | P23: 017 | Q23: Compris entre 5 kg et 10 kg exclus | R23: 024
F24: 02 | G24: Meubles_d_appoint | H24: Panneau bois massif et assimilé (triplis) | I24: 089 | K24: 013 | L24: Bois massif | M24: Bois massif à plus de 95% en gestion non certifiée | N24: 52 | P24: 017 | Q24: Compris entre 10 kg et 20 kg exclus | R24: 025
F25: 03 | G25: Meubles_de_chambre_a_coucher | H25: Rangement (hors tabletterie) | I25: 017 | K25: 013 | L25: Bois massif | M25: Bois massif à plus de 95% en gestion durable certifiée | N25: 53 | P25: 017 | Q25: Compris entre 20 kg et 30 kg exclus | R25: 026
F26: 03 | G26: Meubles_de_chambre_a_coucher | H26: Meubles ou éléments d'ameublement servant au couchage (cadre de lit…) (NB: hors matelas, sommiers et têtes de lit) | I26: 018 | K26: 013 | L26: Dérivés de bois | M26: Bois, panneaux et dérivés de bois à plus de 50% en gestion durable certifiée | N26: 01 | P26: 017 | Q26: Compris entre 30 kg et 40 kg exclus | R26: 027
F27: 03 | G27: Meubles_de_chambre_a_coucher | H27: Bureaux, tables… | I27: 019 | K27: 013 | L27: Dérivés de bois | M27: Bambou/Rotin certifié ou non à plus de 50% | N27: 03 | P27: 017 | Q27: Compris entre 40 kg et 60 kg exclus | R27: 028
F28: 03 | G28: Meubles_de_chambre_a_coucher | H28: Tabletterie, panneaux à la découpe (au poids) | I28: 020 | K28: 013 | L28: Dérivés de bois | M28: Panneaux de particules et/ou bois et/ou métal à plus de 75% en gestion durable certifiée | N28: 24 | P28: 017 | Q28: Compris entre 60 kg et 100 kg exclus | R28: 029
F29: 03 | G29: Meubles_de_chambre_a_coucher | H29: Plans de pose et plans de travail | I29: 021 | K29: 013 | L29: Dérivés de bois | M29: Panneaux de particules et/ou bois et/ou métal à plus de 75% en gestion non certifiée | N29: 29 | P29: 017 | Q29: Compris entre 100 kg et 150 kg exclus | R29: 030
F30: 03 | G30: Meubles_de_chambre_a_coucher | H30: Quincaillerie (poignées de tiroir, rails de tiroir…), accessoires de suspension, de rangement, de pose… | I30: 022 | K30: 013 | L30: Dérivés de bois | M30: Panneaux de particules à plus de 75% en gestion non certifiée | N30: 30 | P30: 017 | Q30: Compris entre 150 kg et 200 kg exclus | R30: 031
F31: 04 | G31: Literie_marché_domestique | H31: Matelas et surmatelas litier d'épaisseur ≤10cm | I31: 060 | K31: 013 | L31: Dérivés de bois | M31: Bois, panneaux et dérivés de bois à plus de 50% en gestion non certifiée | N31: 33 | P31: 017 | Q31: Compris entre 200 kg et 250 kg exclus | R31: 032
F32: 04 | G32: Literie_marché_domestique | H32: Matelas et surmatelas litier d'épaisseur >10cm | I32: 061 | K32: 013 | L32: Biosourcé | M32: Matériaux bio sourcés ou textiles non synthétiques à plus de 50% en gestion non certifiée | N32: 04 | P32: 017 | Q32: Compris entre 250 kg et 300 kg exclus | R32: 033
F33: 04 | G33: Literie_marché_domestique | H33: Matelas gonflable | I33: 023 | K33: 013 | L33: Biosourcé | M33: Matériaux bio sourcés ou textiles non synthétiques à plus de 50% en gestion durable certifiée | N33: 06 | P33: 017 | Q33: Supérieur à 300 kg | R33: 034
F34: 04 | G34: Literie_marché_domestique | H34: Sommier (hors sommier relaxation et lit-coffre) | I34: 062 | K34: 013 | L34: Biosourcé | M34: Matériaux bio sourcés ou textiles non synthétiques à plus de 95% en gestion durable certifiée | N34: 37 | P34: Total 017
F35: 04 | G35: Literie_marché_domestique | H35: Sommier relaxation mécanique ou électrique | I35: 013 | K35: 013 | L35: Biosourcé | M35: Matériaux bio sourcés ou textiles non synthétiques à plus de 95% en gestion non certifiée | N35: 55 | P35: 018 | Q35: Inférieur strictement à 0,1 kg | R35: 108
F36: 04 | G36: Literie_marché_domestique | H36: Lit-coffre | I36: 024 | K36: 013 | L36: Avec rembourrage | M36: Rembourrage naturel non certifié ou non textile (plume…) | N36: 13 | P36: 018 | Q36: Compris entre 0,1 kg et 0,25 kg exclus | R36: 106
F37: 04 | G37: Literie_marché_domestique | H37: Cadre à lattes | I37: 010 | K37: 013 | L37: Avec rembourrage | M37: Rembourrage Synthétique (mousse, polyester…) | N37: 14 | P37: 018 | Q37: Compris entre 0,25 kg et 0,5 kg exclus | R37: 107
F38: 04 | G38: Literie_marché_domestique | H38: Tête de lit | I38: 077 | K38: 013 | L38: Avec rembourrage | M38: Rembourrage textile naturel (laine…) issu de resssources renouvelables en gestion durable certifiée | N38: 34 | P38: 018 | Q38: Compris entre 0,25 kg et 0,5 kg exclus | R38: 020
F39: 04 | G39: Literie_marché_domestique | H39: Sommier et tête de lit | I39: 081 | K39: 013 | L39: Avec perturbateur de recyclage | M39: Non connu | N39: 00 | P39: 018 | Q39: Compris entre 0,5 kg et 1 kg exclus | R39: 021
F40: 04 | G40: Literie_marché_domestique | H40: Lattes de cadre à lattes | I40: 085 | K40: 013 | L40: Avec perturbateur de recyclage | M40: Autres ou avec perturbateur de recyclage | N40: 12 | P40: 018 | Q40: Compris entre 1 kg et 2 kg exclus | R40: 022
F41: 04 | G41: Literie_marché_domestique | H41: Pieds de lit | I41: 025 | K41: 013 | L41: Avec perturbateur de recyclage | M41: Composites et compact | N41: 15 | P41: 018 | Q41: Compris entre 2 kg et 5 kg exclus | R41: 023
F42: 05 | G42: Meubles_de_bureau | H42: Rangement (hors tabletterie) | I42: 017 | K42: 013 | L42: Avec perturbateur de recyclage | M42: Pierre artificielle | N42: 16 | P42: 018 | Q42: Compris entre 5 kg et 10 kg exclus | R42: 024
F43: 05 | G43: Meubles_de_bureau | H43: Bureaux, tables… | I43: 019 | K43: 013 | L43: Avec perturbateur de recyclage | M43: Ciment, béton | N43: 17 | P43: 018 | Q43: Compris entre 10 kg et 20 kg exclus | R43: 025
F44: 05 | G44: Meubles_de_bureau | H44: Tabletterie, panneaux à la découpe (au poids) | I44: 020 | K44: 013 | L44: Avec perturbateur de recyclage | M44: Céramique | N44: 18 | P44: 018 | Q44: Compris entre 20 kg et 30 kg exclus | R44: 026
F45: 05 | G45: Meubles_de_bureau | H45: Plans de pose et plans de travail | I45: 021 | K45: 013 | L45: Avec perturbateur de recyclage | M45: Assemblage caoutchouc synthétique ou latex à plus de 50% avec d'autres matériaux | N45: 40 | P45: 018 | Q45: Compris entre 30 kg et 40 kg exclus | R45: 027
F46: 05 | G46: Meubles_de_bureau | H46: Quincaillerie (poignées de tiroir, rails de tiroir…), accessoires de suspension, de rangement, de pose… | I46: 022 | K46: 013 | L46: Avec perturbateur de recyclage | M46: Assemblage de 3 matériaux ou plus sans un matériau à plus de 50% | N46: 82 | P46: 018 | Q46: Compris entre 40 kg et 60 kg exclus | R46: 028
F47: 06 | G47: Meubles_de_cuisine | H47: Rangement (hors tabletterie) | I47: 017 | K47: Total 013 | P47: 018 | Q47: Compris entre 60 kg et 100 kg exclus | R47: 029
F48: 06 | G48: Meubles_de_cuisine | H48: Bureaux, tables… | I48: 019 | K48: 017 | L48: Métal | M48: Métal à plus de 50% | N48: 02 | P48: 018 | Q48: Compris entre 100 kg et 150 kg exclus | R48: 030
F49: 06 | G49: Meubles_de_cuisine | H49: Tabletterie, panneaux à la découpe (au poids) | I49: 020 | K49: 017 | L49: Métal | M49: Métal à plus de 75% | N49: 22 | P49: 018 | Q49: Compris entre 150 kg et 200 kg exclus | R49: 031
F50: 06 | G50: Meubles_de_cuisine | H50: Plans de pose et plans de travail | I50: 021 | K50: 017 | L50: Métal | M50: Métal à plus de 95% | N50: 28 | P50: 018 | Q50: Compris entre 200 kg et 250 kg exclus | R50: 032
F51: 06 | G51: Meubles_de_cuisine | H51: Quincaillerie (poignées de tiroir, rails de tiroir…), accessoires de suspension, de rangement, de pose… | I51: 022 | K51: 017 | L51: Bois massif | M51: Bois massif à plus de 75% en gestion durable certifiée | N51: 20 | P51: 018 | Q51: Compris entre 250 kg et 300 kg exclus | R51: 033
F52: 07 | G52: Meubles_de_salle_de_bains | H52: Rangement (hors tabletterie) | I52: 017 | K52: 017 | L52: Bois massif | M52: Bois massif à plus de 75% en gestion non certifiée | N52: 21 | P52: 018 | Q52: Supérieur à 300 kg | R52: 034
F53: 07 | G53: Meubles_de_salle_de_bains | H53: Bureaux, tables… | I53: 019 | K53: 017 | L53: Bois massif | M53: OSB et métal à plus de 75% en gestion durable certifiée | N53: 23 | P53: Total 018
F54: 07 | G54: Meubles_de_salle_de_bains | H54: Tabletterie, panneaux à la découpe (au poids) | I54: 020 | K54: 017 | L54: Bois massif | M54: Panneaux de particules à plus de 75% en gestion durable certifiée | N54: 25 | P54: 019 | Q54: Inférieur strictement à 0,1 kg | R54: 108
F55: 07 | G55: Meubles_de_salle_de_bains | H55: Plans de pose et plans de travail | I55: 021 | K55: 017 | L55: Bois massif | M55: OSB à plus de 75% en gestion durable certifiée | N55: 27 | P55: 019 | Q55: Compris entre 0,1 kg et 0,25 kg exclus | R55: 106
F56: 07 | G56: Meubles_de_salle_de_bains | H56: Quincaillerie (poignées de tiroir, rails de tiroir…), accessoires de suspension, de rangement, de pose… | I56: 022 | K56: 017 | L56: Bois massif | M56: Bois massif à plus de 95% en gestion non certifiée | N56: 52 | P56: 019 | Q56: Compris entre 0,25 kg et 0,5 kg exclus | R56: 107
F57: 08 | G57: Meubles_de_jardin | H57: Rangement (hors tabletterie) | I57: 017 | K57: 017 | L57: Bois massif | M57: Bois massif à plus de 95% en gestion durable certifiée | N57: 53 | P57: 019 | Q57: Compris entre 0,25 kg et 0,5 kg exclus | R57: 020
F58: 08 | G58: Meubles_de_jardin | H58: Bureaux, tables… | I58: 019 | K58: 017 | L58: Dérivés de bois | M58: Bois, panneaux et dérivés de bois à plus de 50% en gestion durable certifiée | N58: 01 | P58: 019 | Q58: Compris entre 0,5 kg et 1 kg exclus | R58: 021
F59: 08 | G59: Meubles_de_jardin | H59: Quincaillerie (poignées de tiroir, rails de tiroir…), accessoires de suspension, de rangement, de pose… | I59: 022 | K59: 017 | L59: Dérivés de bois | M59: Bambou/Rotin certifié ou non à plus de 50% | N59: 03 | P59: 019 | Q59: Compris entre 1 kg et 2 kg exclus | R59: 022
F60: 08 | G60: Meubles_de_jardin | H60: Housse de protection | I60: 036 | K60: 017 | L60: Dérivés de bois | M60: Panneaux de particules et/ou bois et/ou métal à plus de 75% en gestion durable certifiée | N60: 24 | P60: 019 | Q60: Compris entre 2 kg et 5 kg exclus | R60: 023
F61: 09 | G61: =VLOOKUP(F61,$A$3:$B$15,2,FALSE) -> Sieges | H61: Siège avec rembourrage | I61: 054 | K61: 017 | L61: Dérivés de bois | M61: Panneaux de particules et/ou bois et/ou métal à plus de 75% en gestion non certifiée | N61: 29 | P61: 019 | Q61: Compris entre 5 kg et 10 kg exclus | R61: 024
F62: 09 | G62: Sieges | H62: Siège sans rembourrage | I62: 055 | K62: 017 | L62: Dérivés de bois | M62: Panneaux de particules à plus de 75% en gestion non certifiée | N62: 30 | P62: 019 | Q62: Compris entre 10 kg et 20 kg exclus | R62: 025
F63: 09 | G63: Sieges | H63: Siège gonflable | I63: 053 | K63: 017 | L63: Dérivés de bois | M63: OSB et métal à plus de 75% en gestion non certifiée | N63: 31 | P63: 019 | Q63: Compris entre 20 kg et 30 kg exclus | R63: 026
F64: 09 | G64: Sieges | H64: Autre accessoire, partie de siège, support de hamac | I64: 052 | K64: 017 | L64: Dérivés de bois | M64: Bois, panneaux et dérivés de bois à plus de 50% en gestion non certifiée | N64: 33 | P64: 019 | Q64: Compris entre 30 kg et 40 kg exclus | R64: 027
F65: 10 | G65: Mobilier_technique | H65: Rangement (hors tabletterie) | I65: 017 | K65: 017 | L65: Dérivés de bois | M65: OSB à plus de 75% en gestion non certifiée | N65: 60 | P65: 019 | Q65: Compris entre 40 kg et 60 kg exclus | R65: 028
F66: 10 | G66: Mobilier_technique | H66: Bureaux, tables… | I66: 019 | K66: 017 | L66: Biosourcé | M66: Matériaux bio sourcés ou textiles non synthétiques à plus de 50% en gestion non certifiée | N66: 04 | P66: 019 | Q66: Compris entre 60 kg et 100 kg exclus | R66: 029
F67: 10 | G67: Mobilier_technique | H67: Tabletterie, panneaux à la découpe (au poids) | I67: 020 | K67: 017 | L67: Biosourcé | M67: Matériaux bio sourcés ou textiles non synthétiques à plus de 50% en gestion durable certifiée | N67: 06 | P67: 019 | Q67: Compris entre 100 kg et 150 kg exclus | R67: 030
F68: 10 | G68: Mobilier_technique | H68: Plans de pose et plans de travail | I68: 021 | K68: 017 | L68: Biosourcé | M68: Papier, carton à plus de 50% en gestion durable certifiée | N68: 19 | P68: 019 | Q68: Compris entre 150 kg et 200 kg exclus | R68: 031
F69: 10 | G69: Mobilier_technique | H69: Quincaillerie (poignées de tiroir, rails de tiroir…), accessoires de suspension, de rangement, de pose… | I69: 022 | K69: 017 | L69: Biosourcé | M69: Matériaux bio sourcés ou textiles non synthétiques à plus de 95% en gestion durable certifiée | N69: 37 | P69: 019 | Q69: Compris entre 200 kg et 250 kg exclus | R69: 032
F70: 11 | G70: Articles_rembourrés_assise_couchage | H70: Surmatelas avec rembourrage de type non litier | I70: 028 | K70: 017 | L70: Biosourcé | M70: Papier, carton à plus de 50% en gestion non certifiée | N70: 38 | P70: 019 | Q70: Compris entre 250 kg et 300 kg exclus | R70: 033
F71: 11 | G71: Articles_rembourrés_assise_couchage | H71: Couette / Edredon | I71: 029 | K71: 017 | L71: Biosourcé | M71: Matériaux bio sourcés ou textiles non synthétiques à plus de 95% en gestion non certifiée | N71: 55 | P71: 019 | Q71: Supérieur à 300 kg | R71: 034
F72: 11 | G72: Articles_rembourrés_assise_couchage | H72: Sac de couchage | I72: 030 | K72: 017 | L72: Résines plastiques | M72: Plastiques | N72: 05 | P72: Total 019
F73: 11 | G73: Articles_rembourrés_assise_couchage | H73: Oreiller / Traversin / Polochon | I73: 031 | K73: 017 | L73: Résines plastiques | M73: Plastiques (mono résine) à plus de 95% | N73: 41 | P73: 020 | Q73: Inférieur strictement à 0,1 kg | R73: 108
F74: 11 | G74: Articles_rembourrés_assise_couchage | H74: Coussin, galette d'assise | I74: 032 | K74: 017 | L74: Résines plastiques | M74: Polyterephtalate d'Ethylène (PET) à plus de 95% | N74: 42 | P74: 020 | Q74: Compris entre 0,1 kg et 0,25 kg exclus | R74: 106
F75: 11 | G75: Articles_rembourrés_assise_couchage | H75: Autres articles rembourrés d’assise ou de couchage | I75: 033 | K75: 017 | L75: Résines plastiques | M75: PE ou PP ou mélange PP/PE à plus de 95% | N75: 45 | P75: 020 | Q75: Compris entre 0,25 kg et 0,5 kg exclus | R75: 107
F76: 12 | G76: Articles_décoration_textile | H76: Tapis de décoration | I76: 070 | K76: 017 | L76: Résines plastiques | M76: ABS à plus de 95% | N76: 46 | P76: 020 | Q76: Compris entre 0,25 kg et 0,5 kg exclus | R76: 020
F77: 12 | G77: Articles_décoration_textile | H77: Tapis fonctionnel, paillassons | I77: 071 | K77: 017 | L77: Résines plastiques | M77: Polystyrène à plus de 95% | N77: 47 | P77: 020 | Q77: Compris entre 0,5 kg et 1 kg exclus | R77: 021
F78: 12 | G78: Articles_décoration_textile | H78: Stores textiles intérieurs, rideaux, voilages | I78: 072 | K78: 017 | L78: Résines plastiques | M78: PVC à plus de 95% | N78: 48 | P78: 020 | Q78: Compris entre 1 kg et 2 kg exclus | R78: 022
F79: 12 | G79: Articles_décoration_textile | H79: Moquettes évènementielles | I79: 073 | K79: 017 | L79: Résines plastiques | M79: Matériaux ou fibres synthétiques à plus de 95% | N79: 65 | P79: 020 | Q79: Compris entre 2 kg et 5 kg exclus | R79: 023
F80: 12 | G80: Articles_décoration_textile | H80: Autres petits éléments de décoration textile (macramés, guirlandes décoratives,...) | I80: 074 | K80: 017 | L80: Résines plastiques | M80: Textile et rembourrage en polyester à plus de 95% | N80: 66 | P80: 020 | Q80: Compris entre 5 kg et 10 kg exclus | R80: 024
F81: 12 | G81: Articles_décoration_textile | H81: Accessoires d'éléments de décoration textile (tringle,...) | I81: 075 | K81: 017 | L81: Résines plastiques | M81: Matériaux ou fibres synthétiques à plus de 50% | N81: 67 | P81: 020 | Q81: Compris entre 10 kg et 20 kg exclus | R81: 025
F82: 12 | G82: Articles_décoration_textile | H82: Cadres décoratifs muraux | I82: 076 | K82: 017 | L82: Inerte | M82: Verre à plus de 95% | N82: 68 | P82: 020 | Q82: Compris entre 20 kg et 30 kg exclus | R82: 026
F83: 14 | G83: Literie_marché_professionnel | H83: Matelas et surmatelas litier d'épaisseur ≤10cm | I83: 060 | K83: 017 | L83: Inerte | M83: Miroir à plus de 95% | N83: 69 | P83: 020 | Q83: Compris entre 30 kg et 40 kg exclus | R83: 027
F84: 14 | G84: Literie_marché_professionnel | H84: Matelas et surmatelas litier d'épaisseur >10cm | I84: 061 | K84: 017 | L84: Inerte | M84: Béton à plus de 95% | N84: 74 | P84: 020 | Q84: Compris entre 40 kg et 60 kg exclus | R84: 028
F85: 14 | G85: Literie_marché_professionnel | H85: Matelas gonflable | I85: 023 | K85: 017 | L85: Inerte | M85: Ardoise à plus de 95% | N85: 84 | P85: 020 | Q85: Compris entre 60 kg et 100 kg exclus | R85: 029
F86: 14 | G86: Literie_marché_professionnel | H86: Sommier (hors sommier relaxation et lit-coffre) | I86: 062 | K86: 017 | L86: Inerte | M86: Pierre calcaire à plus de 95% | N86: 86 | P86: 020 | Q86: Compris entre 100 kg et 150 kg exclus | R86: 030
F87: 14 | G87: Literie_marché_professionnel | H87: Sommier relaxation mécanique ou électrique | I87: 013 | K87: 017 | L87: Inerte | M87: Céramique à plus de 95% | N87: 97 | P87: 020 | Q87: Compris entre 150 kg et 200 kg exclus | R87: 031
F88: 14 | G88: Literie_marché_professionnel | H88: Lit-coffre | I88: 024 | K88: 017 | L88: Inerte | M88: Pierre artificielle à plus de 95% | N88: 98 | P88: 020 | Q88: Compris entre 200 kg et 250 kg exclus | R88: 032
F89: 14 | G89: Literie_marché_professionnel | H89: Cadre à lattes | I89: 010 | K89: 017 | L89: Avec perturbateur de recyclage | M89: Non connu | N89: 00 | P89: 020 | Q89: Compris entre 250 kg et 300 kg exclus | R89: 033
F90: 14 | G90: Literie_marché_professionnel | H90: Tête de lit | I90: 077 | K90: 017 | L90: Avec perturbateur de recyclage | M90: Verre et miroir | N90: 07 | P90: 020 | Q90: Supérieur à 300 kg | R90: 034
F91: 14 | G91: Literie_marché_professionnel | H91: Sommier et tête de lit | I91: 081 | K91: 017 | L91: Avec perturbateur de recyclage | M91: Autres ou avec perturbateur de recyclage | N91: 12 | P91: Total 020
F92: 14 | G92: Literie_marché_professionnel | H92: Lattes de cadre à lattes | I92: 085 | K92: 017 | L92: Avec perturbateur de recyclage | M92: Composites et compact | N92: 15 | P92: 021 | Q92: Inférieur strictement à 0,1 kg | R92: 108
F93: 14 | G93: Literie_marché_professionnel | H93: Pieds de lit | I93: 025 | K93: 017 | L93: Avec perturbateur de recyclage | M93: Pierre artificielle | N93: 16 | P93: 021 | Q93: Compris entre 0,1 kg et 0,25 kg exclus | R93: 106
K94: 017 | L94: Avec perturbateur de recyclage | M94: Ciment, béton | N94: 17 | P94: 021 | Q94: Compris entre 0,25 kg et 0,5 kg exclus | R94: 107
K95: 017 | L95: Avec perturbateur de recyclage | M95: Céramique | N95: 18 | P95: 021 | Q95: Compris entre 0,25 kg et 0,5 kg exclus | R95: 020
K96: 017 | L96: Avec perturbateur de recyclage | M96: Caoutchouc synthétique à plus de à plus de 95% | N96: 49 | P96: 021 | Q96: Compris entre 0,5 kg et 1 kg exclus | R96: 021
K97: 017 | L97: Avec perturbateur de recyclage | M97: Caoutchouc naturel à plus de 50% | N97: 64 | P97: 021 | Q97: Compris entre 1 kg et 2 kg exclus | R97: 022
K98: 017 | L98: Avec perturbateur de recyclage | M98: Assemblage verre à plus de 50% avec métal | N98: 70 | P98: 021 | Q98: Compris entre 2 kg et 5 kg exclus | R98: 023
K99: 017 | L99: Avec perturbateur de recyclage | M99: Assemblage de 3 matériaux ou plus sans un matériau à plus de 50% | N99: 82 | P99: 021 | Q99: Compris entre 5 kg et 10 kg exclus | R99: 024
K100: Total 017 | P100: 021 | Q100: Compris entre 10 kg et 20 kg exclus | R100: 025
K101: 018 | L101: Métal | M101: Métal à plus de 50% | N101: 02 | P101: 021 | Q101: Compris entre 20 kg et 30 kg exclus | R101: 026
K102: 018 | L102: Métal | M102: Métal à plus de 75% | N102: 22 | P102: 021 | Q102: Compris entre 30 kg et 40 kg exclus | R102: 027
K103: 018 | L103: Métal | M103: Métal à plus de 95% | N103: 28 | P103: 021 | Q103: Compris entre 40 kg et 60 kg exclus | R103: 028
K104: 018 | L104: Bois massif | M104: Bois massif à plus de 75% en gestion durable certifiée | N104: 20 | P104: 021 | Q104: Compris entre 60 kg et 100 kg exclus | R104: 029
K105: 018 | L105: Bois massif | M105: Bois massif à plus de 75% en gestion non certifiée | N105: 21 | P105: 021 | Q105: Compris entre 100 kg et 150 kg exclus | R105: 030
K106: 018 | L106: Bois massif | M106: OSB et métal à plus de 75% en gestion durable certifiée | N106: 23 | P106: 021 | Q106: Compris entre 150 kg et 200 kg exclus | R106: 031
K107: 018 | L107: Bois massif | M107: Panneaux de particules à plus de 75% en gestion durable certifiée | N107: 25 | P107: 021 | Q107: Compris entre 200 kg et 250 kg exclus | R107: 032
K108: 018 | L108: Bois massif | M108: OSB à plus de 75% en gestion durable certifiée | N108: 27 | P108: 021 | Q108: Compris entre 250 kg et 300 kg exclus | R108: 033
K109: 018 | L109: Bois massif | M109: Bois massif à plus de 95% en gestion non certifiée | N109: 52 | P109: 021 | Q109: Supérieur à 300 kg | R109: 034
K110: 018 | L110: Bois massif | M110: Bois massif à plus de 95% en gestion durable certifiée | N110: 53 | P110: 021 | Q110: de 0 à 60cm de longueur | R110: 097
K111: 018 | L111: Dérivés de bois | M111: Bois, panneaux et dérivés de bois à plus de 50% en gestion durable certifiée | N111: 01 | P111: 021 | Q111: de 60 à 120cm de longueur | R111: 098
K112: 018 | L112: Dérivés de bois | M112: Bambou/Rotin certifié ou non à plus de 50% | N112: 03 | P112: 021 | Q112: de 120 à 180cm de longueur | R112: 099
K113: 018 | L113: Dérivés de bois | M113: Panneaux de particules et/ou bois et/ou métal à plus de 75% en gestion durable certifiée | N113: 24 | P113: 021 | Q113: de 180 à 240cm de longueur | R113: 100
K114: 018 | L114: Dérivés de bois | M114: Panneaux de particules et/ou bois et/ou métal à plus de 75% en gestion non certifiée | N114: 29 | P114: 021 | Q114: plus de 240cm de longueur | R114: 101
K115: 018 | L115: Dérivés de bois | M115: Panneaux de particules à plus de 75% en gestion non certifiée | N115: 30 | P115: Total 021
K116: 018 | L116: Dérivés de bois | M116: OSB et métal à plus de 75% en gestion non certifiée | N116: 31 | P116: 022 | Q116: Inférieur strictement à 0,1 kg | R116: 108
K117: 018 | L117: Dérivés de bois | M117: Bois, panneaux et dérivés de bois à plus de 50% en gestion non certifiée | N117: 33 | P117: 022 | Q117: Compris entre 0,1 kg et 0,25 kg exclus | R117: 106
K118: 018 | L118: Dérivés de bois | M118: OSB à plus de 75% en gestion non certifiée | N118: 60 | P118: 022 | Q118: Compris entre 0,25 kg et 0,5 kg exclus | R118: 107
K119: 018 | L119: Biosourcé | M119: Matériaux bio sourcés ou textiles non synthétiques à plus de 50% en gestion non certifiée | N119: 04 | P119: 022 | Q119: Compris entre 0,25 kg et 0,5 kg exclus | R119: 020
K120: 018 | L120: Biosourcé | M120: Matériaux bio sourcés ou textiles non synthétiques à plus de 50% en gestion durable certifiée | N120: 06 | P120: 022 | Q120: Compris entre 0,5 kg et 1 kg exclus | R120: 021
K121: 018 | L121: Biosourcé | M121: Papier, carton à plus de 50% en gestion durable certifiée | N121: 19 | P121: 022 | Q121: Compris entre 1 kg et 2 kg exclus | R121: 022
K122: 018 | L122: Biosourcé | M122: Matériaux bio sourcés ou textiles non synthétiques à plus de 95% en gestion durable certifiée | N122: 37 | P122: 022 | Q122: Compris entre 2 kg et 5 kg exclus | R122: 023
K123: 018 | L123: Biosourcé | M123: Papier, carton à plus de 50% en gestion non certifiée | N123: 38 | P123: 022 | Q123: Compris entre 5 kg et 10 kg exclus | R123: 024
K124: 018 | L124: Biosourcé | M124: Matériaux bio sourcés ou textiles non synthétiques à plus de 95% en gestion non certifiée | N124: 55 | P124: 022 | Q124: Compris entre 10 kg et 20 kg exclus | R124: 025
K125: 018 | L125: Résines plastiques | M125: Plastiques | N125: 05 | P125: 022 | Q125: Compris entre 20 kg et 30 kg exclus | R125: 026
K126: 018 | L126: Résines plastiques | M126: Plastiques (mono résine) à plus de 95% | N126: 41 | P126: 022 | Q126: Compris entre 30 kg et 40 kg exclus | R126: 027
K127: 018 | L127: Résines plastiques | M127: Polyterephtalate d'Ethylène (PET) à plus de 95% | N127: 42 | P127: 022 | Q127: Compris entre 40 kg et 60 kg exclus | R127: 028
K128: 018 | L128: Résines plastiques | M128: PE ou PP ou mélange PP/PE à plus de 95% | N128: 45 | P128: 022 | Q128: Compris entre 60 kg et 100 kg exclus | R128: 029
K129: 018 | L129: Résines plastiques | M129: ABS à plus de 95% | N129: 46 | P129: 022 | Q129: Compris entre 100 kg et 150 kg exclus | R129: 030
K130: 018 | L130: Résines plastiques | M130: Polystyrène à plus de 95% | N130: 47 | P130: 022 | Q130: Compris entre 150 kg et 200 kg exclus | R130: 031
K131: 018 | L131: Résines plastiques | M131: PVC à plus de 95% | N131: 48 | P131: 022 | Q131: Compris entre 200 kg et 250 kg exclus | R131: 032
K132: 018 | L132: Résines plastiques | M132: Matériaux ou fibres synthétiques à plus de 95% | N132: 65 | P132: 022 | Q132: Compris entre 250 kg et 300 kg exclus | R132: 033
K133: 018 | L133: Résines plastiques | M133: Textile et rembourrage en polyester à plus de 95% | N133: 66 | P133: 022 | Q133: Supérieur à 300 kg | R133: 034
K134: 018 | L134: Résines plastiques | M134: Matériaux ou fibres synthétiques à plus de 50% | N134: 67 | P134: Total 022
K135: 018 | L135: Inerte | M135: Verre à plus de 95% | N135: 68 | P135: 023 | Q135: Largeur <= 120 cm | R135: 010
K136: 018 | L136: Inerte | M136: Miroir à plus de 95% | N136: 69 | P136: 023 | Q136: Largeur > 120 cm et <= 140 cm | R136: 011
K137: 018 | L137: Inerte | M137: Béton à plus de 95% | N137: 74 | P137: 023 | Q137: de largeur > 140 cm et <= 160 cm | R137: 094
K138: 018 | L138: Inerte | M138: Ardoise à plus de 95% | N138: 84 | P138: 023 | Q138: de largeur > 160 cm et <= 180 cm | R138: 095
K139: 018 | L139: Inerte | M139: Pierre calcaire à plus de 95% | N139: 86 | P139: 023 | Q139: de largeur > 180 cm | R139: 096
K140: 018 | L140: Inerte | M140: Céramique à plus de 95% | N140: 97 | P140: 023 | Q140: Double / duo (ensemble composé de deux éléments unitairement ≤ 120 cm) | R140: 013
K141: 018 | L141: Inerte | M141: Pierre artificielle à plus de 95% | N141: 98 | P141: Total 023
K142: 018 | L142: Avec perturbateur de recyclage | M142: Verre et miroir | N142: 07 | P142: 024 | Q142: Largeur <= 120 cm | R142: 010
K143: 018 | L143: Avec perturbateur de recyclage | M143: Autres ou avec perturbateur de recyclage | N143: 12 | P143: 024 | Q143: Largeur > 120 cm et <= 140 cm | R143: 011
K144: 018 | L144: Avec perturbateur de recyclage | M144: Composites et compact | N144: 15 | P144: 024 | Q144: de largeur > 140 cm et <= 160 cm | R144: 094
K145: 018 | L145: Avec perturbateur de recyclage | M145: Pierre artificielle | N145: 16 | P145: 024 | Q145: de largeur > 160 cm et <= 180 cm | R145: 095
K146: 018 | L146: Avec perturbateur de recyclage | M146: Ciment, béton | N146: 17 | P146: 024 | Q146: de largeur > 180 cm | R146: 096
K147: 018 | L147: Avec perturbateur de recyclage | M147: Céramique | N147: 18 | P147: 024 | Q147: Double / duo (ensemble composé de deux éléments unitairement ≤ 120 cm) | R147: 013
K148: 018 | L148: Avec perturbateur de recyclage | M148: Caoutchouc synthétique à plus de à plus de 95% | N148: 49 | P148: Total 024
K149: 018 | L149: Avec perturbateur de recyclage | M149: Caoutchouc naturel à plus de 50% | N149: 64 | P149: 025 | Q149: Non spécifié | R149: 000
K150: 018 | L150: Avec perturbateur de recyclage | M150: Assemblage de 3 matériaux ou plus sans un matériau à plus de 50% | N150: 82 | P150: 025 | Q150: Lot de 2 | R150: 005
K151: Total 018 | P151: 025 | Q151: Lot de 4 | R151: 006
K152: 019 | L152: Métal | M152: Métal à plus de 50% | N152: 02 | P152: Total 025
K153: 019 | L153: Métal | M153: Métal à plus de 75% | N153: 22 | P153: 028 | Q153: Largeur <= 120 cm | R153: 010
K154: 019 | L154: Métal | M154: Métal à plus de 95% | N154: 28 | P154: 028 | Q154: Largeur > 120 cm et <= 140 cm | R154: 011
K155: 019 | L155: Bois massif | M155: Bois massif à plus de 75% en gestion durable certifiée | N155: 20 | P155: 028 | Q155: Largeur > 140 cm | R155: 012
K156: 019 | L156: Bois massif | M156: Bois massif à plus de 75% en gestion non certifiée | N156: 21 | P156: Total 028
K157: 019 | L157: Bois massif | M157: OSB et métal à plus de 75% en gestion durable certifiée | N157: 23 | P157: 029 | Q157: Largeur <= 205 cm | R157: 008
K158: 019 | L158: Bois massif | M158: Panneaux de particules à plus de 75% en gestion durable certifiée | N158: 25 | P158: 029 | Q158: Largeur > 205 cm | R158: 009
K159: 019 | L159: Bois massif | M159: OSB à plus de 75% en gestion durable certifiée | N159: 27 | P159: 029 | Q159: Largeur <= 205 cm avec 1 oreiller | R159: 014
K160: 019 | L160: Bois massif | M160: Bois massif à plus de 95% en gestion non certifiée | N160: 52 | P160: 029 | Q160: Largeur > 205 cm avec 2 oreillers | R160: 015
K161: 019 | L161: Bois massif | M161: Bois massif à plus de 95% en gestion durable certifiée | N161: 53 | P161: Total 029
K162: 019 | L162: Dérivés de bois | M162: Bois, panneaux et dérivés de bois à plus de 50% en gestion durable certifiée | N162: 01 | P162: 030 | Q162: Non spécifié | R162: 000
K163: 019 | L163: Dérivés de bois | M163: Bambou/Rotin certifié ou non à plus de 50% | N163: 03 | P163: Total 030
K164: 019 | L164: Dérivés de bois | M164: Panneaux de particules et/ou bois et/ou métal à plus de 75% en gestion durable certifiée | N164: 24 | P164: 031 | Q164: Non spécifié | R164: 000
K165: 019 | L165: Dérivés de bois | M165: Panneaux de particules et/ou bois et/ou métal à plus de 75% en gestion non certifiée | N165: 29 | P165: 031 | Q165: Lot de 2 | R165: 005
K166: 019 | L166: Dérivés de bois | M166: Panneaux de particules à plus de 75% en gestion non certifiée | N166: 30 | P166: Total 031
K167: 019 | L167: Dérivés de bois | M167: OSB et métal à plus de 75% en gestion non certifiée | N167: 31 | P167: 032 | Q167: Non spécifié | R167: 000
K168: 019 | L168: Dérivés de bois | M168: Bois, panneaux et dérivés de bois à plus de 50% en gestion non certifiée | N168: 33 | P168: 032 | Q168: Lot de 2 | R168: 005
K169: 019 | L169: Dérivés de bois | M169: OSB à plus de 75% en gestion non certifiée | N169: 60 | P169: Total 032
K170: 019 | L170: Biosourcé | M170: Matériaux bio sourcés ou textiles non synthétiques à plus de 50% en gestion non certifiée | N170: 04 | P170: 033 | Q170: Non spécifié | R170: 000
K171: 019 | L171: Biosourcé | M171: Matériaux bio sourcés ou textiles non synthétiques à plus de 50% en gestion durable certifiée | N171: 06 | P171: Total 033
K172: 019 | L172: Biosourcé | M172: Papier, carton à plus de 50% en gestion durable certifiée | N172: 19 | P172: 034 | Q172: Inférieur strictement à 0,1 kg | R172: 108
K173: 019 | L173: Biosourcé | M173: Matériaux bio sourcés ou textiles non synthétiques à plus de 95% en gestion durable certifiée | N173: 37 | P173: 034 | Q173: Compris entre 0,1 kg et 0,25 kg exclus | R173: 106
K174: 019 | L174: Biosourcé | M174: Papier, carton à plus de 50% en gestion non certifiée | N174: 38 | P174: 034 | Q174: Compris entre 0,25 kg et 0,5 kg exclus | R174: 107
K175: 019 | L175: Biosourcé | M175: Matériaux bio sourcés ou textiles non synthétiques à plus de 95% en gestion non certifiée | N175: 55 | P175: 034 | Q175: Compris entre 0,25 kg et 0,5 kg exclus | R175: 020
K176: 019 | L176: Résines plastiques | M176: Plastiques | N176: 05 | P176: 034 | Q176: Compris entre 0,5 kg et 1 kg exclus | R176: 021
K177: 019 | L177: Résines plastiques | M177: Plastiques (mono résine) à plus de 95% | N177: 41 | P177: 034 | Q177: Compris entre 1 kg et 2 kg exclus | R177: 022
K178: 019 | L178: Résines plastiques | M178: Polyterephtalate d'Ethylène (PET) à plus de 95% | N178: 42 | P178: 034 | Q178: Compris entre 2 kg et 5 kg exclus | R178: 023
K179: 019 | L179: Résines plastiques | M179: PE ou PP ou mélange PP/PE à plus de 95% | N179: 45 | P179: 034 | Q179: Compris entre 5 kg et 10 kg exclus | R179: 024
K180: 019 | L180: Résines plastiques | M180: ABS à plus de 95% | N180: 46 | P180: 034 | Q180: Compris entre 10 kg et 20 kg exclus | R180: 025
K181: 019 | L181: Résines plastiques | M181: Polystyrène à plus de 95% | N181: 47 | P181: 034 | Q181: Compris entre 20 kg et 30 kg exclus | R181: 026
K182: 019 | L182: Résines plastiques | M182: PVC à plus de 95% | N182: 48 | P182: 034 | Q182: Compris entre 30 kg et 40 kg exclus | R182: 027
K183: 019 | L183: Résines plastiques | M183: Matériaux ou fibres synthétiques à plus de 95% | N183: 65 | P183: 034 | Q183: Compris entre 40 kg et 60 kg exclus | R183: 028
K184: 019 | L184: Résines plastiques | M184: Textile et rembourrage en polyester à plus de 95% | N184: 66 | P184: 034 | Q184: Compris entre 60 kg et 100 kg exclus | R184: 029
K185: 019 | L185: Résines plastiques | M185: Matériaux ou fibres synthétiques à plus de 50% | N185: 67 | P185: 034 | Q185: Compris entre 100 kg et 150 kg exclus | R185: 030
K186: 019 | L186: Inerte | M186: Verre à plus de 95% | N186: 68 | P186: 034 | Q186: Compris entre 150 kg et 200 kg exclus | R186: 031
B187: Textile et rembourrage en polyester >90% | K187: 019 | L187: Inerte | M187: Miroir à plus de 95% | N187: 69 | P187: 034 | Q187: Compris entre 200 kg et 250 kg exclus | R187: 032
K188: 019 | L188: Inerte | M188: Béton à plus de 95% | N188: 74 | P188: 034 | Q188: Compris entre 250 kg et 300 kg exclus | R188: 033
K189: 019 | L189: Inerte | M189: Ardoise à plus de 95% | N189: 84 | P189: 034 | Q189: Supérieur à 300 kg | R189: 034
K190: 019 | L190: Inerte | M190: Pierre calcaire à plus de 95% | N190: 86 | P190: Total 034
K191: 019 | L191: Inerte | M191: Céramique à plus de 95% | N191: 97 | P191: 036 | Q191: Inférieur strictement à 0,1 kg | R191: 108
K192: 019 | L192: Inerte | M192: Pierre artificielle à plus de 95% | N192: 98 | P192: 036 | Q192: Compris entre 0,1 kg et 0,25 kg exclus | R192: 106
K193: 019 | L193: Avec perturbateur de recyclage | M193: Verre et miroir | N193: 07 | P193: 036 | Q193: Compris entre 0,25 kg et 0,5 kg exclus | R193: 107
K194: 019 | L194: Avec perturbateur de recyclage | M194: Autres ou avec perturbateur de recyclage | N194: 12 | P194: 036 | Q194: Compris entre 0,25 kg et 0,5 kg exclus | R194: 020
K195: 019 | L195: Avec perturbateur de recyclage | M195: Composites et compact | N195: 15 | P195: 036 | Q195: Compris entre 0,5 kg et 1 kg exclus | R195: 021
K196: 019 | L196: Avec perturbateur de recyclage | M196: Pierre artificielle | N196: 16 | P196: 036 | Q196: Compris entre 1 kg et 2 kg exclus | R196: 022
K197: 019 | L197: Avec perturbateur de recyclage | M197: Ciment, béton | N197: 17 | P197: 036 | Q197: Compris entre 2 kg et 5 kg exclus | R197: 023
K198: 019 | L198: Avec perturbateur de recyclage | M198: Céramique | N198: 18 | P198: 036 | Q198: Compris entre 5 kg et 10 kg exclus | R198: 024
K199: 019 | L199: Avec perturbateur de recyclage | M199: Caoutchouc synthétique à plus de à plus de 95% | N199: 49 | P199: 036 | Q199: Compris entre 10 kg et 20 kg exclus | R199: 025
K200: 019 | L200: Avec perturbateur de recyclage | M200: Caoutchouc naturel à plus de 50% | N200: 64 | P200: 036 | Q200: Compris entre 20 kg et 30 kg exclus | R200: 026
... 798 more rows

Sheet DEA - Code produit en lignes
A1: Générateur de code produit - Ameublement - Barème applicable à partir du 1er janvier 2025 | O1: =Infos!B6 -> Version 11.2 - 07 octobre 2024 - Valable pour les produits mis en marché à partir du 1er janvier 2025 | Q1: MASQUER | R1: MASQUER | S1: MASQUER | T1: MASQUER | U1: MASQUER | V1: MASQUER | W1: MASQUER | X1: MASQUER | Y1: MASQUER | Z1: MASQUER | AA1: MASQUER | AB1: MASQUER | AC1: MASQUER | AD1: MASQUER | AE1: MASQUER | AF1: MASQUER
A2: Sélectionner UNIQUEMENT les éléments dans les cases vertes Penser à supprimer le contenu des cases vertes avant de faire une nouvelle génération. Le montant TTC de l’éco-participation est donné à titre indicatif ; le barème applicable est le barème HT.
L3: Vous pouvez le paramétrer le taux de TVA | M3: 0.2
B4: Vos références : | C4: 1 - Choisissez une catégorie : | D4: =R6+1&" - Choisissez une catégorie de produit : " -> 2 - Choisissez une catégorie de produit : | E4: =U6+1&" - Choisissez un matériau : " -> 3 - Choisissez un matériau : | G4: =X6+1&" - Choisissez la caractéristique (ou la dimension) en fonction du type de produit : " -> 4 - Choisissez la caractéristique (ou la dimension) en fonction du type de produit : | H4: =AA6+1&" - Le produit bénéficie-t-il d'une éco-modulation pour évolutivité ? " -> 5 - Le produit bénéficie-t-il d'une éco-modulation pour évolutivité ? | J4: D'où le code produit: | L4: HT : | M4: TTC : | O4: et son code éco-participation associé : | Q4: Code:
F6: =IF(COUNTIF('Param masqué'!$X$2:$X$14,'DEA - Code produit en lignes'!W6)>0,"Pensez à bien vérifier les conditions d'éligibilité au tarif Gestion Durable Certifiée !","") ->  | I6: =IF($AB6=1,"Attention, pensez à bien vérifier l'éligibilité de ce produit aux éco-modulations","") ->  | J6: =IF(OR(H6="",G6="",E6="",D6="",C6=""),"",CONCATENATE(Q6,T6,W6,Z6,AB6)) ->  | K6: =IF(J6="","",VLOOKUP(J6,'Grille 2025 définitive'!I:J,2,FALSE)) ->  | L6: =IFERROR(VLOOKUP('DEA - Code produit en lignes'!$J6,'Grille 2025 définitive'!$I:$L,4,FALSE),"") ->  | M6: =IF(L6="","",L6*(1+$M$3)) ->  | O6: =IFERROR(VLOOKUP(J6,'Grille 2025 définitive'!$I:$M,5,FALSE),"") ->  | Q6: =IF(C6="","",VLOOKUP(C6,'Param masqué'!$B$3:$C$15,2,FALSE)) ->  | R6: =LEFT(C$4,1)+0 -> 1 | S6: ="_"&Q6 -> _ | T6: =IF(D6="","",VLOOKUP(D6,'Param masqué'!$H:$I,2,FALSE)) ->  | U6: =LEFT(D$4,1)+0 -> 2 | V6: ="_"&T6 -> _ | W6: =IF(E6="","",VLOOKUP(E6,'Param masqué'!M:N,2,FALSE)) ->  | X6: =LEFT(E$4,1)+0 -> 3 | Y6: ="_"&V6 -> __ | Z6: =IF(G6="","",VLOOKUP(G6,'Param masqué'!Q:R,2,FALSE)) ->  | AA6: =LEFT(G$4,1)+0 -> 4 | AB6: =IF(H6="","",IF(H6="oui",1,0)) ->  | AD6: =IF(COUNTIF('Param masqué'!$U$2:$U$10,$T$6)>0,1,0) -> 0
F7: =IF(COUNTIF('Param masqué'!$X$2:$X$14,'DEA - Code produit en lignes'!W7)>0,"Pensez à bien vérifier les conditions d'éligibilité au tarif Gestion Durable Certifiée !","") ->  | I7: =IF($AB7=1,"Attention, pensez à bien vérifier l'éligibilité de ce produit aux éco-modulations","") ->  | K7: =IF(J7="","",VLOOKUP(J7,'Grille 2025 définitive'!I:J,2,FALSE)) ->  | L7: =IFERROR(VLOOKUP('DEA - Code produit en lignes'!$J7,'Grille 2025 définitive'!$I:$L,4,FALSE),"") ->  | M7: =IF(L7="","",L7*(1+$M$3)) ->  | O7: =IFERROR(VLOOKUP(J7,'Grille 2025 définitive'!$I:$M,5,FALSE),"") ->  | Q7: =IF(C7="","",VLOOKUP(C7,'Param masqué'!$B$3:$C$15,2,FALSE)) ->  | R7: =LEFT(C$4,1)+0 -> 1 | S7: ="_"&Q7 -> _ | T7: =IF(D7="","",VLOOKUP(D7,'Param masqué'!$H:$I,2,FALSE)) ->  | U7: =LEFT(D$4,1)+0 -> 2 | V7: ="_"&T7 -> _ | W7: =IF(E7="","",VLOOKUP(E7,'Param masqué'!M:N,2,FALSE)) ->  | X7: =LEFT(E$4,1)+0 -> 3 | Y7: ="_"&V7 -> __ | Z7: =IF(G7="","",VLOOKUP(G7,'Param masqué'!Q:R,2,FALSE)) ->  | AA7: =LEFT(G$4,1)+0 -> 4 | AB7: =IF(H7="","",IF(H7="oui",1,0)) ->  | AD7: =IF(COUNTIF('Param masqué'!$U$2:$U$10,$T$6)>0,1,0) -> 0
F8: =IF(COUNTIF('Param masqué'!$X$2:$X$14,'DEA - Code produit en lignes'!W8)>0,"Pensez à bien vérifier les conditions d'éligibilité au tarif Gestion Durable Certifiée !","") ->  | I8: =IF($AB8=1,"Attention, pensez à bien vérifier l'éligibilité de ce produit aux éco-modulations","") ->  | K8: =IF(J8="","",VLOOKUP(J8,'Grille 2025 définitive'!I:J,2,FALSE)) ->  | L8: =IFERROR(VLOOKUP('DEA - Code produit en lignes'!$J8,'Grille 2025 définitive'!$I:$L,4,FALSE),"") ->  | O8: =IFERROR(VLOOKUP(J8,'Grille 2025 définitive'!$I:$M,5,FALSE),"") ->  | Q8: =IF(C8="","",VLOOKUP(C8,'Param masqué'!$B$3:$C$15,2,FALSE)) ->  | R8: 1 | S8: _ | T8: =IF(D8="","",VLOOKUP(D8,'Param masqué'!$H:$I,2,FALSE)) ->  | U8: 2 | V8: _ | W8: =IF(E8="","",VLOOKUP(E8,'Param masqué'!M:N,2,FALSE)) ->  | X8: 3 | Y8: __ | Z8: =IF(G8="","",VLOOKUP(G8,'Param masqué'!Q:R,2,FALSE)) ->  | AA8: 4 | AD8: =IF(COUNTIF('Param masqué'!$U$2:$U$10,$T$6)>0,1,0) -> 0
F9: =IF(COUNTIF('Param masqué'!$X$2:$X$14,'DEA - Code produit en lignes'!W9)>0,"Pensez à bien vérifier les conditions d'éligibilité au tarif Gestion Durable Certifiée !","") ->  | K9: =IF(J9="","",VLOOKUP(J9,'Grille 2025 définitive'!I:J,2,FALSE)) ->  | L9: =IFERROR(VLOOKUP('DEA - Code produit en lignes'!$J9,'Grille 2025 définitive'!$I:$L,4,FALSE),"") ->  | O9: =IFERROR(VLOOKUP(J9,'Grille 2025 définitive'!$I:$M,5,FALSE),"") ->  | Q9: =IF(C9="","",VLOOKUP(C9,'Param masqué'!$B$3:$C$15,2,FALSE)) ->  | R9: 1 | S9: _ | T9: =IF(D9="","",VLOOKUP(D9,'Param masqué'!$H:$I,2,FALSE)) ->  | U9: 2 | V9: _ | W9: =IF(E9="","",VLOOKUP(E9,'Param masqué'!M:N,2,FALSE)) ->  | X9: 3 | Y9: __ | Z9: =IF(G9="","",VLOOKUP(G9,'Param masqué'!Q:R,2,FALSE)) ->  | AA9: 4 | AD9: =IF(COUNTIF('Param masqué'!$U$2:$U$10,$T$6)>0,1,0) -> 0
F10: =IF(COUNTIF('Param masqué'!$X$2:$X$14,'DEA - Code produit en lignes'!W10)>0,"Pensez à bien vérifier les conditions d'éligibilité au tarif Gestion Durable Certifiée !","") ->  | K10: =IF(J10="","",VLOOKUP(J10,'Grille 2025 définitive'!I:J,2,FALSE)) ->  | L10: =IFERROR(VLOOKUP('DEA - Code produit en lignes'!$J10,'Grille 2025 définitive'!$I:$L,4,FALSE),"") ->  | O10: =IFERROR(VLOOKUP(J10,'Grille 2025 définitive'!$I:$M,5,FALSE),"") ->  | Q10: =IF(C10="","",VLOOKUP(C10,'Param masqué'!$B$3:$C$15,2,FALSE)) ->  | R10: 1 | S10: _ | T10: =IF(D10="","",VLOOKUP(D10,'Param masqué'!$H:$I,2,FALSE)) ->  | U10: 2 | V10: _ | W10: =IF(E10="","",VLOOKUP(E10,'Param masqué'!M:N,2,FALSE)) ->  | X10: 3 | Y10: __ | Z10: =IF(G10="","",VLOOKUP(G10,'Param masqué'!Q:R,2,FALSE)) ->  | AA10: 4 | AD10: =IF(COUNTIF('Param masqué'!$U$2:$U$10,$T$6)>0,1,0) -> 0
F11: =IF(COUNTIF('Param masqué'!$X$2:$X$14,'DEA - Code produit en lignes'!W11)>0,"Pensez à bien vérifier les conditions d'éligibilité au tarif Gestion Durable Certifiée !","") ->  | K11: =IF(J11="","",VLOOKUP(J11,'Grille 2025 définitive'!I:J,2,FALSE)) ->  | L11: =IFERROR(VLOOKUP('DEA - Code produit en lignes'!$J11,'Grille 2025 définitive'!$I:$L,4,FALSE),"") ->  | O11: =IFERROR(VLOOKUP(J11,'Grille 2025 définitive'!$I:$M,5,FALSE),"") ->  | Q11: =IF(C11="","",VLOOKUP(C11,'Param masqué'!$B$3:$C$15,2,FALSE)) ->  | R11: 1 | S11: _ | T11: =IF(D11="","",VLOOKUP(D11,'Param masqué'!$H:$I,2,FALSE)) ->  | U11: 2 | V11: _ | W11: =IF(E11="","",VLOOKUP(E11,'Param masqué'!M:N,2,FALSE)) ->  | X11: 3 | Y11: __ | Z11: =IF(G11="","",VLOOKUP(G11,'Param masqué'!Q:R,2,FALSE)) ->  | AA11: 4 | AD11: =IF(COUNTIF('Param masqué'!$U$2:$U$10,$T$6)>0,1,0) -> 0
F12: =IF(COUNTIF('Param masqué'!$X$2:$X$14,'DEA - Code produit en lignes'!W12)>0,"Pensez à bien vérifier les conditions d'éligibilité au tarif Gestion Durable Certifiée !","") ->  | K12: =IF(J12="","",VLOOKUP(J12,'Grille 2025 définitive'!I:J,2,FALSE)) ->  | L12: =IFERROR(VLOOKUP('DEA - Code produit en lignes'!$J12,'Grille 2025 définitive'!$I:$L,4,FALSE),"") ->  | O12: =IFERROR(VLOOKUP(J12,'Grille 2025 définitive'!$I:$M,5,FALSE),"") ->  | Q12: =IF(C12="","",VLOOKUP(C12,'Param masqué'!$B$3:$C$15,2,FALSE)) ->  | R12: 1 | S12: _ | T12: =IF(D12="","",VLOOKUP(D12,'Param masqué'!$H:$I,2,FALSE)) ->  | U12: 2 | V12: _ | W12: =IF(E12="","",VLOOKUP(E12,'Param masqué'!M:N,2,FALSE)) ->  | X12: 3 | Y12: __ | Z12: =IF(G12="","",VLOOKUP(G12,'Param masqué'!Q:R,2,FALSE)) ->  | AA12: 4 | AD12: =IF(COUNTIF('Param masqué'!$U$2:$U$10,$T$6)>0,1,0) -> 0
F13: =IF(COUNTIF('Param masqué'!$X$2:$X$14,'DEA - Code produit en lignes'!W13)>0,"Pensez à bien vérifier les conditions d'éligibilité au tarif Gestion Durable Certifiée !","") ->  | K13: =IF(J13="","",VLOOKUP(J13,'Grille 2025 définitive'!I:J,2,FALSE)) ->  | L13: =IFERROR(VLOOKUP('DEA - Code produit en lignes'!$J13,'Grille 2025 définitive'!$I:$L,4,FALSE),"") ->  | O13: =IFERROR(VLOOKUP(J13,'Grille 2025 définitive'!$I:$M,5,FALSE),"") ->  | Q13: =IF(C13="","",VLOOKUP(C13,'Param masqué'!$B$3:$C$15,2,FALSE)) ->  | R13: 1 | S13: _ | T13: =IF(D13="","",VLOOKUP(D13,'Param masqué'!$H:$I,2,FALSE)) ->  | U13: 2 | V13: _ | W13: =IF(E13="","",VLOOKUP(E13,'Param masqué'!M:N,2,FALSE)) ->  | X13: 3 | Y13: __ | Z13: =IF(G13="","",VLOOKUP(G13,'Param masqué'!Q:R,2,FALSE)) ->  | AA13: 4 | AD13: =IF(COUNTIF('Param masqué'!$U$2:$U$10,$T$6)>0,1,0) -> 0
F14: =IF(COUNTIF('Param masqué'!$X$2:$X$14,'DEA - Code produit en lignes'!W14)>0,"Pensez à bien vérifier les conditions d'éligibilité au tarif Gestion Durable Certifiée !","") ->  | K14: =IF(J14="","",VLOOKUP(J14,'Grille 2025 définitive'!I:J,2,FALSE)) ->  | L14: =IFERROR(VLOOKUP('DEA - Code produit en lignes'!$J14,'Grille 2025 définitive'!$I:$L,4,FALSE),"") ->  | O14: =IFERROR(VLOOKUP(J14,'Grille 2025 définitive'!$I:$M,5,FALSE),"") ->  | Q14: =IF(C14="","",VLOOKUP(C14,'Param masqué'!$B$3:$C$15,2,FALSE)) ->  | R14: 1 | S14: _ | T14: =IF(D14="","",VLOOKUP(D14,'Param masqué'!$H:$I,2,FALSE)) ->  | U14: 2 | V14: _ | W14: =IF(E14="","",VLOOKUP(E14,'Param masqué'!M:N,2,FALSE)) ->  | X14: 3 | Y14: __ | Z14: =IF(G14="","",VLOOKUP(G14,'Param masqué'!Q:R,2,FALSE)) ->  | AA14: 4 | AD14: =IF(COUNTIF('Param masqué'!$U$2:$U$10,$T$6)>0,1,0) -> 0
F15: =IF(COUNTIF('Param masqué'!$X$2:$X$14,'DEA - Code produit en lignes'!W15)>0,"Pensez à bien vérifier les conditions d'éligibilité au tarif Gestion Durable Certifiée !","") ->  | K15: =IF(J15="","",VLOOKUP(J15,'Grille 2025 définitive'!I:J,2,FALSE)) ->  | L15: =IFERROR(VLOOKUP('DEA - Code produit en lignes'!$J15,'Grille 2025 définitive'!$I:$L,4,FALSE),"") ->  | O15: =IFERROR(VLOOKUP(J15,'Grille 2025 définitive'!$I:$M,5,FALSE),"") ->  | Q15: =IF(C15="","",VLOOKUP(C15,'Param masqué'!$B$3:$C$15,2,FALSE)) ->  | R15: 1 | S15: _ | T15: =IF(D15="","",VLOOKUP(D15,'Param masqué'!$H:$I,2,FALSE)) ->  | U15: 2 | V15: _ | W15: =IF(E15="","",VLOOKUP(E15,'Param masqué'!M:N,2,FALSE)) ->  | X15: 3 | Y15: __ | Z15: =IF(G15="","",VLOOKUP(G15,'Param masqué'!Q:R,2,FALSE)) ->  | AA15: 4 | AD15: =IF(COUNTIF('Param masqué'!$U$2:$U$10,$T$6)>0,1,0) -> 0
F16: =IF(COUNTIF('Param masqué'!$X$2:$X$14,'DEA - Code produit en lignes'!W16)>0,"Pensez à bien vérifier les conditions d'éligibilité au tarif Gestion Durable Certifiée !","") ->  | K16: =IF(J16="","",VLOOKUP(J16,'Grille 2025 définitive'!I:J,2,FALSE)) ->  | L16: =IFERROR(VLOOKUP('DEA - Code produit en lignes'!$J16,'Grille 2025 définitive'!$I:$L,4,FALSE),"") ->  | O16: =IFERROR(VLOOKUP(J16,'Grille 2025 définitive'!$I:$M,5,FALSE),"") ->  | Q16: =IF(C16="","",VLOOKUP(C16,'Param masqué'!$B$3:$C$15,2,FALSE)) ->  | R16: 1 | S16: _ | T16: =IF(D16="","",VLOOKUP(D16,'Param masqué'!$H:$I,2,FALSE)) ->  | U16: 2 | V16: _ | W16: =IF(E16="","",VLOOKUP(E16,'Param masqué'!M:N,2,FALSE)) ->  | X16: 3 | Y16: __ | Z16: =IF(G16="","",VLOOKUP(G16,'Param masqué'!Q:R,2,FALSE)) ->  | AA16: 4 | AD16: =IF(COUNTIF('Param masqué'!$U$2:$U$10,$T$6)>0,1,0) -> 0
F17: =IF(COUNTIF('Param masqué'!$X$2:$X$14,'DEA - Code produit en lignes'!W17)>0,"Pensez à bien vérifier les conditions d'éligibilité au tarif Gestion Durable Certifiée !","") ->  | K17: =IF(J17="","",VLOOKUP(J17,'Grille 2025 définitive'!I:J,2,FALSE)) ->  | L17: =IFERROR(VLOOKUP('DEA - Code produit en lignes'!$J17,'Grille 2025 définitive'!$I:$L,4,FALSE),"") ->  | O17: =IFERROR(VLOOKUP(J17,'Grille 2025 définitive'!$I:$M,5,FALSE),"") ->  | Q17: =IF(C17="","",VLOOKUP(C17,'Param masqué'!$B$3:$C$15,2,FALSE)) ->  | R17: 1 | S17: _ | T17: =IF(D17="","",VLOOKUP(D17,'Param masqué'!$H:$I,2,FALSE)) ->  | U17: 2 | V17: _ | W17: =IF(E17="","",VLOOKUP(E17,'Param masqué'!M:N,2,FALSE)) ->  | X17: 3 | Y17: __ | Z17: =IF(G17="","",VLOOKUP(G17,'Param masqué'!Q:R,2,FALSE)) ->  | AA17: 4 | AD17: =IF(COUNTIF('Param masqué'!$U$2:$U$10,$T$6)>0,1,0) -> 0
F18: =IF(COUNTIF('Param masqué'!$X$2:$X$14,'DEA - Code produit en lignes'!W18)>0,"Pensez à bien vérifier les conditions d'éligibilité au tarif Gestion Durable Certifiée !","") ->  | K18: =IF(J18="","",VLOOKUP(J18,'Grille 2025 définitive'!I:J,2,FALSE)) ->  | L18: =IFERROR(VLOOKUP('DEA - Code produit en lignes'!$J18,'Grille 2025 définitive'!$I:$L,4,FALSE),"") ->  | O18: =IFERROR(VLOOKUP(J18,'Grille 2025 définitive'!$I:$M,5,FALSE),"") ->  | Q18: =IF(C18="","",VLOOKUP(C18,'Param masqué'!$B$3:$C$15,2,FALSE)) ->  | R18: 1 | S18: _ | T18: =IF(D18="","",VLOOKUP(D18,'Param masqué'!$H:$I,2,FALSE)) ->  | U18: 2 | V18: _ | W18: =IF(E18="","",VLOOKUP(E18,'Param masqué'!M:N,2,FALSE)) ->  | X18: 3 | Y18: __ | Z18: =IF(G18="","",VLOOKUP(G18,'Param masqué'!Q:R,2,FALSE)) ->  | AA18: 4 | AD18: =IF(COUNTIF('Param masqué'!$U$2:$U$10,$T$6)>0,1,0) -> 0
F19: =IF(COUNTIF('Param masqué'!$X$2:$X$14,'DEA - Code produit en lignes'!W19)>0,"Pensez à bien vérifier les conditions d'éligibilité au tarif Gestion Durable Certifiée !","") ->  | K19: =IF(J19="","",VLOOKUP(J19,'Grille 2025 définitive'!I:J,2,FALSE)) ->  | L19: =IFERROR(VLOOKUP('DEA - Code produit en lignes'!$J19,'Grille 2025 définitive'!$I:$L,4,FALSE),"") ->  | O19: =IFERROR(VLOOKUP(J19,'Grille 2025 définitive'!$I:$M,5,FALSE),"") ->  | Q19: =IF(C19="","",VLOOKUP(C19,'Param masqué'!$B$3:$C$15,2,FALSE)) ->  | R19: 1 | S19: _ | T19: =IF(D19="","",VLOOKUP(D19,'Param masqué'!$H:$I,2,FALSE)) ->  | U19: 2 | V19: _ | W19: =IF(E19="","",VLOOKUP(E19,'Param masqué'!M:N,2,FALSE)) ->  | X19: 3 | Y19: __ | Z19: =IF(G19="","",VLOOKUP(G19,'Param masqué'!Q:R,2,FALSE)) ->  | AA19: 4 | AD19: =IF(COUNTIF('Param masqué'!$U$2:$U$10,$T$6)>0,1,0) -> 0
F20: =IF(COUNTIF('Param masqué'!$X$2:$X$14,'DEA - Code produit en lignes'!W20)>0,"Pensez à bien vérifier les conditions d'éligibilité au tarif Gestion Durable Certifiée !","") ->  | K20: =IF(J20="","",VLOOKUP(J20,'Grille 2025 définitive'!I:J,2,FALSE)) ->  | L20: =IFERROR(VLOOKUP('DEA - Code produit en lignes'!$J20,'Grille 2025 définitive'!$I:$L,4,FALSE),"") ->  | O20: =IFERROR(VLOOKUP(J20,'Grille 2025 définitive'!$I:$M,5,FALSE),"") ->  | Q20: =IF(C20="","",VLOOKUP(C20,'Param masqué'!$B$3:$C$15,2,FALSE)) ->  | R20: 1 | S20: _ | T20: =IF(D20="","",VLOOKUP(D20,'Param masqué'!$H:$I,2,FALSE)) ->  | U20: 2 | V20: _ | W20: =IF(E20="","",VLOOKUP(E20,'Param masqué'!M:N,2,FALSE)) ->  | X20: 3 | Y20: __ | Z20: =IF(G20="","",VLOOKUP(G20,'Param masqué'!Q:R,2,FALSE)) ->  | AA20: 4 | AD20: =IF(COUNTIF('Param masqué'!$U$2:$U$10,$T$6)>0,1,0) -> 0
F21: =IF(COUNTIF('Param masqué'!$X$2:$X$14,'DEA - Code produit en lignes'!W21)>0,"Pensez à bien vérifier les conditions d'éligibilité au tarif Gestion Durable Certifiée !","") ->  | K21: =IF(J21="","",VLOOKUP(J21,'Grille 2025 définitive'!I:J,2,FALSE)) ->  | L21: =IFERROR(VLOOKUP('DEA - Code produit en lignes'!$J21,'Grille 2025 définitive'!$I:$L,4,FALSE),"") ->  | O21: =IFERROR(VLOOKUP(J21,'Grille 2025 définitive'!$I:$M,5,FALSE),"") ->  | Q21: =IF(C21="","",VLOOKUP(C21,'Param masqué'!$B$3:$C$15,2,FALSE)) ->  | R21: 1 | S21: _ | T21: =IF(D21="","",VLOOKUP(D21,'Param masqué'!$H:$I,2,FALSE)) ->  | U21: 2 | V21: _ | W21: =IF(E21="","",VLOOKUP(E21,'Param masqué'!M:N,2,FALSE)) ->  | X21: 3 | Y21: __ | Z21: =IF(G21="","",VLOOKUP(G21,'Param masqué'!Q:R,2,FALSE)) ->  | AA21: 4 | AD21: =IF(COUNTIF('Param masqué'!$U$2:$U$10,$T$6)>0,1,0) -> 0
F22: =IF(COUNTIF('Param masqué'!$X$2:$X$14,'DEA - Code produit en lignes'!W22)>0,"Pensez à bien vérifier les conditions d'éligibilité au tarif Gestion Durable Certifiée !","") ->  | K22: =IF(J22="","",VLOOKUP(J22,'Grille 2025 définitive'!I:J,2,FALSE)) ->  | L22: =IFERROR(VLOOKUP('DEA - Code produit en lignes'!$J22,'Grille 2025 définitive'!$I:$L,4,FALSE),"") ->  | O22: =IFERROR(VLOOKUP(J22,'Grille 2025 définitive'!$I:$M,5,FALSE),"") ->  | Q22: =IF(C22="","",VLOOKUP(C22,'Param masqué'!$B$3:$C$15,2,FALSE)) ->  | R22: 1 | S22: _ | T22: =IF(D22="","",VLOOKUP(D22,'Param masqué'!$H:$I,2,FALSE)) ->  | U22: 2 | V22: _ | W22: =IF(E22="","",VLOOKUP(E22,'Param masqué'!M:N,2,FALSE)) ->  | X22: 3 | Y22: __ | Z22: =IF(G22="","",VLOOKUP(G22,'Param masqué'!Q:R,2,FALSE)) ->  | AA22: 4 | AD22: =IF(COUNTIF('Param masqué'!$U$2:$U$10,$T$6)>0,1,0) -> 0
F23: =IF(COUNTIF('Param masqué'!$X$2:$X$14,'DEA - Code produit en lignes'!W23)>0,"Pensez à bien vérifier les conditions d'éligibilité au tarif Gestion Durable Certifiée !","") ->  | K23: =IF(J23="","",VLOOKUP(J23,'Grille 2025 définitive'!I:J,2,FALSE)) ->  | L23: =IFERROR(VLOOKUP('DEA - Code produit en lignes'!$J23,'Grille 2025 définitive'!$I:$L,4,FALSE),"") ->  | O23: =IFERROR(VLOOKUP(J23,'Grille 2025 définitive'!$I:$M,5,FALSE),"") ->  | Q23: =IF(C23="","",VLOOKUP(C23,'Param masqué'!$B$3:$C$15,2,FALSE)) ->  | R23: 1 | S23: _ | T23: =IF(D23="","",VLOOKUP(D23,'Param masqué'!$H:$I,2,FALSE)) ->  | U23: 2 | V23: _ | W23: =IF(E23="","",VLOOKUP(E23,'Param masqué'!M:N,2,FALSE)) ->  | X23: 3 | Y23: __ | Z23: =IF(G23="","",VLOOKUP(G23,'Param masqué'!Q:R,2,FALSE)) ->  | AA23: 4 | AD23: =IF(COUNTIF('Param masqué'!$U$2:$U$10,$T$6)>0,1,0) -> 0
F24: =IF(COUNTIF('Param masqué'!$X$2:$X$14,'DEA - Code produit en lignes'!W24)>0,"Pensez à bien vérifier les conditions d'éligibilité au tarif Gestion Durable Certifiée !","") ->  | K24: =IF(J24="","",VLOOKUP(J24,'Grille 2025 définitive'!I:J,2,FALSE)) ->  | L24: =IFERROR(VLOOKUP('DEA - Code produit en lignes'!$J24,'Grille 2025 définitive'!$I:$L,4,FALSE),"") ->  | O24: =IFERROR(VLOOKUP(J24,'Grille 2025 définitive'!$I:$M,5,FALSE),"") ->  | Q24: =IF(C24="","",VLOOKUP(C24,'Param masqué'!$B$3:$C$15,2,FALSE)) ->  | R24: 1 | S24: _ | T24: =IF(D24="","",VLOOKUP(D24,'Param masqué'!$H:$I,2,FALSE)) ->  | U24: 2 | V24: _ | W24: =IF(E24="","",VLOOKUP(E24,'Param masqué'!M:N,2,FALSE)) ->  | X24: 3 | Y24: __ | Z24: =IF(G24="","",VLOOKUP(G24,'Param masqué'!Q:R,2,FALSE)) ->  | AA24: 4 | AD24: =IF(COUNTIF('Param masqué'!$U$2:$U$10,$T$6)>0,1,0) -> 0
F25: =IF(COUNTIF('Param masqué'!$X$2:$X$14,'DEA - Code produit en lignes'!W25)>0,"Pensez à bien vérifier les conditions d'éligibilité au tarif Gestion Durable Certifiée !","") ->  | K25: =IF(J25="","",VLOOKUP(J25,'Grille 2025 définitive'!I:J,2,FALSE)) ->  | L25: =IFERROR(VLOOKUP('DEA - Code produit en lignes'!$J25,'Grille 2025 définitive'!$I:$L,4,FALSE),"") ->  | O25: =IFERROR(VLOOKUP(J25,'Grille 2025 définitive'!$I:$M,5,FALSE),"") ->  | Q25: =IF(C25="","",VLOOKUP(C25,'Param masqué'!$B$3:$C$15,2,FALSE)) ->  | R25: 1 | S25: _ | T25: =IF(D25="","",VLOOKUP(D25,'Param masqué'!$H:$I,2,FALSE)) ->  | U25: 2 | V25: _ | W25: =IF(E25="","",VLOOKUP(E25,'Param masqué'!M:N,2,FALSE)) ->  | X25: 3 | Y25: __ | Z25: =IF(G25="","",VLOOKUP(G25,'Param masqué'!Q:R,2,FALSE)) ->  | AA25: 4 | AD25: =IF(COUNTIF('Param masqué'!$U$2:$U$10,$T$6)>0,1,0) -> 0
F26: =IF(COUNTIF('Param masqué'!$X$2:$X$14,'DEA - Code produit en lignes'!W26)>0,"Pensez à bien vérifier les conditions d'éligibilité au tarif Gestion Durable Certifiée !","") ->  | K26: =IF(J26="","",VLOOKUP(J26,'Grille 2025 définitive'!I:J,2,FALSE)) ->  | L26: =IFERROR(VLOOKUP('DEA - Code produit en lignes'!$J26,'Grille 2025 définitive'!$I:$L,4,FALSE),"") ->  | O26: =IFERROR(VLOOKUP(J26,'Grille 2025 définitive'!$I:$M,5,FALSE),"") ->  | Q26: =IF(C26="","",VLOOKUP(C26,'Param masqué'!$B$3:$C$15,2,FALSE)) ->  | R26: 1 | S26: _ | T26: =IF(D26="","",VLOOKUP(D26,'Param masqué'!$H:$I,2,FALSE)) ->  | U26: 2 | V26: _ | W26: =IF(E26="","",VLOOKUP(E26,'Param masqué'!M:N,2,FALSE)) ->  | X26: 3 | Y26: __ | Z26: =IF(G26="","",VLOOKUP(G26,'Param masqué'!Q:R,2,FALSE)) ->  | AA26: 4 | AD26: =IF(COUNTIF('Param masqué'!$U$2:$U$10,$T$6)>0,1,0) -> 0

Sheet Barème_simplifié
B2: Barème forfaitaire
B4: Meubles, éléments d'ameublement et d'agencement
B6: Catégories | C6: Type de produit | D6: Matériau | E6: Tarif € HT forfaitaire par unité | F6: Code barème à déclarer | H6: Tranches d'unités | I6: Tarif € HT forfaitaire par tranche de 10 | J6: Code barème à déclarer
B7: Toutes catégories | C7: Meubles de rangement | D7: Matériau non spécifié | E7: 5.429408042 | F7: 02017000890 | H7: 10 | I7: =E7*10 -> 54.29408042 | J7: 02017000900
C8: Bureau, table, plan de travail | D8: Matériau non spécifié | E8: 7.773250858 | F8: 02019000890 | H8: 10 | I8: =E8*10 -> 77.73250858 | J8: 02019000900
B9: Appoint | C9: Accessoire (quincaillerie, boîte en plastique) | D9: Matériau non spécifié | E9: 0.5043712388 | F9: 02022000890 | H9: 10 | I9: =E9*10 -> 5.043712388 | J9: 02022000900
C10: Tablettes et étagères | D10: Matériau non spécifié | E10: 1.631789302 | F10: 02020000890 | H10: 10 | I10: =E10*10 -> 16.31789302 | J10: 02020000900
B11: Jardin | C11: Tout type de meuble | D11: Matériau non spécifié | E11: 7.773250858 | F11: 08000000890 | H11: 10 | I11: =E11*10 -> 77.73250858 | J11: 08000000900
B14: Sièges et literie
B16: Catégories | C16: Type de produit | D16: Matériau | E16: Tarif € HT forfaitaire par unité | F16: Code barème à déclarer | H16: Tranches d'unités | I16: Tarif € HT forfaitaire par tranche de 10 | J16: Code barème à déclarer
B17: Sièges | C17: Siège gonflable | D17: Plastique | E17: 2.17 | F17: 09053120890 | H17: 10 | I17: =E17*10 -> 21.7 | J17: 09053120900
C18: Chaise | D18: Non rembourré | E18: 1.372129227 | F18: 09043120890 | H18: 10 | I18: 13.72129227 | J18: 09043120900
C19: Fauteuil et siège de bureau | D19: Rembourré | E19: 4.5 | F19: 09043000890 | H19: 10 | I19: 45 | J19: 09043000900
C20: Canapé (2 places) | D20: Rembourré | E20: 25 | F20: 09044000890 | H20: 10 | I20: 250 | J20: 09044000900
C21: Canapé et salon (3 places et plus) | D21: CA au | E21: 35 | F21: 09045000890 | H21: 10 | I21: 350 | J21: 09045000900
B22: Literie | C22: Matelas | D22: Matériau non spécifié | E22: 12.5 | F22: 04061120890 | H22: 10 | I22: 125 | J22: 04061120900
C23: Pieds de lit | D23: Matériau non spécifié | E23: 0.5 | F23: 04025120890 | H23: 10 | I23: 5 | J23: 04025120900
C24: Matelas gonflable | D24: Plastique | E24: 1.7 | F24: 04023000890 | H24: 10 | I24: 17 | J24: 04023000900
C25: Surmatelas | D25: Matériau non spécifié | E25: 6.25 | F25: 04060120890 | H25: 10 | I25: 62.5 | J25: 04060120900
C26: Sommmier | D26: Rembourré | E26: 7.083 | F26: 04062000890 | H26: 10 | I26: 70.83 | J26: 04062000900
C27: Lit coffre | D27: Mécanique ou sans | E27: 11.25 | F27: 04024000890 | H27: 10 | I27: 112.5 | J27: 04024000900
C28: Cadre de lit | D28: Matériau non spécifié | E28: 8.34 | F28: 03018120280 | H28: 10 | I28: 83.4 | J28: 03018120280
C29: Tête de lit | D29: Matériau non spécifié | E29: 5.16 | F29: 04077130120 | H29: 10 | I29: 51.6 | J29: 04077130120
B30: Produits rembourrés d'assisse et couchage | C30: Coussin/oreiller | D30: Rembourré | E30: 0.33 | F30: 11031120890 | H30: 10 | I30: 3.3 | J30: 11031120900
C31: Couette / sac de couchage | D31: Rembourré | E31: 0.5 | F31: 11029120890 | H31: 10 | I31: 5 | J31: 11029120900
B32: Décoration textile | C32: Tout type | D32: Matériau non spécifié | E32: 0.75 | F32: 12071120890 | H32: 10 | I32: 7.5 | J32: 12071120900

Sheet Codes éco-part
B1: Codes éco-participation communs aux 4 filières | F1: 0
B2: La table ci-dessous contient les codes éco-participations et les montants correspondants pour 2024 et 2025
B5: Code éco-participation | C5: Montant € HT / article | D5: Montant € TTC / article (TVA à 20%)
B6: 002 | C6: 0.04 | D6: 0.05 | E6: =B6 -> 002
B7: 003 | C7: 0.08 | D7: 0.1 | E7: =B7 -> 003
B8: 004 | C8: 0.13 | D8: 0.16 | E8: 004
B9: 005 | C9: 0.17 | D9: 0.2 | E9: 005
B10: 006 | C10: 0.33 | D10: 0.4 | E10: 006
B11: 008 | C11: 0.83 | D11: 1 | E11: 008
B12: 009 | C12: 1.25 | D12: 1.5 | E12: 009
B13: 010 | C13: 1.67 | D13: 2 | E13: 010
B14: 011 | C14: 2.08 | D14: 2.5 | E14: 011
B15: 012 | C15: 2.5 | D15: 3 | E15: 012
B16: 013 | C16: 2.92 | D16: 3.5 | E16: 013
B17: 014 | C17: 3.33 | D17: 4 | E17: 014
B18: 015 | C18: 3.75 | D18: 4.5 | E18: 015
B19: 016 | C19: 4.17 | D19: 5 | E19: 016
B20: 017 | C20: 5.42 | D20: 6.5 | E20: 017
B21: 018 | C21: 5.83 | D21: 7 | E21: 018
B22: 019 | C22: 6.67 | D22: 8 | E22: 019
B23: 020 | C23: 7.5 | D23: 9 | E23: 020
B24: 021 | C24: 8.33 | D24: 10 | E24: 021
B25: 022 | C25: 10.83 | D25: 13 | E25: 022
B26: 023 | C26: 15 | D26: 18 | E26: 023
B27: 024 | C27: 19.17 | D27: 23 | E27: 024
B28: 026 | C28: 27.5 | D28: 33 | E28: 026
B29: 027 | C29: 31.67 | D29: 38 | E29: 027
B30: 029 | C30: 40 | D30: 48 | E30: 029
B31: 032 | C31: 52.5 | D31: 63 | E31: 032
B32: 036 | C32: 69.17 | D32: 83 | E32: 036
B33: 042 | C33: 5 | D33: 6 | E33: 042
B34: 043 | C34: 0.34 | D34: 0.41 | E34: 043
B35: 044 | C35: 0.68 | D35: 0.82 | E35: 044
B36: 047 | C36: 0.02 | D36: 0.02 | E36: 047
B37: 048 | C37: 0.05 | D37: 0.06 | E37: 048
B38: 049 | C38: 0.09 | D38: 0.11 | E38: 049
B39: 050 | C39: 0.15 | D39: 0.18 | E39: 050
B40: 051 | C40: 0.21 | D40: 0.25 | E40: 051
B41: 053 | C41: 0.5 | D41: 0.6 | E41: 053
B42: 054 | C42: 0.92 | D42: 1.1 | E42: 054
B43: 055 | C43: 0.96 | D43: 1.15 | E43: 055
B44: 056 | C44: 1 | D44: 1.2 | E44: 056
B45: 057 | C45: 1.42 | D45: 1.7 | E45: 057
B46: 058 | C46: 1.46 | D46: 1.75 | E46: 058
B47: 059 | C47: 1.5 | D47: 1.8 | E47: 059
B48: 060 | C48: 1.92 | D48: 2.3 | E48: 060
B49: 061 | C49: 2 | D49: 2.4 | E49: 061
B50: 062 | C50: 2.33 | D50: 2.8 | E50: 062
B51: 065 | C51: 4.58 | D51: 5.5 | E51: 065
B52: 067 | C52: 7.08 | D52: 8.5 | E52: 067
B53: 068 | C53: 7.92 | D53: 9.5 | E53: 068
B54: 069 | C54: 8.75 | D54: 10.5 | E54: 069
B55: 070 | C55: 9.17 | D55: 11 | E55: 070
B56: 072 | C56: 12.5 | D56: 15 | E56: 072
B57: 073 | C57: 17.5 | D57: 21 | E57: 073
B58: 074 | C58: 21.67 | D58: 26 | E58: 074
B59: 075 | C59: 26.67 | D59: 32 | E59: 075
B60: 079 | C60: 51.67 | D60: 62 | E60: 079
B61: 080 | C61: 61.67 | D61: 74 | E61: 080
B62: 083 | C62: 76.67 | D62: 92 | E62: 083
B63: 084 | C63: 86.67 | D63: 104 | E63: 084
B64: 088 | C64: 106.67 | D64: 128 | E64: 088
B65: 092 | C65: 0.03 | D65: 0.04 | E65: 092
B66: 094 | C66: 0.1 | D66: 0.12 | E66: 094
B67: 095 | C67: 0.25 | D67: 0.3 | E67: 095
B68: 096 | C68: 0.06 | D68: 0.07 | E68: 096
B69: 097 | C69: 0.12 | D69: 0.14 | E69: 097
B70: 098 | C70: 0.14 | D70: 0.17 | E70: 098
B71: 099 | C71: 0.16 | D71: 0.19 | E71: =B71 -> 099
B72: 100 | C72: 0.18 | D72: 0.22 | E72: 100
B73: 101 | C73: 0.2 | D73: 0.24 | E73: 101
B74: 103 | C74: 0.27 | D74: 0.32 | E74: 103
B75: 104 | C75: 0.31 | D75: 0.37 | E75: 104
B76: 105 | C76: 0.4 | D76: 0.48 | E76: 105
B77: 106 | C77: 0.46 | D77: 0.55 | E77: 106
B78: 107 | C78: 0.47 | D78: 0.56 | E78: 107
B79: 108 | C79: 0.49 | D79: 0.59 | E79: 108
B80: 109 | C80: 0.51 | D80: 0.61 | E80: 109
B81: 110 | C81: 0.67 | D81: 0.8 | E81: 110
B82: 111 | C82: 0.69 | D82: 0.83 | E82: 111
B83: 112 | C83: 0.81 | D83: 0.97 | E83: 112
B84: 113 | C84: 1.08 | D84: 1.3 | E84: 113
B85: 114 | C85: 1.21 | D85: 1.45 | E85: 114
B86: 115 | C86: 1.33 | D86: 1.6 | E86: 115
B87: 116 | C87: 1.71 | D87: 2.05 | E87: 116
B88: 117 | C88: 1.83 | D88: 2.2 | E88: 117
B89: 118 | C89: 2.25 | D89: 2.7 | E89: 118
B90: 119 | C90: 2.67 | D90: 3.2 | E90: 119
B91: 120 | C91: 2.75 | D91: 3.3 | E91: 120
B92: 121 | C92: 3.08 | D92: 3.7 | E92: 121
B93: 122 | C93: 3.25 | D93: 3.9 | E93: 122
B94: 123 | C94: 3.58 | D94: 4.3 | E94: 123
B95: 124 | C95: 3.67 | D95: 4.4 | E95: 124
B96: 125 | C96: 3.92 | D96: 4.7 | E96: 125
B97: 126 | C97: 4.42 | D97: 5.3 | E97: 126
B98: 127 | C98: 4.5 | D98: 5.4 | E98: 127
B99: 128 | C99: 4.67 | D99: 5.6 | E99: 128
B100: 129 | C100: 4.75 | D100: 5.7 | E100: 129
B101: 130 | C101: 4.83 | D101: 5.8 | E101: 130
B102: 131 | C102: 5.17 | D102: 6.2 | E102: 131
B103: 132 | C103: 5.33 | D103: 6.4 | E103: 132
B104: 133 | C104: 5.58 | D104: 6.7 | E104: 133
B105: 134 | C105: 6.08 | D105: 7.3 | E105: 134
B106: 135 | C106: 6.25 | D106: 7.5 | E106: 135
B107: 136 | C107: 6.92 | D107: 8.3 | E107: 136
B108: 137 | C108: 8.83 | D108: 10.6 | E108: 137
B109: 138 | C109: 10 | D109: 12 | E109: 138
B110: 139 | C110: 10.42 | D110: 12.5 | E110: 139
B111: 140 | C111: 11.25 | D111: 13.5 | E111: 140
B112: 141 | C112: 11.67 | D112: 14 | E112: 141
B113: 142 | C113: 13.33 | D113: 16 | E113: 142
B114: 143 | C114: 14.17 | D114: 17 | E114: 143
B115: 144 | C115: 15.42 | D115: 18.5 | E115: 144
B116: 145 | C116: 16.25 | D116: 19.5 | E116: 145
B117: 146 | C117: 17.08 | D117: 20.5 | E117: 146
B118: 147 | C118: 18.33 | D118: 22 | E118: 147
B119: 148 | C119: 20 | D119: 24 | E119: 148
B120: 149 | C120: 20.83 | D120: 25 | E120: 149
B121: 150 | C121: 22.5 | D121: 27 | E121: 150
B122: 151 | C122: 25 | D122: 30 | E122: 151
B123: 152 | C123: 26.92 | D123: 32.3 | E123: 152
B124: 153 | C124: 30 | D124: 36 | E124: 153
B125: 154 | C125: 30.83 | D125: 37 | E125: 154
B126: 155 | C126: 31.25 | D126: 37.5 | E126: 155
B127: 156 | C127: 32.17 | D127: 38.6 | E127: 156
B128: 157 | C128: 32.5 | D128: 39 | E128: 157
B129: 158 | C129: 34.17 | D129: 41 | E129: 158
B130: 159 | C130: 35 | D130: 42 | E130: 159
B131: 160 | C131: 35.42 | D131: 42.5 | E131: 160
B132: 161 | C132: 37.42 | D132: 44.9 | E132: 161
B133: 162 | C133: 37.5 | D133: 45 | E133: 162
B134: 163 | C134: 39.17 | D134: 47 | E134: 163
B135: 164 | C135: 42.5 | D135: 51 | E135: =B135 -> 164
B136: 165 | C136: 42.67 | D136: 51.2 | E136: 165
B137: 166 | C137: 42.92 | D137: 51.5 | E137: 166
B138: 167 | C138: 43.33 | D138: 52 | E138: 167
B139: 168 | C139: 43.75 | D139: 52.5 | E139: 168
B140: 169 | C140: 45 | D140: 54 | E140: 169
B141: 170 | C141: 45.42 | D141: 54.5 | E141: 170
B142: 171 | C142: 47.5 | D142: 57 | E142: 171
B143: 172 | C143: 47.92 | D143: 57.5 | E143: 172
B144: 173 | C144: 50 | D144: 60 | E144: 173
B145: 174 | C145: 50.42 | D145: 60.5 | E145: 174
B146: 175 | C146: 53.17 | D146: 63.8 | E146: 175
B147: 176 | C147: 55.42 | D147: 66.5 | E147: 176
B148: 177 | C148: 55.83 | D148: 67 | E148: 177
B149: 178 | C149: 56.25 | D149: 67.5 | E149: 178
B150: 179 | C150: 58.42 | D150: 70.1 | E150: 179
B151: 180 | C151: 60 | D151: 72 | E151: 180
B152: 181 | C152: 60.42 | D152: 72.5 | E152: 181
B153: 182 | C153: 62.5 | D153: 75 | E153: 182
B154: 183 | C154: 63.67 | D154: 76.4 | E154: 183
B155: 184 | C155: 64.17 | D155: 77 | E155: 184
B156: 185 | C156: 65.42 | D156: 78.5 | E156: 185
B157: 186 | C157: 68.33 | D157: 82 | E157: 186
B158: 187 | C158: 68.75 | D158: 82.5 | E158: 187
B159: 188 | C159: 68.92 | D159: 82.7 | E159: 188
B160: 189 | C160: 72.5 | D160: 87 | E160: 189
B161: 190 | C161: 72.92 | D161: 87.5 | E161: 190
B162: 191 | C162: 74.17 | D162: 89 | E162: 191
B163: 192 | C163: 75 | D163: 90 | E163: 192
B164: 193 | C164: 75.42 | D164: 90.5 | E164: 193
B165: 194 | C165: 77.92 | D165: 93.5 | E165: 194
B166: 195 | C166: 79.42 | D166: 95.3 | E166: 195
B167: 196 | C167: 80.83 | D167: 97 | E167: 196
B168: 197 | C168: 81.25 | D168: 97.5 | E168: 197
B169: 198 | C169: 84.17 | D169: 101 | E169: 198
B170: 199 | C170: 84.67 | D170: 101.6 | E170: 199
B171: 200 | C171: 85 | D171: 102 | E171: 200
B172: 201 | C172: 85.42 | D172: 102.5 | E172: 201
B173: 202 | C173: 87.5 | D173: 105 | E173: 202
B174: 203 | C174: 89.92 | D174: 107.9 | E174: 203
B175: 204 | C175: 93.75 | D175: 112.5 | E175: 204
B176: 205 | C176: 95.17 | D176: 114.2 | E176: 205
B177: 206 | C177: 95.42 | D177: 114.5 | E177: 206
B178: 207 | C178: 100 | D178: 120 | E178: 207
B179: 208 | C179: 100.42 | D179: 120.5 | E179: 208
B180: 209 | C180: 104.17 | D180: 125 | E180: 209
B181: 210 | C181: 105.42 | D181: 126.5 | E181: 210
B182: 211 | C182: 105.67 | D182: 126.8 | E182: 211
B183: 212 | C183: 106.25 | D183: 127.5 | E183: 212
B184: 213 | C184: 110.92 | D184: 133.1 | E184: 213
B185: 214 | C185: 112.5 | D185: 135 | E185: 214
B186: 215 | C186: 112.92 | D186: 135.5 | E186: 215
B187: 216 | C187: 115.42 | D187: 138.5 | E187: 216
B188: 217 | C188: 117.92 | D188: 141.5 | E188: 217
B189: 218 | C189: 118.75 | D189: 142.5 | E189: 218
B190: 219 | C190: 121.67 | D190: 146 | E190: 219
B191: 220 | C191: 125 | D191: 150 | E191: 220
B192: 221 | C192: 125.42 | D192: 150.5 | E192: 221
B193: 222 | C193: 129.17 | D193: 155 | E193: 222
B194: 223 | C194: 130.42 | D194: 156.5 | E194: 223
B195: 224 | C195: 131.25 | D195: 157.5 | E195: 224
B196: 225 | C196: 135.42 | D196: 162.5 | E196: 225
B197: 226 | C197: 139.17 | D197: 167 | E197: 226
B198: 227 | C198: 140.42 | D198: 168.5 | E198: 227
B199: 228 | C199: 145.42 | D199: 174.5 | E199: =B199 -> 228
B200: 229 | C200: 147.92 | D200: 177.5 | E200: 229
B201: 230 | C201: 151.67 | D201: 182 | E201: 230
B202: 231 | C202: 155.42 | D202: 186.5 | E202: 231
... 659 more rows

Sheet Grille 2025 définitive
A1: Code Catégorie | B1: Libellé Cat | C1: Code Type de produit | D1: Libellé Type | E1: Code Matériau | F1: Libellé Mat | G1: Code Caractéristique | H1: Libellé Carac | I1: Code produit | J1: Libellé | K1: évolutivité | L1: Tarif HT | M1: Code Eco part | N1: Tarif TTC
A2: 01 | B2: Meubles_de_salon_sejour_salle_a_manger | C2: 017 | D2: Rangement (hors tabletterie) | E2: 46 | F2: ABS à plus de 95% | G2: 106 | H2: Compris entre 0,1 kg et 0,25 kg exclus | I2: 01017461060 | J2: Meuble de salon/salle à manger, de type rangement (hors tabletterie) en ABS à plus de 95% pesant entre 0,1 kg et 0,25 kg exclus | L2: 0.04 | M2: 002 | N2: 0.05
A3: 01 | B3: Meubles_de_salon_sejour_salle_a_manger | C3: 017 | D3: Rangement (hors tabletterie) | E3: 46 | F3: ABS à plus de 95% | G3: 106 | H3: Compris entre 0,1 kg et 0,25 kg exclus | I3: 01017461061 | J3: Meuble de salon/salle à manger, de type rangement (hors tabletterie) en ABS à plus de 95% pesant entre 0,1 kg et 0,25 kg exclus, de conception evolutive | K3: évolutif | L3: 0.04 | M3: 002 | N3: 0.05
A4: 01 | B4: Meubles_de_salon_sejour_salle_a_manger | C4: 017 | D4: Rangement (hors tabletterie) | E4: 46 | F4: ABS à plus de 95% | G4: 020 | H4: Compris entre 0,25 kg et 0,5 kg exclus | I4: 01017460200 | J4: Meuble de salon/salle à manger, de type rangement (hors tabletterie) en ABS à plus de 95% pesant entre 0,25 kg et 0,5 kg exclus | L4: 0.07 | M4: 247 | N4: 0.08
A5: 01 | B5: Meubles_de_salon_sejour_salle_a_manger | C5: 017 | D5: Rangement (hors tabletterie) | E5: 46 | F5: ABS à plus de 95% | G5: 107 | H5: Compris entre 0,25 kg et 0,5 kg exclus | I5: 01017461070 | J5: Meuble de salon/salle à manger, de type rangement (hors tabletterie) en ABS à plus de 95% pesant entre 0,25 kg et 0,5 kg exclus | L5: 0.07 | M5: 247 | N5: 0.08
A6: 01 | B6: Meubles_de_salon_sejour_salle_a_manger | C6: 017 | D6: Rangement (hors tabletterie) | E6: 46 | F6: ABS à plus de 95% | G6: 020 | H6: Compris entre 0,25 kg et 0,5 kg exclus | I6: 01017460201 | J6: Meuble de salon/salle à manger, de type rangement (hors tabletterie) en ABS à plus de 95% pesant entre 0,25 kg et 0,5 kg exclus, de conception evolutive | K6: évolutif | L6: 0.07 | M6: 247 | N6: 0.08
A7: 01 | B7: Meubles_de_salon_sejour_salle_a_manger | C7: 017 | D7: Rangement (hors tabletterie) | E7: 46 | F7: ABS à plus de 95% | G7: 107 | H7: Compris entre 0,25 kg et 0,5 kg exclus | I7: 01017461071 | J7: Meuble de salon/salle à manger, de type rangement (hors tabletterie) en ABS à plus de 95% pesant entre 0,25 kg et 0,5 kg exclus, de conception evolutive | K7: évolutif | L7: 0.07 | M7: 247 | N7: 0.08
A8: 01 | B8: Meubles_de_salon_sejour_salle_a_manger | C8: 017 | D8: Rangement (hors tabletterie) | E8: 46 | F8: ABS à plus de 95% | G8: 021 | H8: Compris entre 0,5 kg et 1 kg exclus | I8: 01017460210 | J8: Meuble de salon/salle à manger, de type rangement (hors tabletterie) en ABS à plus de 95% pesant entre 0,5 kg et 1 kg exclus | L8: 0.15 | M8: 050 | N8: 0.18
A9: 01 | B9: Meubles_de_salon_sejour_salle_a_manger | C9: 017 | D9: Rangement (hors tabletterie) | E9: 46 | F9: ABS à plus de 95% | G9: 021 | H9: Compris entre 0,5 kg et 1 kg exclus | I9: 01017460211 | J9: Meuble de salon/salle à manger, de type rangement (hors tabletterie) en ABS à plus de 95% pesant entre 0,5 kg et 1 kg exclus, de conception evolutive | K9: évolutif | L9: 0.15 | M9: 050 | N9: 0.18
A10: 01 | B10: Meubles_de_salon_sejour_salle_a_manger | C10: 017 | D10: Rangement (hors tabletterie) | E10: 46 | F10: ABS à plus de 95% | G10: 022 | H10: Compris entre 1 kg et 2 kg exclus | I10: 01017460220 | J10: Meuble de salon/salle à manger, de type rangement (hors tabletterie) en ABS à plus de 95% pesant entre 1 kg et 2 kg exclus | L10: 0.31 | M10: 104 | N10: 0.37
A11: 01 | B11: Meubles_de_salon_sejour_salle_a_manger | C11: 017 | D11: Rangement (hors tabletterie) | E11: 46 | F11: ABS à plus de 95% | G11: 022 | H11: Compris entre 1 kg et 2 kg exclus | I11: 01017460221 | J11: Meuble de salon/salle à manger, de type rangement (hors tabletterie) en ABS à plus de 95% pesant entre 1 kg et 2 kg exclus, de conception evolutive | K11: évolutif | L11: 0.31 | M11: 104 | N11: 0.37
A12: 01 | B12: Meubles_de_salon_sejour_salle_a_manger | C12: 017 | D12: Rangement (hors tabletterie) | E12: 46 | F12: ABS à plus de 95% | G12: 025 | H12: Compris entre 10 kg et 20 kg exclus | I12: 01017460250 | J12: Meuble de salon/salle à manger, de type rangement (hors tabletterie) en ABS à plus de 95% pesant entre 10 kg et 20 kg exclus | L12: 1.78 | M12: 688 | N12: 2.14
A13: 01 | B13: Meubles_de_salon_sejour_salle_a_manger | C13: 017 | D13: Rangement (hors tabletterie) | E13: 46 | F13: ABS à plus de 95% | G13: 025 | H13: Compris entre 10 kg et 20 kg exclus | I13: 01017460251 | J13: Meuble de salon/salle à manger, de type rangement (hors tabletterie) en ABS à plus de 95% pesant entre 10 kg et 20 kg exclus, de conception evolutive | K13: évolutif | L13: 1.78 | M13: 688 | N13: 2.14
A14: 01 | B14: Meubles_de_salon_sejour_salle_a_manger | C14: 017 | D14: Rangement (hors tabletterie) | E14: 46 | F14: ABS à plus de 95% | G14: 030 | H14: Compris entre 100 kg et 150 kg exclus | I14: 01017460300 | J14: Meuble de salon/salle à manger, de type rangement (hors tabletterie) en ABS à plus de 95% pesant entre 100 kg et 150 kg exclus | L14: 15.46 | M14: 693 | N14: 18.55
A15: 01 | B15: Meubles_de_salon_sejour_salle_a_manger | C15: 017 | D15: Rangement (hors tabletterie) | E15: 46 | F15: ABS à plus de 95% | G15: 030 | H15: Compris entre 100 kg et 150 kg exclus | I15: 01017460301 | J15: Meuble de salon/salle à manger, de type rangement (hors tabletterie) en ABS à plus de 95% pesant entre 100 kg et 150 kg exclus, de conception evolutive | K15: évolutif | L15: 15.46 | M15: 693 | N15: 18.55
A16: 01 | B16: Meubles_de_salon_sejour_salle_a_manger | C16: 017 | D16: Rangement (hors tabletterie) | E16: 46 | F16: ABS à plus de 95% | G16: 031 | H16: Compris entre 150 kg et 200 kg exclus | I16: 01017460310 | J16: Meuble de salon/salle à manger, de type rangement (hors tabletterie) en ABS à plus de 95% pesant entre 150 kg et 200 kg exclus | L16: 21.65 | M16: 694 | N16: 25.98
A17: 01 | B17: Meubles_de_salon_sejour_salle_a_manger | C17: 017 | D17: Rangement (hors tabletterie) | E17: 46 | F17: ABS à plus de 95% | G17: 031 | H17: Compris entre 150 kg et 200 kg exclus | I17: 01017460311 | J17: Meuble de salon/salle à manger, de type rangement (hors tabletterie) en ABS à plus de 95% pesant entre 150 kg et 200 kg exclus, de conception evolutive | K17: évolutif | L17: 21.65 | M17: 694 | N17: 25.98
A18: 01 | B18: Meubles_de_salon_sejour_salle_a_manger | C18: 017 | D18: Rangement (hors tabletterie) | E18: 46 | F18: ABS à plus de 95% | G18: 023 | H18: Compris entre 2 kg et 5 kg exclus | I18: 01017460230 | J18: Meuble de salon/salle à manger, de type rangement (hors tabletterie) en ABS à plus de 95% pesant entre 2 kg et 5 kg exclus | L18: 0.46 | M18: 106 | N18: 0.55
A19: 01 | B19: Meubles_de_salon_sejour_salle_a_manger | C19: 017 | D19: Rangement (hors tabletterie) | E19: 46 | F19: ABS à plus de 95% | G19: 023 | H19: Compris entre 2 kg et 5 kg exclus | I19: 01017460231 | J19: Meuble de salon/salle à manger, de type rangement (hors tabletterie) en ABS à plus de 95% pesant entre 2 kg et 5 kg exclus, de conception evolutive | K19: évolutif | L19: 0.46 | M19: 106 | N19: 0.55
A20: 01 | B20: Meubles_de_salon_sejour_salle_a_manger | C20: 017 | D20: Rangement (hors tabletterie) | E20: 46 | F20: ABS à plus de 95% | G20: 026 | H20: Compris entre 20 kg et 30 kg exclus | I20: 01017460260 | J20: Meuble de salon/salle à manger, de type rangement (hors tabletterie) en ABS à plus de 95% pesant entre 20 kg et 30 kg exclus | L20: 2.94 | M20: 689 | N20: 3.53
A21: 01 | B21: Meubles_de_salon_sejour_salle_a_manger | C21: 017 | D21: Rangement (hors tabletterie) | E21: 46 | F21: ABS à plus de 95% | G21: 026 | H21: Compris entre 20 kg et 30 kg exclus | I21: 01017460261 | J21: Meuble de salon/salle à manger, de type rangement (hors tabletterie) en ABS à plus de 95% pesant entre 20 kg et 30 kg exclus, de conception evolutive | K21: évolutif | L21: 2.94 | M21: 689 | N21: 3.53
A22: 01 | B22: Meubles_de_salon_sejour_salle_a_manger | C22: 017 | D22: Rangement (hors tabletterie) | E22: 46 | F22: ABS à plus de 95% | G22: 032 | H22: Compris entre 200 kg et 250 kg exclus | I22: 01017460320 | J22: Meuble de salon/salle à manger, de type rangement (hors tabletterie) en ABS à plus de 95% pesant entre 200 kg et 250 kg exclus | L22: 27.83 | M22: 695 | N22: 33.4
A23: 01 | B23: Meubles_de_salon_sejour_salle_a_manger | C23: 017 | D23: Rangement (hors tabletterie) | E23: 46 | F23: ABS à plus de 95% | G23: 032 | H23: Compris entre 200 kg et 250 kg exclus | I23: 01017460321 | J23: Meuble de salon/salle à manger, de type rangement (hors tabletterie) en ABS à plus de 95% pesant entre 200 kg et 250 kg exclus, de conception evolutive | K23: évolutif | L23: 27.83 | M23: 695 | N23: 33.4
A24: 01 | B24: Meubles_de_salon_sejour_salle_a_manger | C24: 017 | D24: Rangement (hors tabletterie) | E24: 46 | F24: ABS à plus de 95% | G24: 033 | H24: Compris entre 250 kg et 300 kg exclus | I24: 01017460330 | J24: Meuble de salon/salle à manger, de type rangement (hors tabletterie) en ABS à plus de 95% pesant entre 250 kg et 300 kg exclus | L24: 34.02 | M24: 696 | N24: 40.82
A25: 01 | B25: Meubles_de_salon_sejour_salle_a_manger | C25: 017 | D25: Rangement (hors tabletterie) | E25: 46 | F25: ABS à plus de 95% | G25: 033 | H25: Compris entre 250 kg et 300 kg exclus | I25: 01017460331 | J25: Meuble de salon/salle à manger, de type rangement (hors tabletterie) en ABS à plus de 95% pesant entre 250 kg et 300 kg exclus, de conception evolutive | K25: évolutif | L25: 34.02 | M25: 696 | N25: 40.82
A26: 01 | B26: Meubles_de_salon_sejour_salle_a_manger | C26: 017 | D26: Rangement (hors tabletterie) | E26: 46 | F26: ABS à plus de 95% | G26: 027 | H26: Compris entre 30 kg et 40 kg exclus | I26: 01017460270 | J26: Meuble de salon/salle à manger, de type rangement (hors tabletterie) en ABS à plus de 95% pesant entre 30 kg et 40 kg exclus | L26: 4.1 | M26: 690 | N26: 4.92
A27: 01 | B27: Meubles_de_salon_sejour_salle_a_manger | C27: 017 | D27: Rangement (hors tabletterie) | E27: 46 | F27: ABS à plus de 95% | G27: 027 | H27: Compris entre 30 kg et 40 kg exclus | I27: 01017460271 | J27: Meuble de salon/salle à manger, de type rangement (hors tabletterie) en ABS à plus de 95% pesant entre 30 kg et 40 kg exclus, de conception evolutive | K27: évolutif | L27: 4.1 | M27: 690 | N27: 4.92
A28: 01 | B28: Meubles_de_salon_sejour_salle_a_manger | C28: 017 | D28: Rangement (hors tabletterie) | E28: 46 | F28: ABS à plus de 95% | G28: 028 | H28: Compris entre 40 kg et 60 kg exclus | I28: 01017460280 | J28: Meuble de salon/salle à manger, de type rangement (hors tabletterie) en ABS à plus de 95% pesant entre 40 kg et 60 kg exclus | L28: 5.87 | M28: 691 | N28: 7.04
A29: 01 | B29: Meubles_de_salon_sejour_salle_a_manger | C29: 017 | D29: Rangement (hors tabletterie) | E29: 46 | F29: ABS à plus de 95% | G29: 028 | H29: Compris entre 40 kg et 60 kg exclus | I29: 01017460281 | J29: Meuble de salon/salle à manger, de type rangement (hors tabletterie) en ABS à plus de 95% pesant entre 40 kg et 60 kg exclus, de conception evolutive | K29: évolutif | L29: 5.87 | M29: 691 | N29: 7.04
A30: 01 | B30: Meubles_de_salon_sejour_salle_a_manger | C30: 017 | D30: Rangement (hors tabletterie) | E30: 46 | F30: ABS à plus de 95% | G30: 024 | H30: Compris entre 5 kg et 10 kg exclus | I30: 01017460240 | J30: Meuble de salon/salle à manger, de type rangement (hors tabletterie) en ABS à plus de 95% pesant entre 5 kg et 10 kg exclus | L30: 1 | M30: 056 | N30: 1.2
A31: 01 | B31: Meubles_de_salon_sejour_salle_a_manger | C31: 017 | D31: Rangement (hors tabletterie) | E31: 46 | F31: ABS à plus de 95% | G31: 024 | H31: Compris entre 5 kg et 10 kg exclus | I31: 01017460241 | J31: Meuble de salon/salle à manger, de type rangement (hors tabletterie) en ABS à plus de 95% pesant entre 5 kg et 10 kg exclus, de conception evolutive | K31: évolutif | L31: 1 | M31: 056 | N31: 1.2
A32: 01 | B32: Meubles_de_salon_sejour_salle_a_manger | C32: 017 | D32: Rangement (hors tabletterie) | E32: 46 | F32: ABS à plus de 95% | G32: 029 | H32: Compris entre 60 kg et 100 kg exclus | I32: 01017460290 | J32: Meuble de salon/salle à manger, de type rangement (hors tabletterie) en ABS à plus de 95% pesant entre 60 kg et 100 kg exclus | L32: 9.28 | M32: 692 | N32: 11.14
A33: 01 | B33: Meubles_de_salon_sejour_salle_a_manger | C33: 017 | D33: Rangement (hors tabletterie) | E33: 46 | F33: ABS à plus de 95% | G33: 029 | H33: Compris entre 60 kg et 100 kg exclus | I33: 01017460291 | J33: Meuble de salon/salle à manger, de type rangement (hors tabletterie) en ABS à plus de 95% pesant entre 60 kg et 100 kg exclus, de conception evolutive | K33: évolutif | L33: 9.28 | M33: 692 | N33: 11.14
A34: 01 | B34: Meubles_de_salon_sejour_salle_a_manger | C34: 017 | D34: Rangement (hors tabletterie) | E34: 46 | F34: ABS à plus de 95% | G34: 108 | H34: Inférieur strictement à 0,1 kg | I34: 01017461080 | J34: Meuble de salon/salle à manger, de type rangement (hors tabletterie) en ABS à plus de 95% pesant strictement moins de 0,1 kg | L34: 0.02 | M34: 047 | N34: 0.02
A35: 01 | B35: Meubles_de_salon_sejour_salle_a_manger | C35: 017 | D35: Rangement (hors tabletterie) | E35: 46 | F35: ABS à plus de 95% | G35: 108 | H35: Inférieur strictement à 0,1 kg | I35: 01017461081 | J35: Meuble de salon/salle à manger, de type rangement (hors tabletterie) en ABS à plus de 95% pesant strictement moins de 0,1 kg, de conception evolutive | K35: évolutif | L35: 0.02 | M35: 047 | N35: 0.02
A36: 01 | B36: Meubles_de_salon_sejour_salle_a_manger | C36: 017 | D36: Rangement (hors tabletterie) | E36: 46 | F36: ABS à plus de 95% | G36: 034 | H36: Supérieur à 300 kg | I36: 01017460340 | J36: Meuble de salon/salle à manger, de type rangement (hors tabletterie) en ABS à plus de 95% pesant plus de 300 kg | L36: 49.48 | M36: 697 | N36: 59.38
A37: 01 | B37: Meubles_de_salon_sejour_salle_a_manger | C37: 017 | D37: Rangement (hors tabletterie) | E37: 46 | F37: ABS à plus de 95% | G37: 034 | H37: Supérieur à 300 kg | I37: 01017460341 | J37: Meuble de salon/salle à manger, de type rangement (hors tabletterie) en ABS à plus de 95% pesant plus de 300 kg, de conception evolutive | K37: évolutif | L37: 49.48 | M37: 697 | N37: 59.38
A38: 01 | B38: Meubles_de_salon_sejour_salle_a_manger | C38: 019 | D38: Bureaux, tables… | E38: 46 | F38: ABS à plus de 95% | G38: 106 | H38: Compris entre 0,1 kg et 0,25 kg exclus | I38: 01019461060 | J38: Meuble de salon/salle à manger, de type bureaux, tables… en ABS à plus de 95% pesant entre 0,1 kg et 0,25 kg exclus | L38: 0.04 | M38: 002 | N38: 0.05
A39: 01 | B39: Meubles_de_salon_sejour_salle_a_manger | C39: 019 | D39: Bureaux, tables… | E39: 46 | F39: ABS à plus de 95% | G39: 106 | H39: Compris entre 0,1 kg et 0,25 kg exclus | I39: 01019461061 | J39: Meuble de salon/salle à manger, de type bureaux, tables… en ABS à plus de 95% pesant entre 0,1 kg et 0,25 kg exclus, de conception evolutive | K39: évolutif | L39: 0.04 | M39: 002 | N39: 0.05
A40: 01 | B40: Meubles_de_salon_sejour_salle_a_manger | C40: 019 | D40: Bureaux, tables… | E40: 46 | F40: ABS à plus de 95% | G40: 020 | H40: Compris entre 0,25 kg et 0,5 kg exclus | I40: 01019460200 | J40: Meuble de salon/salle à manger, de type bureaux, tables… en ABS à plus de 95% pesant entre 0,25 kg et 0,5 kg exclus | L40: 0.07 | M40: 247 | N40: 0.08
A41: 01 | B41: Meubles_de_salon_sejour_salle_a_manger | C41: 019 | D41: Bureaux, tables… | E41: 46 | F41: ABS à plus de 95% | G41: 107 | H41: Compris entre 0,25 kg et 0,5 kg exclus | I41: 01019461070 | J41: Meuble de salon/salle à manger, de type bureaux, tables… en ABS à plus de 95% pesant entre 0,25 kg et 0,5 kg exclus | L41: 0.07 | M41: 247 | N41: 0.08
A42: 01 | B42: Meubles_de_salon_sejour_salle_a_manger | C42: 019 | D42: Bureaux, tables… | E42: 46 | F42: ABS à plus de 95% | G42: 020 | H42: Compris entre 0,25 kg et 0,5 kg exclus | I42: 01019460201 | J42: Meuble de salon/salle à manger, de type bureaux, tables… en ABS à plus de 95% pesant entre 0,25 kg et 0,5 kg exclus, de conception evolutive | K42: évolutif | L42: 0.07 | M42: 247 | N42: 0.08
A43: 01 | B43: Meubles_de_salon_sejour_salle_a_manger | C43: 019 | D43: Bureaux, tables… | E43: 46 | F43: ABS à plus de 95% | G43: 107 | H43: Compris entre 0,25 kg et 0,5 kg exclus | I43: 01019461071 | J43: Meuble de salon/salle à manger, de type bureaux, tables… en ABS à plus de 95% pesant entre 0,25 kg et 0,5 kg exclus, de conception evolutive | K43: évolutif | L43: 0.07 | M43: 247 | N43: 0.08
A44: 01 | B44: Meubles_de_salon_sejour_salle_a_manger | C44: 019 | D44: Bureaux, tables… | E44: 46 | F44: ABS à plus de 95% | G44: 021 | H44: Compris entre 0,5 kg et 1 kg exclus | I44: 01019460210 | J44: Meuble de salon/salle à manger, de type bureaux, tables… en ABS à plus de 95% pesant entre 0,5 kg et 1 kg exclus | L44: 0.15 | M44: 050 | N44: 0.18
A45: 01 | B45: Meubles_de_salon_sejour_salle_a_manger | C45: 019 | D45: Bureaux, tables… | E45: 46 | F45: ABS à plus de 95% | G45: 021 | H45: Compris entre 0,5 kg et 1 kg exclus | I45: 01019460211 | J45: Meuble de salon/salle à manger, de type bureaux, tables… en ABS à plus de 95% pesant entre 0,5 kg et 1 kg exclus, de conception evolutive | K45: évolutif | L45: 0.15 | M45: 050 | N45: 0.18
A46: 01 | B46: Meubles_de_salon_sejour_salle_a_manger | C46: 019 | D46: Bureaux, tables… | E46: 46 | F46: ABS à plus de 95% | G46: 022 | H46: Compris entre 1 kg et 2 kg exclus | I46: 01019460220 | J46: Meuble de salon/salle à manger, de type bureaux, tables… en ABS à plus de 95% pesant entre 1 kg et 2 kg exclus | L46: 0.31 | M46: 104 | N46: 0.37
A47: 01 | B47: Meubles_de_salon_sejour_salle_a_manger | C47: 019 | D47: Bureaux, tables… | E47: 46 | F47: ABS à plus de 95% | G47: 022 | H47: Compris entre 1 kg et 2 kg exclus | I47: 01019460221 | J47: Meuble de salon/salle à manger, de type bureaux, tables… en ABS à plus de 95% pesant entre 1 kg et 2 kg exclus, de conception evolutive | K47: évolutif | L47: 0.31 | M47: 104 | N47: 0.37
A48: 01 | B48: Meubles_de_salon_sejour_salle_a_manger | C48: 019 | D48: Bureaux, tables… | E48: 46 | F48: ABS à plus de 95% | G48: 025 | H48: Compris entre 10 kg et 20 kg exclus | I48: 01019460250 | J48: Meuble de salon/salle à manger, de type bureaux, tables… en ABS à plus de 95% pesant entre 10 kg et 20 kg exclus | L48: 1.78 | M48: 688 | N48: 2.14
A49: 01 | B49: Meubles_de_salon_sejour_salle_a_manger | C49: 019 | D49: Bureaux, tables… | E49: 46 | F49: ABS à plus de 95% | G49: 025 | H49: Compris entre 10 kg et 20 kg exclus | I49: 01019460251 | J49: Meuble de salon/salle à manger, de type bureaux, tables… en ABS à plus de 95% pesant entre 10 kg et 20 kg exclus, de conception evolutive | K49: évolutif | L49: 1.78 | M49: 688 | N49: 2.14
A50: 01 | B50: Meubles_de_salon_sejour_salle_a_manger | C50: 019 | D50: Bureaux, tables… | E50: 46 | F50: ABS à plus de 95% | G50: 030 | H50: Compris entre 100 kg et 150 kg exclus | I50: 01019460300 | J50: Meuble de salon/salle à manger, de type bureaux, tables… en ABS à plus de 95% pesant entre 100 kg et 150 kg exclus | L50: 15.46 | M50: 693 | N50: 18.55
A51: 01 | B51: Meubles_de_salon_sejour_salle_a_manger | C51: 019 | D51: Bureaux, tables… | E51: 46 | F51: ABS à plus de 95% | G51: 030 | H51: Compris entre 100 kg et 150 kg exclus | I51: 01019460301 | J51: Meuble de salon/salle à manger, de type bureaux, tables… en ABS à plus de 95% pesant entre 100 kg et 150 kg exclus, de conception evolutive | K51: évolutif | L51: 15.46 | M51: 693 | N51: 18.55
A52: 01 | B52: Meubles_de_salon_sejour_salle_a_manger | C52: 019 | D52: Bureaux, tables… | E52: 46 | F52: ABS à plus de 95% | G52: 031 | H52: Compris entre 150 kg et 200 kg exclus | I52: 01019460310 | J52: Meuble de salon/salle à manger, de type bureaux, tables… en ABS à plus de 95% pesant entre 150 kg et 200 kg exclus | L52: 21.65 | M52: 694 | N52: 25.98
A53: 01 | B53: Meubles_de_salon_sejour_salle_a_manger | C53: 019 | D53: Bureaux, tables… | E53: 46 | F53: ABS à plus de 95% | G53: 031 | H53: Compris entre 150 kg et 200 kg exclus | I53: 01019460311 | J53: Meuble de salon/salle à manger, de type bureaux, tables… en ABS à plus de 95% pesant entre 150 kg et 200 kg exclus, de conception evolutive | K53: évolutif | L53: 21.65 | M53: 694 | N53: 25.98
A54: 01 | B54: Meubles_de_salon_sejour_salle_a_manger | C54: 019 | D54: Bureaux, tables… | E54: 46 | F54: ABS à plus de 95% | G54: 023 | H54: Compris entre 2 kg et 5 kg exclus | I54: 01019460230 | J54: Meuble de salon/salle à manger, de type bureaux, tables… en ABS à plus de 95% pesant entre 2 kg et 5 kg exclus | L54: 0.46 | M54: 106 | N54: 0.55
A55: 01 | B55: Meubles_de_salon_sejour_salle_a_manger | C55: 019 | D55: Bureaux, tables… | E55: 46 | F55: ABS à plus de 95% | G55: 023 | H55: Compris entre 2 kg et 5 kg exclus | I55: 01019460231 | J55: Meuble de salon/salle à manger, de type bureaux, tables… en ABS à plus de 95% pesant entre 2 kg et 5 kg exclus, de conception evolutive | K55: évolutif | L55: 0.46 | M55: 106 | N55: 0.55
A56: 01 | B56: Meubles_de_salon_sejour_salle_a_manger | C56: 019 | D56: Bureaux, tables… | E56: 46 | F56: ABS à plus de 95% | G56: 026 | H56: Compris entre 20 kg et 30 kg exclus | I56: 01019460260 | J56: Meuble de salon/salle à manger, de type bureaux, tables… en ABS à plus de 95% pesant entre 20 kg et 30 kg exclus | L56: 2.94 | M56: 689 | N56: 3.53
A57: 01 | B57: Meubles_de_salon_sejour_salle_a_manger | C57: 019 | D57: Bureaux, tables… | E57: 46 | F57: ABS à plus de 95% | G57: 026 | H57: Compris entre 20 kg et 30 kg exclus | I57: 01019460261 | J57: Meuble de salon/salle à manger, de type bureaux, tables… en ABS à plus de 95% pesant entre 20 kg et 30 kg exclus, de conception evolutive | K57: évolutif | L57: 2.94 | M57: 689 | N57: 3.53
A58: 01 | B58: Meubles_de_salon_sejour_salle_a_manger | C58: 019 | D58: Bureaux, tables… | E58: 46 | F58: ABS à plus de 95% | G58: 032 | H58: Compris entre 200 kg et 250 kg exclus | I58: 01019460320 | J58: Meuble de salon/salle à manger, de type bureaux, tables… en ABS à plus de 95% pesant entre 200 kg et 250 kg exclus | L58: 27.83 | M58: 695 | N58: 33.4
A59: 01 | B59: Meubles_de_salon_sejour_salle_a_manger | C59: 019 | D59: Bureaux, tables… | E59: 46 | F59: ABS à plus de 95% | G59: 032 | H59: Compris entre 200 kg et 250 kg exclus | I59: 01019460321 | J59: Meuble de salon/salle à manger, de type bureaux, tables… en ABS à plus de 95% pesant entre 200 kg et 250 kg exclus, de conception evolutive | K59: évolutif | L59: 27.83 | M59: 695 | N59: 33.4
A60: 01 | B60: Meubles_de_salon_sejour_salle_a_manger | C60: 019 | D60: Bureaux, tables… | E60: 46 | F60: ABS à plus de 95% | G60: 033 | H60: Compris entre 250 kg et 300 kg exclus | I60: 01019460330 | J60: Meuble de salon/salle à manger, de type bureaux, tables… en ABS à plus de 95% pesant entre 250 kg et 300 kg exclus | L60: 34.02 | M60: 696 | N60: 40.82
A61: 01 | B61: Meubles_de_salon_sejour_salle_a_manger | C61: 019 | D61: Bureaux, tables… | E61: 46 | F61: ABS à plus de 95% | G61: 033 | H61: Compris entre 250 kg et 300 kg exclus | I61: 01019460331 | J61: Meuble de salon/salle à manger, de type bureaux, tables… en ABS à plus de 95% pesant entre 250 kg et 300 kg exclus, de conception evolutive | K61: évolutif | L61: 34.02 | M61: 696 | N61: 40.82
A62: 01 | B62: Meubles_de_salon_sejour_salle_a_manger | C62: 019 | D62: Bureaux, tables… | E62: 46 | F62: ABS à plus de 95% | G62: 027 | H62: Compris entre 30 kg et 40 kg exclus | I62: 01019460270 | J62: Meuble de salon/salle à manger, de type bureaux, tables… en ABS à plus de 95% pesant entre 30 kg et 40 kg exclus | L62: 4.1 | M62: 690 | N62: 4.92
A63: 01 | B63: Meubles_de_salon_sejour_salle_a_manger | C63: 019 | D63: Bureaux, tables… | E63: 46 | F63: ABS à plus de 95% | G63: 027 | H63: Compris entre 30 kg et 40 kg exclus | I63: 01019460271 | J63: Meuble de salon/salle à manger, de type bureaux, tables… en ABS à plus de 95% pesant entre 30 kg et 40 kg exclus, de conception evolutive | K63: évolutif | L63: 4.1 | M63: 690 | N63: 4.92
A64: 01 | B64: Meubles_de_salon_sejour_salle_a_manger | C64: 019 | D64: Bureaux, tables… | E64: 46 | F64: ABS à plus de 95% | G64: 028 | H64: Compris entre 40 kg et 60 kg exclus | I64: 01019460280 | J64: Meuble de salon/salle à manger, de type bureaux, tables… en ABS à plus de 95% pesant entre 40 kg et 60 kg exclus | L64: 5.87 | M64: 691 | N64: 7.04
A65: 01 | B65: Meubles_de_salon_sejour_salle_a_manger | C65: 019 | D65: Bureaux, tables… | E65: 46 | F65: ABS à plus de 95% | G65: 028 | H65: Compris entre 40 kg et 60 kg exclus | I65: 01019460281 | J65: Meuble de salon/salle à manger, de type bureaux, tables… en ABS à plus de 95% pesant entre 40 kg et 60 kg exclus, de conception evolutive | K65: évolutif | L65: 5.87 | M65: 691 | N65: 7.04
A66: 01 | B66: Meubles_de_salon_sejour_salle_a_manger | C66: 019 | D66: Bureaux, tables… | E66: 46 | F66: ABS à plus de 95% | G66: 024 | H66: Compris entre 5 kg et 10 kg exclus | I66: 01019460240 | J66: Meuble de salon/salle à manger, de type bureaux, tables… en ABS à plus de 95% pesant entre 5 kg et 10 kg exclus | L66: 1 | M66: 056 | N66: 1.2
A67: 01 | B67: Meubles_de_salon_sejour_salle_a_manger | C67: 019 | D67: Bureaux, tables… | E67: 46 | F67: ABS à plus de 95% | G67: 024 | H67: Compris entre 5 kg et 10 kg exclus | I67: 01019460241 | J67: Meuble de salon/salle à manger, de type bureaux, tables… en ABS à plus de 95% pesant entre 5 kg et 10 kg exclus, de conception evolutive | K67: évolutif | L67: 1 | M67: 056 | N67: 1.2
A68: 01 | B68: Meubles_de_salon_sejour_salle_a_manger | C68: 019 | D68: Bureaux, tables… | E68: 46 | F68: ABS à plus de 95% | G68: 029 | H68: Compris entre 60 kg et 100 kg exclus | I68: 01019460290 | J68: Meuble de salon/salle à manger, de type bureaux, tables… en ABS à plus de 95% pesant entre 60 kg et 100 kg exclus | L68: 9.28 | M68: 692 | N68: 11.14
A69: 01 | B69: Meubles_de_salon_sejour_salle_a_manger | C69: 019 | D69: Bureaux, tables… | E69: 46 | F69: ABS à plus de 95% | G69: 029 | H69: Compris entre 60 kg et 100 kg exclus | I69: 01019460291 | J69: Meuble de salon/salle à manger, de type bureaux, tables… en ABS à plus de 95% pesant entre 60 kg et 100 kg exclus, de conception evolutive | K69: évolutif | L69: 9.28 | M69: 692 | N69: 11.14
A70: 01 | B70: Meubles_de_salon_sejour_salle_a_manger | C70: 019 | D70: Bureaux, tables… | E70: 46 | F70: ABS à plus de 95% | G70: 108 | H70: Inférieur strictement à 0,1 kg | I70: 01019461080 | J70: Meuble de salon/salle à manger, de type bureaux, tables… en ABS à plus de 95% pesant strictement moins de 0,1 kg | L70: 0.02 | M70: 047 | N70: 0.02
A71: 01 | B71: Meubles_de_salon_sejour_salle_a_manger | C71: 019 | D71: Bureaux, tables… | E71: 46 | F71: ABS à plus de 95% | G71: 108 | H71: Inférieur strictement à 0,1 kg | I71: 01019461081 | J71: Meuble de salon/salle à manger, de type bureaux, tables… en ABS à plus de 95% pesant strictement moins de 0,1 kg, de conception evolutive | K71: évolutif | L71: 0.02 | M71: 047 | N71: 0.02
A72: 01 | B72: Meubles_de_salon_sejour_salle_a_manger | C72: 019 | D72: Bureaux, tables… | E72: 46 | F72: ABS à plus de 95% | G72: 034 | H72: Supérieur à 300 kg | I72: 01019460340 | J72: Meuble de salon/salle à manger, de type bureaux, tables… en ABS à plus de 95% pesant plus de 300 kg | L72: 49.48 | M72: 697 | N72: 59.38
A73: 01 | B73: Meubles_de_salon_sejour_salle_a_manger | C73: 019 | D73: Bureaux, tables… | E73: 46 | F73: ABS à plus de 95% | G73: 034 | H73: Supérieur à 300 kg | I73: 01019460341 | J73: Meuble de salon/salle à manger, de type bureaux, tables… en ABS à plus de 95% pesant plus de 300 kg, de conception evolutive | K73: évolutif | L73: 49.48 | M73: 697 | N73: 59.38
A74: 01 | B74: Meubles_de_salon_sejour_salle_a_manger | C74: 020 | D74: Tabletterie, panneaux à la découpe (au poids) | E74: 46 | F74: ABS à plus de 95% | G74: 106 | H74: Compris entre 0,1 kg et 0,25 kg exclus | I74: 01020461060 | J74: Meuble de salon/salle à manger, de type tabletterie, panneaux à la découpe (au poids) en ABS à plus de 95% pesant entre 0,1 kg et 0,25 kg exclus | L74: 0.04 | M74: 002 | N74: 0.05
A75: 01 | B75: Meubles_de_salon_sejour_salle_a_manger | C75: 020 | D75: Tabletterie, panneaux à la découpe (au poids) | E75: 46 | F75: ABS à plus de 95% | G75: 020 | H75: Compris entre 0,25 kg et 0,5 kg exclus | I75: 01020460200 | J75: Meuble de salon/salle à manger, de type tabletterie, panneaux à la découpe (au poids) en ABS à plus de 95% pesant entre 0,25 kg et 0,5 kg exclus | L75: 0.07 | M75: 247 | N75: 0.08
A76: 01 | B76: Meubles_de_salon_sejour_salle_a_manger | C76: 020 | D76: Tabletterie, panneaux à la découpe (au poids) | E76: 46 | F76: ABS à plus de 95% | G76: 107 | H76: Compris entre 0,25 kg et 0,5 kg exclus | I76: 01020461070 | J76: Meuble de salon/salle à manger, de type tabletterie, panneaux à la découpe (au poids) en ABS à plus de 95% pesant entre 0,25 kg et 0,5 kg exclus | L76: 0.07 | M76: 247 | N76: 0.08
A77: 01 | B77: Meubles_de_salon_sejour_salle_a_manger | C77: 020 | D77: Tabletterie, panneaux à la découpe (au poids) | E77: 46 | F77: ABS à plus de 95% | G77: 021 | H77: Compris entre 0,5 kg et 1 kg exclus | I77: 01020460210 | J77: Meuble de salon/salle à manger, de type tabletterie, panneaux à la découpe (au poids) en ABS à plus de 95% pesant entre 0,5 kg et 1 kg exclus | L77: 0.15 | M77: 050 | N77: 0.18
A78: 01 | B78: Meubles_de_salon_sejour_salle_a_manger | C78: 020 | D78: Tabletterie, panneaux à la découpe (au poids) | E78: 46 | F78: ABS à plus de 95% | G78: 022 | H78: Compris entre 1 kg et 2 kg exclus | I78: 01020460220 | J78: Meuble de salon/salle à manger, de type tabletterie, panneaux à la découpe (au poids) en ABS à plus de 95% pesant entre 1 kg et 2 kg exclus | L78: 0.31 | M78: 104 | N78: 0.37
A79: 01 | B79: Meubles_de_salon_sejour_salle_a_manger | C79: 020 | D79: Tabletterie, panneaux à la découpe (au poids) | E79: 46 | F79: ABS à plus de 95% | G79: 025 | H79: Compris entre 10 kg et 20 kg exclus | I79: 01020460250 | J79: Meuble de salon/salle à manger, de type tabletterie, panneaux à la découpe (au poids) en ABS à plus de 95% pesant entre 10 kg et 20 kg exclus | L79: 1.78 | M79: 688 | N79: 2.14
A80: 01 | B80: Meubles_de_salon_sejour_salle_a_manger | C80: 020 | D80: Tabletterie, panneaux à la découpe (au poids) | E80: 46 | F80: ABS à plus de 95% | G80: 030 | H80: Compris entre 100 kg et 150 kg exclus | I80: 01020460300 | J80: Meuble de salon/salle à manger, de type tabletterie, panneaux à la découpe (au poids) en ABS à plus de 95% pesant entre 100 kg et 150 kg exclus | L80: 15.46 | M80: 693 | N80: 18.55
A81: 01 | B81: Meubles_de_salon_sejour_salle_a_manger | C81: 020 | D81: Tabletterie, panneaux à la découpe (au poids) | E81: 46 | F81: ABS à plus de 95% | G81: 031 | H81: Compris entre 150 kg et 200 kg exclus | I81: 01020460310 | J81: Meuble de salon/salle à manger, de type tabletterie, panneaux à la découpe (au poids) en ABS à plus de 95% pesant entre 150 kg et 200 kg exclus | L81: 21.65 | M81: 694 | N81: 25.98
A82: 01 | B82: Meubles_de_salon_sejour_salle_a_manger | C82: 020 | D82: Tabletterie, panneaux à la découpe (au poids) | E82: 46 | F82: ABS à plus de 95% | G82: 023 | H82: Compris entre 2 kg et 5 kg exclus | I82: 01020460230 | J82: Meuble de salon/salle à manger, de type tabletterie, panneaux à la découpe (au poids) en ABS à plus de 95% pesant entre 2 kg et 5 kg exclus | L82: 0.46 | M82: 106 | N82: 0.55
A83: 01 | B83: Meubles_de_salon_sejour_salle_a_manger | C83: 020 | D83: Tabletterie, panneaux à la découpe (au poids) | E83: 46 | F83: ABS à plus de 95% | G83: 026 | H83: Compris entre 20 kg et 30 kg exclus | I83: 01020460260 | J83: Meuble de salon/salle à manger, de type tabletterie, panneaux à la découpe (au poids) en ABS à plus de 95% pesant entre 20 kg et 30 kg exclus | L83: 2.94 | M83: 689 | N83: 3.53
A84: 01 | B84: Meubles_de_salon_sejour_salle_a_manger | C84: 020 | D84: Tabletterie, panneaux à la découpe (au poids) | E84: 46 | F84: ABS à plus de 95% | G84: 032 | H84: Compris entre 200 kg et 250 kg exclus | I84: 01020460320 | J84: Meuble de salon/salle à manger, de type tabletterie, panneaux à la découpe (au poids) en ABS à plus de 95% pesant entre 200 kg et 250 kg exclus | L84: 27.83 | M84: 695 | N84: 33.4
A85: 01 | B85: Meubles_de_salon_sejour_salle_a_manger | C85: 020 | D85: Tabletterie, panneaux à la découpe (au poids) | E85: 46 | F85: ABS à plus de 95% | G85: 033 | H85: Compris entre 250 kg et 300 kg exclus | I85: 01020460330 | J85: Meuble de salon/salle à manger, de type tabletterie, panneaux à la découpe (au poids) en ABS à plus de 95% pesant entre 250 kg et 300 kg exclus | L85: 34.02 | M85: 696 | N85: 40.82
A86: 01 | B86: Meubles_de_salon_sejour_salle_a_manger | C86: 020 | D86: Tabletterie, panneaux à la découpe (au poids) | E86: 46 | F86: ABS à plus de 95% | G86: 027 | H86: Compris entre 30 kg et 40 kg exclus | I86: 01020460270 | J86: Meuble de salon/salle à manger, de type tabletterie, panneaux à la découpe (au poids) en ABS à plus de 95% pesant entre 30 kg et 40 kg exclus | L86: 4.1 | M86: 690 | N86: 4.92
A87: 01 | B87: Meubles_de_salon_sejour_salle_a_manger | C87: 020 | D87: Tabletterie, panneaux à la découpe (au poids) | E87: 46 | F87: ABS à plus de 95% | G87: 028 | H87: Compris entre 40 kg et 60 kg exclus | I87: 01020460280 | J87: Meuble de salon/salle à manger, de type tabletterie, panneaux à la découpe (au poids) en ABS à plus de 95% pesant entre 40 kg et 60 kg exclus | L87: 5.87 | M87: 691 | N87: 7.04
A88: 01 | B88: Meubles_de_salon_sejour_salle_a_manger | C88: 020 | D88: Tabletterie, panneaux à la découpe (au poids) | E88: 46 | F88: ABS à plus de 95% | G88: 024 | H88: Compris entre 5 kg et 10 kg exclus | I88: 01020460240 | J88: Meuble de salon/salle à manger, de type tabletterie, panneaux à la découpe (au poids) en ABS à plus de 95% pesant entre 5 kg et 10 kg exclus | L88: 1 | M88: 056 | N88: 1.2
A89: 01 | B89: Meubles_de_salon_sejour_salle_a_manger | C89: 020 | D89: Tabletterie, panneaux à la découpe (au poids) | E89: 46 | F89: ABS à plus de 95% | G89: 029 | H89: Compris entre 60 kg et 100 kg exclus | I89: 01020460290 | J89: Meuble de salon/salle à manger, de type tabletterie, panneaux à la découpe (au poids) en ABS à plus de 95% pesant entre 60 kg et 100 kg exclus | L89: 9.28 | M89: 692 | N89: 11.14
A90: 01 | B90: Meubles_de_salon_sejour_salle_a_manger | C90: 020 | D90: Tabletterie, panneaux à la découpe (au poids) | E90: 46 | F90: ABS à plus de 95% | G90: 108 | H90: Inférieur strictement à 0,1 kg | I90: 01020461080 | J90: Meuble de salon/salle à manger, de type tabletterie, panneaux à la découpe (au poids) en ABS à plus de 95% pesant strictement moins de 0,1 kg | L90: 0.02 | M90: 047 | N90: 0.02
A91: 01 | B91: Meubles_de_salon_sejour_salle_a_manger | C91: 020 | D91: Tabletterie, panneaux à la découpe (au poids) | E91: 46 | F91: ABS à plus de 95% | G91: 034 | H91: Supérieur à 300 kg | I91: 01020460340 | J91: Meuble de salon/salle à manger, de type tabletterie, panneaux à la découpe (au poids) en ABS à plus de 95% pesant plus de 300 kg | L91: 49.48 | M91: 697 | N91: 59.38
A92: 01 | B92: Meubles_de_salon_sejour_salle_a_manger | C92: 021 | D92: Plans de pose et plans de travail | E92: 46 | F92: ABS à plus de 95% | G92: 106 | H92: Compris entre 0,1 kg et 0,25 kg exclus | I92: 01021461060 | J92: Meuble de salon/salle à manger, de type plans de pose et plans de travail en ABS à plus de 95% pesant entre 0,1 kg et 0,25 kg exclus | L92: 0.04 | M92: 002 | N92: 0.05
A93: 01 | B93: Meubles_de_salon_sejour_salle_a_manger | C93: 021 | D93: Plans de pose et plans de travail | E93: 46 | F93: ABS à plus de 95% | G93: 020 | H93: Compris entre 0,25 kg et 0,5 kg exclus | I93: 01021460200 | J93: Meuble de salon/salle à manger, de type plans de pose et plans de travail en ABS à plus de 95% pesant entre 0,25 kg et 0,5 kg exclus | L93: 0.07 | M93: 247 | N93: 0.08
A94: 01 | B94: Meubles_de_salon_sejour_salle_a_manger | C94: 021 | D94: Plans de pose et plans de travail | E94: 46 | F94: ABS à plus de 95% | G94: 107 | H94: Compris entre 0,25 kg et 0,5 kg exclus | I94: 01021461070 | J94: Meuble de salon/salle à manger, de type plans de pose et plans de travail en ABS à plus de 95% pesant entre 0,25 kg et 0,5 kg exclus | L94: 0.07 | M94: 247 | N94: 0.08
A95: 01 | B95: Meubles_de_salon_sejour_salle_a_manger | C95: 021 | D95: Plans de pose et plans de travail | E95: 46 | F95: ABS à plus de 95% | G95: 021 | H95: Compris entre 0,5 kg et 1 kg exclus | I95: 01021460210 | J95: Meuble de salon/salle à manger, de type plans de pose et plans de travail en ABS à plus de 95% pesant entre 0,5 kg et 1 kg exclus | L95: 0.15 | M95: 050 | N95: 0.18
A96: 01 | B96: Meubles_de_salon_sejour_salle_a_manger | C96: 021 | D96: Plans de pose et plans de travail | E96: 46 | F96: ABS à plus de 95% | G96: 022 | H96: Compris entre 1 kg et 2 kg exclus | I96: 01021460220 | J96: Meuble de salon/salle à manger, de type plans de pose et plans de travail en ABS à plus de 95% pesant entre 1 kg et 2 kg exclus | L96: 0.31 | M96: 104 | N96: 0.37
A97: 01 | B97: Meubles_de_salon_sejour_salle_a_manger | C97: 021 | D97: Plans de pose et plans de travail | E97: 46 | F97: ABS à plus de 95% | G97: 025 | H97: Compris entre 10 kg et 20 kg exclus | I97: 01021460250 | J97: Meuble de salon/salle à manger, de type plans de pose et plans de travail en ABS à plus de 95% pesant entre 10 kg et 20 kg exclus | L97: 1.78 | M97: 688 | N97: 2.14
A98: 01 | B98: Meubles_de_salon_sejour_salle_a_manger | C98: 021 | D98: Plans de pose et plans de travail | E98: 46 | F98: ABS à plus de 95% | G98: 030 | H98: Compris entre 100 kg et 150 kg exclus | I98: 01021460300 | J98: Meuble de salon/salle à manger, de type plans de pose et plans de travail en ABS à plus de 95% pesant entre 100 kg et 150 kg exclus | L98: 15.46 | M98: 693 | N98: 18.55
A99: 01 | B99: Meubles_de_salon_sejour_salle_a_manger | C99: 021 | D99: Plans de pose et plans de travail | E99: 46 | F99: ABS à plus de 95% | G99: 031 | H99: Compris entre 150 kg et 200 kg exclus | I99: 01021460310 | J99: Meuble de salon/salle à manger, de type plans de pose et plans de travail en ABS à plus de 95% pesant entre 150 kg et 200 kg exclus | L99: 21.65 | M99: 694 | N99: 25.98
A100: 01 | B100: Meubles_de_salon_sejour_salle_a_manger | C100: 021 | D100: Plans de pose et plans de travail | E100: 46 | F100: ABS à plus de 95% | G100: 023 | H100: Compris entre 2 kg et 5 kg exclus | I100: 01021460230 | J100: Meuble de salon/salle à manger, de type plans de pose et plans de travail en ABS à plus de 95% pesant entre 2 kg et 5 kg exclus | L100: 0.46 | M100: 106 | N100: 0.55
A101: 01 | B101: Meubles_de_salon_sejour_salle_a_manger | C101: 021 | D101: Plans de pose et plans de travail | E101: 46 | F101: ABS à plus de 95% | G101: 026 | H101: Compris entre 20 kg et 30 kg exclus | I101: 01021460260 | J101: Meuble de salon/salle à manger, de type plans de pose et plans de travail en ABS à plus de 95% pesant entre 20 kg et 30 kg exclus | L101: 2.94 | M101: 689 | N101: 3.53
A102: 01 | B102: Meubles_de_salon_sejour_salle_a_manger | C102: 021 | D102: Plans de pose et plans de travail | E102: 46 | F102: ABS à plus de 95% | G102: 032 | H102: Compris entre 200 kg et 250 kg exclus | I102: 01021460320 | J102: Meuble de salon/salle à manger, de type plans de pose et plans de travail en ABS à plus de 95% pesant entre 200 kg et 250 kg exclus | L102: 27.83 | M102: 695 | N102: 33.4
A103: 01 | B103: Meubles_de_salon_sejour_salle_a_manger | C103: 021 | D103: Plans de pose et plans de travail | E103: 46 | F103: ABS à plus de 95% | G103: 033 | H103: Compris entre 250 kg et 300 kg exclus | I103: 01021460330 | J103: Meuble de salon/salle à manger, de type plans de pose et plans de travail en ABS à plus de 95% pesant entre 250 kg et 300 kg exclus | L103: 34.02 | M103: 696 | N103: 40.82
A104: 01 | B104: Meubles_de_salon_sejour_salle_a_manger | C104: 021 | D104: Plans de pose et plans de travail | E104: 46 | F104: ABS à plus de 95% | G104: 027 | H104: Compris entre 30 kg et 40 kg exclus | I104: 01021460270 | J104: Meuble de salon/salle à manger, de type plans de pose et plans de travail en ABS à plus de 95% pesant entre 30 kg et 40 kg exclus | L104: 4.1 | M104: 690 | N104: 4.92
A105: 01 | B105: Meubles_de_salon_sejour_salle_a_manger | C105: 021 | D105: Plans de pose et plans de travail | E105: 46 | F105: ABS à plus de 95% | G105: 028 | H105: Compris entre 40 kg et 60 kg exclus | I105: 01021460280 | J105: Meuble de salon/salle à manger, de type plans de pose et plans de travail en ABS à plus de 95% pesant entre 40 kg et 60 kg exclus | L105: 5.87 | M105: 691 | N105: 7.04
A106: 01 | B106: Meubles_de_salon_sejour_salle_a_manger | C106: 021 | D106: Plans de pose et plans de travail | E106: 46 | F106: ABS à plus de 95% | G106: 024 | H106: Compris entre 5 kg et 10 kg exclus | I106: 01021460240 | J106: Meuble de salon/salle à manger, de type plans de pose et plans de travail en ABS à plus de 95% pesant entre 5 kg et 10 kg exclus | L106: 1 | M106: 056 | N106: 1.2
A107: 01 | B107: Meubles_de_salon_sejour_salle_a_manger | C107: 021 | D107: Plans de pose et plans de travail | E107: 46 | F107: ABS à plus de 95% | G107: 029 | H107: Compris entre 60 kg et 100 kg exclus | I107: 01021460290 | J107: Meuble de salon/salle à manger, de type plans de pose et plans de travail en ABS à plus de 95% pesant entre 60 kg et 100 kg exclus | L107: 9.28 | M107: 692 | N107: 11.14
A108: 01 | B108: Meubles_de_salon_sejour_salle_a_manger | C108: 021 | D108: Plans de pose et plans de travail | E108: 46 | F108: ABS à plus de 95% | G108: 097 | H108: de 0 à 60cm de longueur | I108: 01021460970 | J108: Meuble de salon/salle à manger, de type plans de pose et plans de travail en ABS à plus de 95% de 0 à 60cm de longueur | L108: 2.94 | M108: 689 | N108: 3.53
A109: 01 | B109: Meubles_de_salon_sejour_salle_a_manger | C109: 021 | D109: Plans de pose et plans de travail | E109: 46 | F109: ABS à plus de 95% | G109: 099 | H109: de 120 à 180cm de longueur | I109: 01021460990 | J109: Meuble de salon/salle à manger, de type plans de pose et plans de travail en ABS à plus de 95% de 120 à 180cm de longueur | L109: 5.87 | M109: 691 | N109: 7.04
A110: 01 | B110: Meubles_de_salon_sejour_salle_a_manger | C110: 021 | D110: Plans de pose et plans de travail | E110: 46 | F110: ABS à plus de 95% | G110: 100 | H110: de 180 à 240cm de longueur | I110: 01021461000 | J110: Meuble de salon/salle à manger, de type plans de pose et plans de travail en ABS à plus de 95% de 180 à 240cm de longueur | L110: 9.28 | M110: 692 | N110: 11.14
A111: 01 | B111: Meubles_de_salon_sejour_salle_a_manger | C111: 021 | D111: Plans de pose et plans de travail | E111: 46 | F111: ABS à plus de 95% | G111: 098 | H111: de 60 à 120cm de longueur | I111: 01021460980 | J111: Meuble de salon/salle à manger, de type plans de pose et plans de travail en ABS à plus de 95% de 60 à 120cm de longueur | L111: 4.1 | M111: 690 | N111: 4.92
A112: 01 | B112: Meubles_de_salon_sejour_salle_a_manger | C112: 021 | D112: Plans de pose et plans de travail | E112: 46 | F112: ABS à plus de 95% | G112: 108 | H112: Inférieur strictement à 0,1 kg | I112: 01021461080 | J112: Meuble de salon/salle à manger, de type plans de pose et plans de travail en ABS à plus de 95% pesant strictement moins de 0,1 kg | L112: 0.02 | M112: 047 | N112: 0.02
A113: 01 | B113: Meubles_de_salon_sejour_salle_a_manger | C113: 021 | D113: Plans de pose et plans de travail | E113: 46 | F113: ABS à plus de 95% | G113: 101 | H113: plus de 240cm de longueur | I113: 01021461010 | J113: Meuble de salon/salle à manger, de type plans de pose et plans de travail en ABS à plus de 95% de plus de 240cm de longueur | L113: 15.46 | M113: 693 | N113: 18.55
A114: 01 | B114: Meubles_de_salon_sejour_salle_a_manger | C114: 021 | D114: Plans de pose et plans de travail | E114: 46 | F114: ABS à plus de 95% | G114: 034 | H114: Supérieur à 300 kg | I114: 01021460340 | J114: Meuble de salon/salle à manger, de type plans de pose et plans de travail en ABS à plus de 95% pesant plus de 300 kg | L114: 49.48 | M114: 697 | N114: 59.38
A115: 01 | B115: Meubles_de_salon_sejour_salle_a_manger | C115: 022 | D115: Quincaillerie (poignées de tiroir, rails de tiroir…), accessoires de suspension, de rangement, de pose… | E115: 46 | F115: ABS à plus de 95% | G115: 106 | H115: Compris entre 0,1 kg et 0,25 kg exclus | I115: 01022461060 | J115: Meuble de salon/salle à manger, de type quincaillerie ou accessoires en ABS à plus de 95% pesant entre 0,1 kg et 0,25 kg exclus | L115: 0.04 | M115: 002 | N115: 0.05
A116: 01 | B116: Meubles_de_salon_sejour_salle_a_manger | C116: 022 | D116: Quincaillerie (poignées de tiroir, rails de tiroir…), accessoires de suspension, de rangement, de pose… | E116: 46 | F116: ABS à plus de 95% | G116: 020 | H116: Compris entre 0,25 kg et 0,5 kg exclus | I116: 01022460200 | J116: Meuble de salon/salle à manger, de type quincaillerie ou accessoires en ABS à plus de 95% pesant entre 0,25 kg et 0,5 kg exclus | L116: 0.07 | M116: 247 | N116: 0.08
A117: 01 | B117: Meubles_de_salon_sejour_salle_a_manger | C117: 022 | D117: Quincaillerie (poignées de tiroir, rails de tiroir…), accessoires de suspension, de rangement, de pose… | E117: 46 | F117: ABS à plus de 95% | G117: 107 | H117: Compris entre 0,25 kg et 0,5 kg exclus | I117: 01022461070 | J117: Meuble de salon/salle à manger, de type quincaillerie ou accessoires en ABS à plus de 95% pesant entre 0,25 kg et 0,5 kg exclus | L117: 0.07 | M117: 247 | N117: 0.08
A118: 01 | B118: Meubles_de_salon_sejour_salle_a_manger | C118: 022 | D118: Quincaillerie (poignées de tiroir, rails de tiroir…), accessoires de suspension, de rangement, de pose… | E118: 46 | F118: ABS à plus de 95% | G118: 021 | H118: Compris entre 0,5 kg et 1 kg exclus | I118: 01022460210 | J118: Meuble de salon/salle à manger, de type quincaillerie ou accessoires en ABS à plus de 95% pesant entre 0,5 kg et 1 kg exclus | L118: 0.15 | M118: 050 | N118: 0.18
A119: 01 | B119: Meubles_de_salon_sejour_salle_a_manger | C119: 022 | D119: Quincaillerie (poignées de tiroir, rails de tiroir…), accessoires de suspension, de rangement, de pose… | E119: 46 | F119: ABS à plus de 95% | G119: 022 | H119: Compris entre 1 kg et 2 kg exclus | I119: 01022460220 | J119: Meuble de salon/salle à manger, de type quincaillerie ou accessoires en ABS à plus de 95% pesant entre 1 kg et 2 kg exclus | L119: 0.31 | M119: 104 | N119: 0.37
A120: 01 | B120: Meubles_de_salon_sejour_salle_a_manger | C120: 022 | D120: Quincaillerie (poignées de tiroir, rails de tiroir…), accessoires de suspension, de rangement, de pose… | E120: 46 | F120: ABS à plus de 95% | G120: 025 | H120: Compris entre 10 kg et 20 kg exclus | I120: 01022460250 | J120: Meuble de salon/salle à manger, de type quincaillerie ou accessoires en ABS à plus de 95% pesant entre 10 kg et 20 kg exclus | L120: 1.78 | M120: 688 | N120: 2.14
A121: 01 | B121: Meubles_de_salon_sejour_salle_a_manger | C121: 022 | D121: Quincaillerie (poignées de tiroir, rails de tiroir…), accessoires de suspension, de rangement, de pose… | E121: 46 | F121: ABS à plus de 95% | G121: 030 | H121: Compris entre 100 kg et 150 kg exclus | I121: 01022460300 | J121: Meuble de salon/salle à manger, de type quincaillerie ou accessoires en ABS à plus de 95% pesant entre 100 kg et 150 kg exclus | L121: 15.46 | M121: 693 | N121: 18.55
A122: 01 | B122: Meubles_de_salon_sejour_salle_a_manger | C122: 022 | D122: Quincaillerie (poignées de tiroir, rails de tiroir…), accessoires de suspension, de rangement, de pose… | E122: 46 | F122: ABS à plus de 95% | G122: 031 | H122: Compris entre 150 kg et 200 kg exclus | I122: 01022460310 | J122: Meuble de salon/salle à manger, de type quincaillerie ou accessoires en ABS à plus de 95% pesant entre 150 kg et 200 kg exclus | L122: 21.65 | M122: 694 | N122: 25.98
A123: 01 | B123: Meubles_de_salon_sejour_salle_a_manger | C123: 022 | D123: Quincaillerie (poignées de tiroir, rails de tiroir…), accessoires de suspension, de rangement, de pose… | E123: 46 | F123: ABS à plus de 95% | G123: 023 | H123: Compris entre 2 kg et 5 kg exclus | I123: 01022460230 | J123: Meuble de salon/salle à manger, de type quincaillerie ou accessoires en ABS à plus de 95% pesant entre 2 kg et 5 kg exclus | L123: 0.46 | M123: 106 | N123: 0.55
A124: 01 | B124: Meubles_de_salon_sejour_salle_a_manger | C124: 022 | D124: Quincaillerie (poignées de tiroir, rails de tiroir…), accessoires de suspension, de rangement, de pose… | E124: 46 | F124: ABS à plus de 95% | G124: 026 | H124: Compris entre 20 kg et 30 kg exclus | I124: 01022460260 | J124: Meuble de salon/salle à manger, de type quincaillerie ou accessoires en ABS à plus de 95% pesant entre 20 kg et 30 kg exclus | L124: 2.94 | M124: 689 | N124: 3.53
A125: 01 | B125: Meubles_de_salon_sejour_salle_a_manger | C125: 022 | D125: Quincaillerie (poignées de tiroir, rails de tiroir…), accessoires de suspension, de rangement, de pose… | E125: 46 | F125: ABS à plus de 95% | G125: 032 | H125: Compris entre 200 kg et 250 kg exclus | I125: 01022460320 | J125: Meuble de salon/salle à manger, de type quincaillerie ou accessoires en ABS à plus de 95% pesant entre 200 kg et 250 kg exclus | L125: 27.83 | M125: 695 | N125: 33.4
A126: 01 | B126: Meubles_de_salon_sejour_salle_a_manger | C126: 022 | D126: Quincaillerie (poignées de tiroir, rails de tiroir…), accessoires de suspension, de rangement, de pose… | E126: 46 | F126: ABS à plus de 95% | G126: 033 | H126: Compris entre 250 kg et 300 kg exclus | I126: 01022460330 | J126: Meuble de salon/salle à manger, de type quincaillerie ou accessoires en ABS à plus de 95% pesant entre 250 kg et 300 kg exclus | L126: 34.02 | M126: 696 | N126: 40.82
A127: 01 | B127: Meubles_de_salon_sejour_salle_a_manger | C127: 022 | D127: Quincaillerie (poignées de tiroir, rails de tiroir…), accessoires de suspension, de rangement, de pose… | E127: 46 | F127: ABS à plus de 95% | G127: 027 | H127: Compris entre 30 kg et 40 kg exclus | I127: 01022460270 | J127: Meuble de salon/salle à manger, de type quincaillerie ou accessoires en ABS à plus de 95% pesant entre 30 kg et 40 kg exclus | L127: 4.1 | M127: 690 | N127: 4.92
A128: 01 | B128: Meubles_de_salon_sejour_salle_a_manger | C128: 022 | D128: Quincaillerie (poignées de tiroir, rails de tiroir…), accessoires de suspension, de rangement, de pose… | E128: 46 | F128: ABS à plus de 95% | G128: 028 | H128: Compris entre 40 kg et 60 kg exclus | I128: 01022460280 | J128: Meuble de salon/salle à manger, de type quincaillerie ou accessoires en ABS à plus de 95% pesant entre 40 kg et 60 kg exclus | L128: 5.87 | M128: 691 | N128: 7.04
A129: 01 | B129: Meubles_de_salon_sejour_salle_a_manger | C129: 022 | D129: Quincaillerie (poignées de tiroir, rails de tiroir…), accessoires de suspension, de rangement, de pose… | E129: 46 | F129: ABS à plus de 95% | G129: 024 | H129: Compris entre 5 kg et 10 kg exclus | I129: 01022460240 | J129: Meuble de salon/salle à manger, de type quincaillerie ou accessoires en ABS à plus de 95% pesant entre 5 kg et 10 kg exclus | L129: 1 | M129: 056 | N129: 1.2
A130: 01 | B130: Meubles_de_salon_sejour_salle_a_manger | C130: 022 | D130: Quincaillerie (poignées de tiroir, rails de tiroir…), accessoires de suspension, de rangement, de pose… | E130: 46 | F130: ABS à plus de 95% | G130: 029 | H130: Compris entre 60 kg et 100 kg exclus | I130: 01022460290 | J130: Meuble de salon/salle à manger, de type quincaillerie ou accessoires en ABS à plus de 95% pesant entre 60 kg et 100 kg exclus | L130: 9.28 | M130: 692 | N130: 11.14
A131: 01 | B131: Meubles_de_salon_sejour_salle_a_manger | C131: 022 | D131: Quincaillerie (poignées de tiroir, rails de tiroir…), accessoires de suspension, de rangement, de pose… | E131: 46 | F131: ABS à plus de 95% | G131: 108 | H131: Inférieur strictement à 0,1 kg | I131: 01022461080 | J131: Meuble de salon/salle à manger, de type quincaillerie ou accessoires en ABS à plus de 95% pesant strictement moins de 0,1 kg | L131: 0.02 | M131: 047 | N131: 0.02
A132: 01 | B132: Meubles_de_salon_sejour_salle_a_manger | C132: 022 | D132: Quincaillerie (poignées de tiroir, rails de tiroir…), accessoires de suspension, de rangement, de pose… | E132: 46 | F132: ABS à plus de 95% | G132: 034 | H132: Supérieur à 300 kg | I132: 01022460340 | J132: Meuble de salon/salle à manger, de type quincaillerie ou accessoires en ABS à plus de 95% pesant plus de 300 kg | L132: 49.48 | M132: 697 | N132: 59.38
A133: 02 | B133: Meubles_d_appoint | C133: 017 | D133: Rangement (hors tabletterie) | E133: 46 | F133: ABS à plus de 95% | G133: 106 | H133: Compris entre 0,1 kg et 0,25 kg exclus | I133: 02017461060 | J133: Meuble d'appoint, de type rangement (hors tabletterie) en ABS à plus de 95% pesant entre 0,1 kg et 0,25 kg exclus | L133: 0.04 | M133: 002 | N133: 0.05
A134: 02 | B134: Meubles_d_appoint | C134: 017 | D134: Rangement (hors tabletterie) | E134: 46 | F134: ABS à plus de 95% | G134: 106 | H134: Compris entre 0,1 kg et 0,25 kg exclus | I134: 02017461061 | J134: Meuble d'appoint, de type rangement (hors tabletterie) en ABS à plus de 95% pesant entre 0,1 kg et 0,25 kg exclus, de conception evolutive | K134: évolutif | L134: 0.04 | M134: 002 | N134: 0.05
A135: 02 | B135: Meubles_d_appoint | C135: 017 | D135: Rangement (hors tabletterie) | E135: 46 | F135: ABS à plus de 95% | G135: 020 | H135: Compris entre 0,25 kg et 0,5 kg exclus | I135: 02017460200 | J135: Meuble d'appoint, de type rangement (hors tabletterie) en ABS à plus de 95% pesant entre 0,25 kg et 0,5 kg exclus | L135: 0.07 | M135: 247 | N135: 0.08
A136: 02 | B136: Meubles_d_appoint | C136: 017 | D136: Rangement (hors tabletterie) | E136: 46 | F136: ABS à plus de 95% | G136: 107 | H136: Compris entre 0,25 kg et 0,5 kg exclus | I136: 02017461070 | J136: Meuble d'appoint, de type rangement (hors tabletterie) en ABS à plus de 95% pesant entre 0,25 kg et 0,5 kg exclus | L136: 0.07 | M136: 247 | N136: 0.08
A137: 02 | B137: Meubles_d_appoint | C137: 017 | D137: Rangement (hors tabletterie) | E137: 46 | F137: ABS à plus de 95% | G137: 020 | H137: Compris entre 0,25 kg et 0,5 kg exclus | I137: 02017460201 | J137: Meuble d'appoint, de type rangement (hors tabletterie) en ABS à plus de 95% pesant entre 0,25 kg et 0,5 kg exclus, de conception evolutive | K137: évolutif | L137: 0.07 | M137: 247 | N137: 0.08
A138: 02 | B138: Meubles_d_appoint | C138: 017 | D138: Rangement (hors tabletterie) | E138: 46 | F138: ABS à plus de 95% | G138: 107 | H138: Compris entre 0,25 kg et 0,5 kg exclus | I138: 02017461071 | J138: Meuble d'appoint, de type rangement (hors tabletterie) en ABS à plus de 95% pesant entre 0,25 kg et 0,5 kg exclus, de conception evolutive | K138: évolutif | L138: 0.07 | M138: 247 | N138: 0.08
A139: 02 | B139: Meubles_d_appoint | C139: 017 | D139: Rangement (hors tabletterie) | E139: 46 | F139: ABS à plus de 95% | G139: 021 | H139: Compris entre 0,5 kg et 1 kg exclus | I139: 02017460210 | J139: Meuble d'appoint, de type rangement (hors tabletterie) en ABS à plus de 95% pesant entre 0,5 kg et 1 kg exclus | L139: 0.15 | M139: 050 | N139: 0.18
A140: 02 | B140: Meubles_d_appoint | C140: 017 | D140: Rangement (hors tabletterie) | E140: 46 | F140: ABS à plus de 95% | G140: 021 | H140: Compris entre 0,5 kg et 1 kg exclus | I140: 02017460211 | J140: Meuble d'appoint, de type rangement (hors tabletterie) en ABS à plus de 95% pesant entre 0,5 kg et 1 kg exclus, de conception evolutive | K140: évolutif | L140: 0.15 | M140: 050 | N140: 0.18
A141: 02 | B141: Meubles_d_appoint | C141: 017 | D141: Rangement (hors tabletterie) | E141: 46 | F141: ABS à plus de 95% | G141: 022 | H141: Compris entre 1 kg et 2 kg exclus | I141: 02017460220 | J141: Meuble d'appoint, de type rangement (hors tabletterie) en ABS à plus de 95% pesant entre 1 kg et 2 kg exclus | L141: 0.31 | M141: 104 | N141: 0.37
A142: 02 | B142: Meubles_d_appoint | C142: 017 | D142: Rangement (hors tabletterie) | E142: 46 | F142: ABS à plus de 95% | G142: 022 | H142: Compris entre 1 kg et 2 kg exclus | I142: 02017460221 | J142: Meuble d'appoint, de type rangement (hors tabletterie) en ABS à plus de 95% pesant entre 1 kg et 2 kg exclus, de conception evolutive | K142: évolutif | L142: 0.31 | M142: 104 | N142: 0.37
A143: 02 | B143: Meubles_d_appoint | C143: 017 | D143: Rangement (hors tabletterie) | E143: 46 | F143: ABS à plus de 95% | G143: 025 | H143: Compris entre 10 kg et 20 kg exclus | I143: 02017460250 | J143: Meuble d'appoint, de type rangement (hors tabletterie) en ABS à plus de 95% pesant entre 10 kg et 20 kg exclus | L143: 1.78 | M143: 688 | N143: 2.14
A144: 02 | B144: Meubles_d_appoint | C144: 017 | D144: Rangement (hors tabletterie) | E144: 46 | F144: ABS à plus de 95% | G144: 025 | H144: Compris entre 10 kg et 20 kg exclus | I144: 02017460251 | J144: Meuble d'appoint, de type rangement (hors tabletterie) en ABS à plus de 95% pesant entre 10 kg et 20 kg exclus, de conception evolutive | K144: évolutif | L144: 1.78 | M144: 688 | N144: 2.14
A145: 02 | B145: Meubles_d_appoint | C145: 017 | D145: Rangement (hors tabletterie) | E145: 46 | F145: ABS à plus de 95% | G145: 030 | H145: Compris entre 100 kg et 150 kg exclus | I145: 02017460300 | J145: Meuble d'appoint, de type rangement (hors tabletterie) en ABS à plus de 95% pesant entre 100 kg et 150 kg exclus | L145: 15.46 | M145: 693 | N145: 18.55
A146: 02 | B146: Meubles_d_appoint | C146: 017 | D146: Rangement (hors tabletterie) | E146: 46 | F146: ABS à plus de 95% | G146: 030 | H146: Compris entre 100 kg et 150 kg exclus | I146: 02017460301 | J146: Meuble d'appoint, de type rangement (hors tabletterie) en ABS à plus de 95% pesant entre 100 kg et 150 kg exclus, de conception evolutive | K146: évolutif | L146: 15.46 | M146: 693 | N146: 18.55
A147: 02 | B147: Meubles_d_appoint | C147: 017 | D147: Rangement (hors tabletterie) | E147: 46 | F147: ABS à plus de 95% | G147: 031 | H147: Compris entre 150 kg et 200 kg exclus | I147: 02017460310 | J147: Meuble d'appoint, de type rangement (hors tabletterie) en ABS à plus de 95% pesant entre 150 kg et 200 kg exclus | L147: 21.65 | M147: 694 | N147: 25.98
A148: 02 | B148: Meubles_d_appoint | C148: 017 | D148: Rangement (hors tabletterie) | E148: 46 | F148: ABS à plus de 95% | G148: 031 | H148: Compris entre 150 kg et 200 kg exclus | I148: 02017460311 | J148: Meuble d'appoint, de type rangement (hors tabletterie) en ABS à plus de 95% pesant entre 150 kg et 200 kg exclus, de conception evolutive | K148: évolutif | L148: 21.65 | M148: 694 | N148: 25.98
A149: 02 | B149: Meubles_d_appoint | C149: 017 | D149: Rangement (hors tabletterie) | E149: 46 | F149: ABS à plus de 95% | G149: 023 | H149: Compris entre 2 kg et 5 kg exclus | I149: 02017460230 | J149: Meuble d'appoint, de type rangement (hors tabletterie) en ABS à plus de 95% pesant entre 2 kg et 5 kg exclus | L149: 0.46 | M149: 106 | N149: 0.55
A150: 02 | B150: Meubles_d_appoint | C150: 017 | D150: Rangement (hors tabletterie) | E150: 46 | F150: ABS à plus de 95% | G150: 023 | H150: Compris entre 2 kg et 5 kg exclus | I150: 02017460231 | J150: Meuble d'appoint, de type rangement (hors tabletterie) en ABS à plus de 95% pesant entre 2 kg et 5 kg exclus, de conception evolutive | K150: évolutif | L150: 0.46 | M150: 106 | N150: 0.55
A151: 02 | B151: Meubles_d_appoint | C151: 017 | D151: Rangement (hors tabletterie) | E151: 46 | F151: ABS à plus de 95% | G151: 026 | H151: Compris entre 20 kg et 30 kg exclus | I151: 02017460260 | J151: Meuble d'appoint, de type rangement (hors tabletterie) en ABS à plus de 95% pesant entre 20 kg et 30 kg exclus | L151: 2.94 | M151: 689 | N151: 3.53
A152: 02 | B152: Meubles_d_appoint | C152: 017 | D152: Rangement (hors tabletterie) | E152: 46 | F152: ABS à plus de 95% | G152: 026 | H152: Compris entre 20 kg et 30 kg exclus | I152: 02017460261 | J152: Meuble d'appoint, de type rangement (hors tabletterie) en ABS à plus de 95% pesant entre 20 kg et 30 kg exclus, de conception evolutive | K152: évolutif | L152: 2.94 | M152: 689 | N152: 3.53
A153: 02 | B153: Meubles_d_appoint | C153: 017 | D153: Rangement (hors tabletterie) | E153: 46 | F153: ABS à plus de 95% | G153: 032 | H153: Compris entre 200 kg et 250 kg exclus | I153: 02017460320 | J153: Meuble d'appoint, de type rangement (hors tabletterie) en ABS à plus de 95% pesant entre 200 kg et 250 kg exclus | L153: 27.83 | M153: 695 | N153: 33.4
A154: 02 | B154: Meubles_d_appoint | C154: 017 | D154: Rangement (hors tabletterie) | E154: 46 | F154: ABS à plus de 95% | G154: 032 | H154: Compris entre 200 kg et 250 kg exclus | I154: 02017460321 | J154: Meuble d'appoint, de type rangement (hors tabletterie) en ABS à plus de 95% pesant entre 200 kg et 250 kg exclus, de conception evolutive | K154: évolutif | L154: 27.83 | M154: 695 | N154: 33.4
A155: 02 | B155: Meubles_d_appoint | C155: 017 | D155: Rangement (hors tabletterie) | E155: 46 | F155: ABS à plus de 95% | G155: 033 | H155: Compris entre 250 kg et 300 kg exclus | I155: 02017460330 | J155: Meuble d'appoint, de type rangement (hors tabletterie) en ABS à plus de 95% pesant entre 250 kg et 300 kg exclus | L155: 34.02 | M155: 696 | N155: 40.82
A156: 02 | B156: Meubles_d_appoint | C156: 017 | D156: Rangement (hors tabletterie) | E156: 46 | F156: ABS à plus de 95% | G156: 033 | H156: Compris entre 250 kg et 300 kg exclus | I156: 02017460331 | J156: Meuble d'appoint, de type rangement (hors tabletterie) en ABS à plus de 95% pesant entre 250 kg et 300 kg exclus, de conception evolutive | K156: évolutif | L156: 34.02 | M156: 696 | N156: 40.82
A157: 02 | B157: Meubles_d_appoint | C157: 017 | D157: Rangement (hors tabletterie) | E157: 46 | F157: ABS à plus de 95% | G157: 027 | H157: Compris entre 30 kg et 40 kg exclus | I157: 02017460270 | J157: Meuble d'appoint, de type rangement (hors tabletterie) en ABS à plus de 95% pesant entre 30 kg et 40 kg exclus | L157: 4.1 | M157: 690 | N157: 4.92
A158: 02 | B158: Meubles_d_appoint | C158: 017 | D158: Rangement (hors tabletterie) | E158: 46 | F158: ABS à plus de 95% | G158: 027 | H158: Compris entre 30 kg et 40 kg exclus | I158: 02017460271 | J158: Meuble d'appoint, de type rangement (hors tabletterie) en ABS à plus de 95% pesant entre 30 kg et 40 kg exclus, de conception evolutive | K158: évolutif | L158: 4.1 | M158: 690 | N158: 4.92
A159: 02 | B159: Meubles_d_appoint | C159: 017 | D159: Rangement (hors tabletterie) | E159: 46 | F159: ABS à plus de 95% | G159: 028 | H159: Compris entre 40 kg et 60 kg exclus | I159: 02017460280 | J159: Meuble d'appoint, de type rangement (hors tabletterie) en ABS à plus de 95% pesant entre 40 kg et 60 kg exclus | L159: 5.87 | M159: 691 | N159: 7.04
A160: 02 | B160: Meubles_d_appoint | C160: 017 | D160: Rangement (hors tabletterie) | E160: 46 | F160: ABS à plus de 95% | G160: 028 | H160: Compris entre 40 kg et 60 kg exclus | I160: 02017460281 | J160: Meuble d'appoint, de type rangement (hors tabletterie) en ABS à plus de 95% pesant entre 40 kg et 60 kg exclus, de conception evolutive | K160: évolutif | L160: 5.87 | M160: 691 | N160: 7.04
A161: 02 | B161: Meubles_d_appoint | C161: 017 | D161: Rangement (hors tabletterie) | E161: 46 | F161: ABS à plus de 95% | G161: 024 | H161: Compris entre 5 kg et 10 kg exclus | I161: 02017460240 | J161: Meuble d'appoint, de type rangement (hors tabletterie) en ABS à plus de 95% pesant entre 5 kg et 10 kg exclus | L161: 1 | M161: 056 | N161: 1.2
A162: 02 | B162: Meubles_d_appoint | C162: 017 | D162: Rangement (hors tabletterie) | E162: 46 | F162: ABS à plus de 95% | G162: 024 | H162: Compris entre 5 kg et 10 kg exclus | I162: 02017460241 | J162: Meuble d'appoint, de type rangement (hors tabletterie) en ABS à plus de 95% pesant entre 5 kg et 10 kg exclus, de conception evolutive | K162: évolutif | L162: 1 | M162: 056 | N162: 1.2
A163: 02 | B163: Meubles_d_appoint | C163: 017 | D163: Rangement (hors tabletterie) | E163: 46 | F163: ABS à plus de 95% | G163: 029 | H163: Compris entre 60 kg et 100 kg exclus | I163: 02017460290 | J163: Meuble d'appoint, de type rangement (hors tabletterie) en ABS à plus de 95% pesant entre 60 kg et 100 kg exclus | L163: 9.28 | M163: 692 | N163: 11.14
A164: 02 | B164: Meubles_d_appoint | C164: 017 | D164: Rangement (hors tabletterie) | E164: 46 | F164: ABS à plus de 95% | G164: 029 | H164: Compris entre 60 kg et 100 kg exclus | I164: 02017460291 | J164: Meuble d'appoint, de type rangement (hors tabletterie) en ABS à plus de 95% pesant entre 60 kg et 100 kg exclus, de conception evolutive | K164: évolutif | L164: 9.28 | M164: 692 | N164: 11.14
A165: 02 | B165: Meubles_d_appoint | C165: 017 | D165: Rangement (hors tabletterie) | E165: 46 | F165: ABS à plus de 95% | G165: 108 | H165: Inférieur strictement à 0,1 kg | I165: 02017461080 | J165: Meuble d'appoint, de type rangement (hors tabletterie) en ABS à plus de 95% pesant strictement moins de 0,1 kg | L165: 0.02 | M165: 047 | N165: 0.02
A166: 02 | B166: Meubles_d_appoint | C166: 017 | D166: Rangement (hors tabletterie) | E166: 46 | F166: ABS à plus de 95% | G166: 108 | H166: Inférieur strictement à 0,1 kg | I166: 02017461081 | J166: Meuble d'appoint, de type rangement (hors tabletterie) en ABS à plus de 95% pesant strictement moins de 0,1 kg, de conception evolutive | K166: évolutif | L166: 0.02 | M166: 047 | N166: 0.02
A167: 02 | B167: Meubles_d_appoint | C167: 017 | D167: Rangement (hors tabletterie) | E167: 46 | F167: ABS à plus de 95% | G167: 034 | H167: Supérieur à 300 kg | I167: 02017460340 | J167: Meuble d'appoint, de type rangement (hors tabletterie) en ABS à plus de 95% pesant plus de 300 kg | L167: 49.48 | M167: 697 | N167: 59.38
A168: 02 | B168: Meubles_d_appoint | C168: 017 | D168: Rangement (hors tabletterie) | E168: 46 | F168: ABS à plus de 95% | G168: 034 | H168: Supérieur à 300 kg | I168: 02017460341 | J168: Meuble d'appoint, de type rangement (hors tabletterie) en ABS à plus de 95% pesant plus de 300 kg, de conception evolutive | K168: évolutif | L168: 49.48 | M168: 697 | N168: 59.38
A169: 02 | B169: Meubles_d_appoint | C169: 019 | D169: Bureaux, tables… | E169: 46 | F169: ABS à plus de 95% | G169: 106 | H169: Compris entre 0,1 kg et 0,25 kg exclus | I169: 02019461060 | J169: Meuble d'appoint, de type bureaux, tables… en ABS à plus de 95% pesant entre 0,1 kg et 0,25 kg exclus | L169: 0.04 | M169: 002 | N169: 0.05
A170: 02 | B170: Meubles_d_appoint | C170: 019 | D170: Bureaux, tables… | E170: 46 | F170: ABS à plus de 95% | G170: 106 | H170: Compris entre 0,1 kg et 0,25 kg exclus | I170: 02019461061 | J170: Meuble d'appoint, de type bureaux, tables… en ABS à plus de 95% pesant entre 0,1 kg et 0,25 kg exclus, de conception evolutive | K170: évolutif | L170: 0.04 | M170: 002 | N170: 0.05
A171: 02 | B171: Meubles_d_appoint | C171: 019 | D171: Bureaux, tables… | E171: 46 | F171: ABS à plus de 95% | G171: 020 | H171: Compris entre 0,25 kg et 0,5 kg exclus | I171: 02019460200 | J171: Meuble d'appoint, de type bureaux, tables… en ABS à plus de 95% pesant entre 0,25 kg et 0,5 kg exclus | L171: 0.07 | M171: 247 | N171: 0.08
A172: 02 | B172: Meubles_d_appoint | C172: 019 | D172: Bureaux, tables… | E172: 46 | F172: ABS à plus de 95% | G172: 107 | H172: Compris entre 0,25 kg et 0,5 kg exclus | I172: 02019461070 | J172: Meuble d'appoint, de type bureaux, tables… en ABS à plus de 95% pesant entre 0,25 kg et 0,5 kg exclus | L172: 0.07 | M172: 247 | N172: 0.08
A173: 02 | B173: Meubles_d_appoint | C173: 019 | D173: Bureaux, tables… | E173: 46 | F173: ABS à plus de 95% | G173: 020 | H173: Compris entre 0,25 kg et 0,5 kg exclus | I173: 02019460201 | J173: Meuble d'appoint, de type bureaux, tables… en ABS à plus de 95% pesant entre 0,25 kg et 0,5 kg exclus, de conception evolutive | K173: évolutif | L173: 0.07 | M173: 247 | N173: 0.08
A174: 02 | B174: Meubles_d_appoint | C174: 019 | D174: Bureaux, tables… | E174: 46 | F174: ABS à plus de 95% | G174: 107 | H174: Compris entre 0,25 kg et 0,5 kg exclus | I174: 02019461071 | J174: Meuble d'appoint, de type bureaux, tables… en ABS à plus de 95% pesant entre 0,25 kg et 0,5 kg exclus, de conception evolutive | K174: évolutif | L174: 0.07 | M174: 247 | N174: 0.08
A175: 02 | B175: Meubles_d_appoint | C175: 019 | D175: Bureaux, tables… | E175: 46 | F175: ABS à plus de 95% | G175: 021 | H175: Compris entre 0,5 kg et 1 kg exclus | I175: 02019460210 | J175: Meuble d'appoint, de type bureaux, tables… en ABS à plus de 95% pesant entre 0,5 kg et 1 kg exclus | L175: 0.15 | M175: 050 | N175: 0.18
A176: 02 | B176: Meubles_d_appoint | C176: 019 | D176: Bureaux, tables… | E176: 46 | F176: ABS à plus de 95% | G176: 021 | H176: Compris entre 0,5 kg et 1 kg exclus | I176: 02019460211 | J176: Meuble d'appoint, de type bureaux, tables… en ABS à plus de 95% pesant entre 0,5 kg et 1 kg exclus, de conception evolutive | K176: évolutif | L176: 0.15 | M176: 050 | N176: 0.18
A177: 02 | B177: Meubles_d_appoint | C177: 019 | D177: Bureaux, tables… | E177: 46 | F177: ABS à plus de 95% | G177: 022 | H177: Compris entre 1 kg et 2 kg exclus | I177: 02019460220 | J177: Meuble d'appoint, de type bureaux, tables… en ABS à plus de 95% pesant entre 1 kg et 2 kg exclus | L177: 0.31 | M177: 104 | N177: 0.37
A178: 02 | B178: Meubles_d_appoint | C178: 019 | D178: Bureaux, tables… | E178: 46 | F178: ABS à plus de 95% | G178: 022 | H178: Compris entre 1 kg et 2 kg exclus | I178: 02019460221 | J178: Meuble d'appoint, de type bureaux, tables… en ABS à plus de 95% pesant entre 1 kg et 2 kg exclus, de conception evolutive | K178: évolutif | L178: 0.31 | M178: 104 | N178: 0.37
A179: 02 | B179: Meubles_d_appoint | C179: 019 | D179: Bureaux, tables… | E179: 46 | F179: ABS à plus de 95% | G179: 025 | H179: Compris entre 10 kg et 20 kg exclus | I179: 02019460250 | J179: Meuble d'appoint, de type bureaux, tables… en ABS à plus de 95% pesant entre 10 kg et 20 kg exclus | L179: 1.78 | M179: 688 | N179: 2.14
A180: 02 | B180: Meubles_d_appoint | C180: 019 | D180: Bureaux, tables… | E180: 46 | F180: ABS à plus de 95% | G180: 025 | H180: Compris entre 10 kg et 20 kg exclus | I180: 02019460251 | J180: Meuble d'appoint, de type bureaux, tables… en ABS à plus de 95% pesant entre 10 kg et 20 kg exclus, de conception evolutive | K180: évolutif | L180: 1.78 | M180: 688 | N180: 2.14
A181: 02 | B181: Meubles_d_appoint | C181: 019 | D181: Bureaux, tables… | E181: 46 | F181: ABS à plus de 95% | G181: 030 | H181: Compris entre 100 kg et 150 kg exclus | I181: 02019460300 | J181: Meuble d'appoint, de type bureaux, tables… en ABS à plus de 95% pesant entre 100 kg et 150 kg exclus | L181: 15.46 | M181: 693 | N181: 18.55
A182: 02 | B182: Meubles_d_appoint | C182: 019 | D182: Bureaux, tables… | E182: 46 | F182: ABS à plus de 95% | G182: 030 | H182: Compris entre 100 kg et 150 kg exclus | I182: 02019460301 | J182: Meuble d'appoint, de type bureaux, tables… en ABS à plus de 95% pesant entre 100 kg et 150 kg exclus, de conception evolutive | K182: évolutif | L182: 15.46 | M182: 693 | N182: 18.55
A183: 02 | B183: Meubles_d_appoint | C183: 019 | D183: Bureaux, tables… | E183: 46 | F183: ABS à plus de 95% | G183: 031 | H183: Compris entre 150 kg et 200 kg exclus | I183: 02019460310 | J183: Meuble d'appoint, de type bureaux, tables… en ABS à plus de 95% pesant entre 150 kg et 200 kg exclus | L183: 21.65 | M183: 694 | N183: 25.98
A184: 02 | B184: Meubles_d_appoint | C184: 019 | D184: Bureaux, tables… | E184: 46 | F184: ABS à plus de 95% | G184: 031 | H184: Compris entre 150 kg et 200 kg exclus | I184: 02019460311 | J184: Meuble d'appoint, de type bureaux, tables… en ABS à plus de 95% pesant entre 150 kg et 200 kg exclus, de conception evolutive | K184: évolutif | L184: 21.65 | M184: 694 | N184: 25.98
A185: 02 | B185: Meubles_d_appoint | C185: 019 | D185: Bureaux, tables… | E185: 46 | F185: ABS à plus de 95% | G185: 023 | H185: Compris entre 2 kg et 5 kg exclus | I185: 02019460230 | J185: Meuble d'appoint, de type bureaux, tables… en ABS à plus de 95% pesant entre 2 kg et 5 kg exclus | L185: 0.46 | M185: 106 | N185: 0.55
A186: 02 | B186: Meubles_d_appoint | C186: 019 | D186: Bureaux, tables… | E186: 46 | F186: ABS à plus de 95% | G186: 023 | H186: Compris entre 2 kg et 5 kg exclus | I186: 02019460231 | J186: Meuble d'appoint, de type bureaux, tables… en ABS à plus de 95% pesant entre 2 kg et 5 kg exclus, de conception evolutive | K186: évolutif | L186: 0.46 | M186: 106 | N186: 0.55
A187: 02 | B187: Meubles_d_appoint | C187: 019 | D187: Bureaux, tables… | E187: 46 | F187: ABS à plus de 95% | G187: 026 | H187: Compris entre 20 kg et 30 kg exclus | I187: 02019460260 | J187: Meuble d'appoint, de type bureaux, tables… en ABS à plus de 95% pesant entre 20 kg et 30 kg exclus | L187: 2.94 | M187: 689 | N187: 3.53
A188: 02 | B188: Meubles_d_appoint | C188: 019 | D188: Bureaux, tables… | E188: 46 | F188: ABS à plus de 95% | G188: 026 | H188: Compris entre 20 kg et 30 kg exclus | I188: 02019460261 | J188: Meuble d'appoint, de type bureaux, tables… en ABS à plus de 95% pesant entre 20 kg et 30 kg exclus, de conception evolutive | K188: évolutif | L188: 2.94 | M188: 689 | N188: 3.53
A189: 02 | B189: Meubles_d_appoint | C189: 019 | D189: Bureaux, tables… | E189: 46 | F189: ABS à plus de 95% | G189: 032 | H189: Compris entre 200 kg et 250 kg exclus | I189: 02019460320 | J189: Meuble d'appoint, de type bureaux, tables… en ABS à plus de 95% pesant entre 200 kg et 250 kg exclus | L189: 27.83 | M189: 695 | N189: 33.4
A190: 02 | B190: Meubles_d_appoint | C190: 019 | D190: Bureaux, tables… | E190: 46 | F190: ABS à plus de 95% | G190: 032 | H190: Compris entre 200 kg et 250 kg exclus | I190: 02019460321 | J190: Meuble d'appoint, de type bureaux, tables… en ABS à plus de 95% pesant entre 200 kg et 250 kg exclus, de conception evolutive | K190: évolutif | L190: 27.83 | M190: 695 | N190: 33.4
A191: 02 | B191: Meubles_d_appoint | C191: 019 | D191: Bureaux, tables… | E191: 46 | F191: ABS à plus de 95% | G191: 033 | H191: Compris entre 250 kg et 300 kg exclus | I191: 02019460330 | J191: Meuble d'appoint, de type bureaux, tables… en ABS à plus de 95% pesant entre 250 kg et 300 kg exclus | L191: 34.02 | M191: 696 | N191: 40.82
A192: 02 | B192: Meubles_d_appoint | C192: 019 | D192: Bureaux, tables… | E192: 46 | F192: ABS à plus de 95% | G192: 033 | H192: Compris entre 250 kg et 300 kg exclus | I192: 02019460331 | J192: Meuble d'appoint, de type bureaux, tables… en ABS à plus de 95% pesant entre 250 kg et 300 kg exclus, de conception evolutive | K192: évolutif | L192: 34.02 | M192: 696 | N192: 40.82
A193: 02 | B193: Meubles_d_appoint | C193: 019 | D193: Bureaux, tables… | E193: 46 | F193: ABS à plus de 95% | G193: 027 | H193: Compris entre 30 kg et 40 kg exclus | I193: 02019460270 | J193: Meuble d'appoint, de type bureaux, tables… en ABS à plus de 95% pesant entre 30 kg et 40 kg exclus | L193: 4.1 | M193: 690 | N193: 4.92
A194: 02 | B194: Meubles_d_appoint | C194: 019 | D194: Bureaux, tables… | E194: 46 | F194: ABS à plus de 95% | G194: 027 | H194: Compris entre 30 kg et 40 kg exclus | I194: 02019460271 | J194: Meuble d'appoint, de type bureaux, tables… en ABS à plus de 95% pesant entre 30 kg et 40 kg exclus, de conception evolutive | K194: évolutif | L194: 4.1 | M194: 690 | N194: 4.92
A195: 02 | B195: Meubles_d_appoint | C195: 019 | D195: Bureaux, tables… | E195: 46 | F195: ABS à plus de 95% | G195: 028 | H195: Compris entre 40 kg et 60 kg exclus | I195: 02019460280 | J195: Meuble d'appoint, de type bureaux, tables… en ABS à plus de 95% pesant entre 40 kg et 60 kg exclus | L195: 5.87 | M195: 691 | N195: 7.04
A196: 02 | B196: Meubles_d_appoint | C196: 019 | D196: Bureaux, tables… | E196: 46 | F196: ABS à plus de 95% | G196: 028 | H196: Compris entre 40 kg et 60 kg exclus | I196: 02019460281 | J196: Meuble d'appoint, de type bureaux, tables… en ABS à plus de 95% pesant entre 40 kg et 60 kg exclus, de conception evolutive | K196: évolutif | L196: 5.87 | M196: 691 | N196: 7.04
A197: 02 | B197: Meubles_d_appoint | C197: 019 | D197: Bureaux, tables… | E197: 46 | F197: ABS à plus de 95% | G197: 024 | H197: Compris entre 5 kg et 10 kg exclus | I197: 02019460240 | J197: Meuble d'appoint, de type bureaux, tables… en ABS à plus de 95% pesant entre 5 kg et 10 kg exclus | L197: 1 | M197: 056 | N197: 1.2
A198: 02 | B198: Meubles_d_appoint | C198: 019 | D198: Bureaux, tables… | E198: 46 | F198: ABS à plus de 95% | G198: 024 | H198: Compris entre 5 kg et 10 kg exclus | I198: 02019460241 | J198: Meuble d'appoint, de type bureaux, tables… en ABS à plus de 95% pesant entre 5 kg et 10 kg exclus, de conception evolutive | K198: évolutif | L198: 1 | M198: 056 | N198: 1.2
A199: 02 | B199: Meubles_d_appoint | C199: 019 | D199: Bureaux, tables… | E199: 46 | F199: ABS à plus de 95% | G199: 029 | H199: Compris entre 60 kg et 100 kg exclus | I199: 02019460290 | J199: Meuble d'appoint, de type bureaux, tables… en ABS à plus de 95% pesant entre 60 kg et 100 kg exclus | L199: 9.28 | M199: 692 | N199: 11.14
A200: 02 | B200: Meubles_d_appoint | C200: 019 | D200: Bureaux, tables… | E200: 46 | F200: ABS à plus de 95% | G200: 029 | H200: Compris entre 60 kg et 100 kg exclus | I200: 02019460291 | J200: Meuble d'appoint, de type bureaux, tables… en ABS à plus de 95% pesant entre 60 kg et 100 kg exclus, de conception evolutive | K200: évolutif | L200: 9.28 | M200: 692 | N200: 11.14
... 4300 more rows

Sheet Codes dimension
A1: Code Catégorie | B1: Libellé Cat | C1: Code Type de produit | D1: Libellé Type | E1: Code Matériau | F1: Libellé Mat | G1: Code Caractéristique | H1: Libellé Carac | I1: Code produit | J1: Libellé | K1: Tarif HT | L1: Code Eco part | M1: Tarif TTC
A2: 01 | B2: Meubles_de_salon_sejour_salle_a_manger | C2: 021 | D2: Plans de pose et plans de travail | E2: 28 | F2: Métal à plus de 95% | G2: 097 | H2: de 0 à 60cm de longueur | I2: 01021280970 | J2: Meuble de salon/salle à manger, de type plans de pose et plans de travail en métal à plus de 95% de 0 à 60cm de longueur | K2: 1.2 | L2: 505 | M2: 1.44
A3: 01 | B3: Meubles_de_salon_sejour_salle_a_manger | C3: 021 | D3: Plans de pose et plans de travail | E3: 53 | F3: Bois massif à plus de 95% en gestion durable certifiée | G3: 097 | H3: de 0 à 60cm de longueur | I3: 01021530970 | J3: Meuble de salon/salle à manger, de type plans de pose et plans de travail en bois massif à plus de 95% en gestion durable certifiée de 0 à 60cm de longueur | K3: 1.2 | L3: 505 | M3: 1.44
A4: 01 | B4: Meubles_de_salon_sejour_salle_a_manger | C4: 021 | D4: Plans de pose et plans de travail | E4: 28 | F4: Métal à plus de 95% | G4: 098 | H4: de 60 à 120cm de longueur | I4: 01021280980 | J4: Meuble de salon/salle à manger, de type plans de pose et plans de travail en métal à plus de 95% de 60 à 120cm de longueur | K4: 1.76 | L4: 642 | M4: 2.11
A5: 01 | B5: Meubles_de_salon_sejour_salle_a_manger | C5: 021 | D5: Plans de pose et plans de travail | E5: 53 | F5: Bois massif à plus de 95% en gestion durable certifiée | G5: 098 | H5: de 60 à 120cm de longueur | I5: 01021530980 | J5: Meuble de salon/salle à manger, de type plans de pose et plans de travail en bois massif à plus de 95% en gestion durable certifiée de 60 à 120cm de longueur | K5: 1.76 | L5: 642 | M5: 2.11
A6: 01 | B6: Meubles_de_salon_sejour_salle_a_manger | C6: 021 | D6: Plans de pose et plans de travail | E6: 28 | F6: Métal à plus de 95% | G6: 099 | H6: de 120 à 180cm de longueur | I6: 01021280990 | J6: Meuble de salon/salle à manger, de type plans de pose et plans de travail en métal à plus de 95% de 120 à 180cm de longueur | K6: 2.52 | L6: 643 | M6: 3.02
A7: 01 | B7: Meubles_de_salon_sejour_salle_a_manger | C7: 021 | D7: Plans de pose et plans de travail | E7: 53 | F7: Bois massif à plus de 95% en gestion durable certifiée | G7: 099 | H7: de 120 à 180cm de longueur | I7: 01021530990 | J7: Meuble de salon/salle à manger, de type plans de pose et plans de travail en bois massif à plus de 95% en gestion durable certifiée de 120 à 180cm de longueur | K7: 2.52 | L7: 643 | M7: 3.02
A8: 01 | B8: Meubles_de_salon_sejour_salle_a_manger | C8: 021 | D8: Plans de pose et plans de travail | E8: 28 | F8: Métal à plus de 95% | G8: 100 | H8: de 180 à 240cm de longueur | I8: 01021281000 | J8: Meuble de salon/salle à manger, de type plans de pose et plans de travail en métal à plus de 95% de 180 à 240cm de longueur | K8: 3.37 | L8: 644 | M8: 4.04
A9: 01 | B9: Meubles_de_salon_sejour_salle_a_manger | C9: 021 | D9: Plans de pose et plans de travail | E9: 53 | F9: Bois massif à plus de 95% en gestion durable certifiée | G9: 100 | H9: de 180 à 240cm de longueur | I9: 01021531000 | J9: Meuble de salon/salle à manger, de type plans de pose et plans de travail en bois massif à plus de 95% en gestion durable certifiée de 180 à 240cm de longueur | K9: 3.37 | L9: 644 | M9: 4.04
A10: 01 | B10: Meubles_de_salon_sejour_salle_a_manger | C10: 021 | D10: Plans de pose et plans de travail | E10: 28 | F10: Métal à plus de 95% | G10: 101 | H10: plus de 240cm de longueur | I10: 01021281010 | J10: Meuble de salon/salle à manger, de type plans de pose et plans de travail en métal à plus de 95% de plus de 240cm de longueur | K10: 5.61 | L10: 645 | M10: 6.73
A11: 01 | B11: Meubles_de_salon_sejour_salle_a_manger | C11: 021 | D11: Plans de pose et plans de travail | E11: 53 | F11: Bois massif à plus de 95% en gestion durable certifiée | G11: 101 | H11: plus de 240cm de longueur | I11: 01021531010 | J11: Meuble de salon/salle à manger, de type plans de pose et plans de travail en bois massif à plus de 95% en gestion durable certifiée de plus de 240cm de longueur | K11: 5.61 | L11: 645 | M11: 6.73
A12: 01 | B12: Meubles_de_salon_sejour_salle_a_manger | C12: 021 | D12: Plans de pose et plans de travail | E12: 02 | F12: Métal à plus de 50% | G12: 097 | H12: de 0 à 60cm de longueur | I12: 01021020970 | J12: Meuble de salon/salle à manger, de type plans de pose et plans de travail en métal à plus de 50% de 0 à 60cm de longueur | K12: 1.25 | L12: 009 | M12: 1.5
A13: 01 | B13: Meubles_de_salon_sejour_salle_a_manger | C13: 021 | D13: Plans de pose et plans de travail | E13: 20 | F13: Bois massif à plus de 75% en gestion durable certifiée | G13: 097 | H13: de 0 à 60cm de longueur | I13: 01021200970 | J13: Meuble de salon/salle à manger, de type plans de pose et plans de travail en bois massif à plus de 75% en gestion durable certifiée de 0 à 60cm de longueur | K13: 1.25 | L13: 009 | M13: 1.5
A14: 01 | B14: Meubles_de_salon_sejour_salle_a_manger | C14: 021 | D14: Plans de pose et plans de travail | E14: 22 | F14: Métal à plus de 75% | G14: 097 | H14: de 0 à 60cm de longueur | I14: 01021220970 | J14: Meuble de salon/salle à manger, de type plans de pose et plans de travail en métal à plus de 75% de 0 à 60cm de longueur | K14: 1.25 | L14: 009 | M14: 1.5
A15: 01 | B15: Meubles_de_salon_sejour_salle_a_manger | C15: 021 | D15: Plans de pose et plans de travail | E15: 24 | F15: Panneaux de particules et/ou bois et/ou métal à plus de 75% en gestion durable certifiée | G15: 097 | H15: de 0 à 60cm de longueur | I15: 01021240970 | J15: Meuble de salon/salle à manger, de type plans de pose et plans de travail en panneaux de particules et/ou bois et/ou métal à plus de 75% en gestion durable certifiée de 0 à 60cm de longueur | K15: 1.25 | L15: 009 | M15: 1.5
A16: 01 | B16: Meubles_de_salon_sejour_salle_a_manger | C16: 021 | D16: Plans de pose et plans de travail | E16: 25 | F16: Panneaux de particules à plus de 75% en gestion durable certifiée | G16: 097 | H16: de 0 à 60cm de longueur | I16: 01021250970 | J16: Meuble de salon/salle à manger, de type plans de pose et plans de travail en panneaux de particules à plus de 75% en gestion durable certifiée de 0 à 60cm de longueur | K16: 1.25 | L16: 009 | M16: 1.5
A17: 01 | B17: Meubles_de_salon_sejour_salle_a_manger | C17: 021 | D17: Plans de pose et plans de travail | E17: 27 | F17: OSB à plus de 75% en gestion durable certifiée | G17: 097 | H17: de 0 à 60cm de longueur | I17: 01021270970 | J17: Meuble de salon/salle à manger, de type plans de pose et plans de travail en OSB à plus de 75% en gestion durable certifiée de 0 à 60cm de longueur | K17: 1.25 | L17: 009 | M17: 1.5
A18: 01 | B18: Meubles_de_salon_sejour_salle_a_manger | C18: 021 | D18: Plans de pose et plans de travail | E18: 02 | F18: Métal à plus de 50% | G18: 098 | H18: de 60 à 120cm de longueur | I18: 01021020980 | J18: Meuble de salon/salle à manger, de type plans de pose et plans de travail en métal à plus de 50% de 60 à 120cm de longueur | K18: 1.83 | L18: 117 | M18: 2.2
A19: 01 | B19: Meubles_de_salon_sejour_salle_a_manger | C19: 021 | D19: Plans de pose et plans de travail | E19: 20 | F19: Bois massif à plus de 75% en gestion durable certifiée | G19: 098 | H19: de 60 à 120cm de longueur | I19: 01021200980 | J19: Meuble de salon/salle à manger, de type plans de pose et plans de travail en bois massif à plus de 75% en gestion durable certifiée de 60 à 120cm de longueur | K19: 1.83 | L19: 117 | M19: 2.2
A20: 01 | B20: Meubles_de_salon_sejour_salle_a_manger | C20: 021 | D20: Plans de pose et plans de travail | E20: 22 | F20: Métal à plus de 75% | G20: 098 | H20: de 60 à 120cm de longueur | I20: 01021220980 | J20: Meuble de salon/salle à manger, de type plans de pose et plans de travail en métal à plus de 75% de 60 à 120cm de longueur | K20: 1.83 | L20: 117 | M20: 2.2
A21: 01 | B21: Meubles_de_salon_sejour_salle_a_manger | C21: 021 | D21: Plans de pose et plans de travail | E21: 24 | F21: Panneaux de particules et/ou bois et/ou métal à plus de 75% en gestion durable certifiée | G21: 098 | H21: de 60 à 120cm de longueur | I21: 01021240980 | J21: Meuble de salon/salle à manger, de type plans de pose et plans de travail en panneaux de particules et/ou bois et/ou métal à plus de 75% en gestion durable certifiée de 60 à 120cm de longueur | K21: 1.83 | L21: 117 | M21: 2.2
A22: 01 | B22: Meubles_de_salon_sejour_salle_a_manger | C22: 021 | D22: Plans de pose et plans de travail | E22: 25 | F22: Panneaux de particules à plus de 75% en gestion durable certifiée | G22: 098 | H22: de 60 à 120cm de longueur | I22: 01021250980 | J22: Meuble de salon/salle à manger, de type plans de pose et plans de travail en panneaux de particules à plus de 75% en gestion durable certifiée de 60 à 120cm de longueur | K22: 1.83 | L22: 117 | M22: 2.2
A23: 01 | B23: Meubles_de_salon_sejour_salle_a_manger | C23: 021 | D23: Plans de pose et plans de travail | E23: 27 | F23: OSB à plus de 75% en gestion durable certifiée | G23: 098 | H23: de 60 à 120cm de longueur | I23: 01021270980 | J23: Meuble de salon/salle à manger, de type plans de pose et plans de travail en OSB à plus de 75% en gestion durable certifiée de 60 à 120cm de longueur | K23: 1.83 | L23: 117 | M23: 2.2
A24: 01 | B24: Meubles_de_salon_sejour_salle_a_manger | C24: 021 | D24: Plans de pose et plans de travail | E24: 02 | F24: Métal à plus de 50% | G24: 099 | H24: de 120 à 180cm de longueur | I24: 01021020990 | J24: Meuble de salon/salle à manger, de type plans de pose et plans de travail en métal à plus de 50% de 120 à 180cm de longueur | K24: 2.62 | L24: 399 | M24: 3.14
A25: 01 | B25: Meubles_de_salon_sejour_salle_a_manger | C25: 021 | D25: Plans de pose et plans de travail | E25: 20 | F25: Bois massif à plus de 75% en gestion durable certifiée | G25: 099 | H25: de 120 à 180cm de longueur | I25: 01021200990 | J25: Meuble de salon/salle à manger, de type plans de pose et plans de travail en bois massif à plus de 75% en gestion durable certifiée de 120 à 180cm de longueur | K25: 2.62 | L25: 399 | M25: 3.14
A26: 01 | B26: Meubles_de_salon_sejour_salle_a_manger | C26: 021 | D26: Plans de pose et plans de travail | E26: 22 | F26: Métal à plus de 75% | G26: 099 | H26: de 120 à 180cm de longueur | I26: 01021220990 | J26: Meuble de salon/salle à manger, de type plans de pose et plans de travail en métal à plus de 75% de 120 à 180cm de longueur | K26: 2.62 | L26: 399 | M26: 3.14
A27: 01 | B27: Meubles_de_salon_sejour_salle_a_manger | C27: 021 | D27: Plans de pose et plans de travail | E27: 24 | F27: Panneaux de particules et/ou bois et/ou métal à plus de 75% en gestion durable certifiée | G27: 099 | H27: de 120 à 180cm de longueur | I27: 01021240990 | J27: Meuble de salon/salle à manger, de type plans de pose et plans de travail en panneaux de particules et/ou bois et/ou métal à plus de 75% en gestion durable certifiée de 120 à 180cm de longueur | K27: 2.62 | L27: 399 | M27: 3.14
A28: 01 | B28: Meubles_de_salon_sejour_salle_a_manger | C28: 021 | D28: Plans de pose et plans de travail | E28: 25 | F28: Panneaux de particules à plus de 75% en gestion durable certifiée | G28: 099 | H28: de 120 à 180cm de longueur | I28: 01021250990 | J28: Meuble de salon/salle à manger, de type plans de pose et plans de travail en panneaux de particules à plus de 75% en gestion durable certifiée de 120 à 180cm de longueur | K28: 2.62 | L28: 399 | M28: 3.14
A29: 01 | B29: Meubles_de_salon_sejour_salle_a_manger | C29: 021 | D29: Plans de pose et plans de travail | E29: 27 | F29: OSB à plus de 75% en gestion durable certifiée | G29: 099 | H29: de 120 à 180cm de longueur | I29: 01021270990 | J29: Meuble de salon/salle à manger, de type plans de pose et plans de travail en OSB à plus de 75% en gestion durable certifiée de 120 à 180cm de longueur | K29: 2.62 | L29: 399 | M29: 3.14
A30: 01 | B30: Meubles_de_salon_sejour_salle_a_manger | C30: 021 | D30: Plans de pose et plans de travail | E30: 02 | F30: Métal à plus de 50% | G30: 100 | H30: de 180 à 240cm de longueur | I30: 01021021000 | J30: Meuble de salon/salle à manger, de type plans de pose et plans de travail en métal à plus de 50% de 180 à 240cm de longueur | K30: 3.5 | L30: 539 | M30: 4.2
A31: 01 | B31: Meubles_de_salon_sejour_salle_a_manger | C31: 021 | D31: Plans de pose et plans de travail | E31: 20 | F31: Bois massif à plus de 75% en gestion durable certifiée | G31: 100 | H31: de 180 à 240cm de longueur | I31: 01021201000 | J31: Meuble de salon/salle à manger, de type plans de pose et plans de travail en bois massif à plus de 75% en gestion durable certifiée de 180 à 240cm de longueur | K31: 3.5 | L31: 539 | M31: 4.2
A32: 01 | B32: Meubles_de_salon_sejour_salle_a_manger | C32: 021 | D32: Plans de pose et plans de travail | E32: 22 | F32: Métal à plus de 75% | G32: 100 | H32: de 180 à 240cm de longueur | I32: 01021221000 | J32: Meuble de salon/salle à manger, de type plans de pose et plans de travail en métal à plus de 75% de 180 à 240cm de longueur | K32: 3.5 | L32: 539 | M32: 4.2
A33: 01 | B33: Meubles_de_salon_sejour_salle_a_manger | C33: 021 | D33: Plans de pose et plans de travail | E33: 24 | F33: Panneaux de particules et/ou bois et/ou métal à plus de 75% en gestion durable certifiée | G33: 100 | H33: de 180 à 240cm de longueur | I33: 01021241000 | J33: Meuble de salon/salle à manger, de type plans de pose et plans de travail en panneaux de particules et/ou bois et/ou métal à plus de 75% en gestion durable certifiée de 180 à 240cm de longueur | K33: 3.5 | L33: 539 | M33: 4.2
A34: 01 | B34: Meubles_de_salon_sejour_salle_a_manger | C34: 021 | D34: Plans de pose et plans de travail | E34: 25 | F34: Panneaux de particules à plus de 75% en gestion durable certifiée | G34: 100 | H34: de 180 à 240cm de longueur | I34: 01021251000 | J34: Meuble de salon/salle à manger, de type plans de pose et plans de travail en panneaux de particules à plus de 75% en gestion durable certifiée de 180 à 240cm de longueur | K34: 3.5 | L34: 539 | M34: 4.2
A35: 01 | B35: Meubles_de_salon_sejour_salle_a_manger | C35: 021 | D35: Plans de pose et plans de travail | E35: 27 | F35: OSB à plus de 75% en gestion durable certifiée | G35: 100 | H35: de 180 à 240cm de longueur | I35: 01021271000 | J35: Meuble de salon/salle à manger, de type plans de pose et plans de travail en OSB à plus de 75% en gestion durable certifiée de 180 à 240cm de longueur | K35: 3.5 | L35: 539 | M35: 4.2
A36: 01 | B36: Meubles_de_salon_sejour_salle_a_manger | C36: 021 | D36: Plans de pose et plans de travail | E36: 02 | F36: Métal à plus de 50% | G36: 101 | H36: plus de 240cm de longueur | I36: 01021021010 | J36: Meuble de salon/salle à manger, de type plans de pose et plans de travail en métal à plus de 50% de plus de 240cm de longueur | K36: 5.83 | L36: 018 | M36: 7
A37: 01 | B37: Meubles_de_salon_sejour_salle_a_manger | C37: 021 | D37: Plans de pose et plans de travail | E37: 20 | F37: Bois massif à plus de 75% en gestion durable certifiée | G37: 101 | H37: plus de 240cm de longueur | I37: 01021201010 | J37: Meuble de salon/salle à manger, de type plans de pose et plans de travail en bois massif à plus de 75% en gestion durable certifiée de plus de 240cm de longueur | K37: 5.83 | L37: 018 | M37: 7
A38: 01 | B38: Meubles_de_salon_sejour_salle_a_manger | C38: 021 | D38: Plans de pose et plans de travail | E38: 22 | F38: Métal à plus de 75% | G38: 101 | H38: plus de 240cm de longueur | I38: 01021221010 | J38: Meuble de salon/salle à manger, de type plans de pose et plans de travail en métal à plus de 75% de plus de 240cm de longueur | K38: 5.83 | L38: 018 | M38: 7
A39: 01 | B39: Meubles_de_salon_sejour_salle_a_manger | C39: 021 | D39: Plans de pose et plans de travail | E39: 24 | F39: Panneaux de particules et/ou bois et/ou métal à plus de 75% en gestion durable certifiée | G39: 101 | H39: plus de 240cm de longueur | I39: 01021241010 | J39: Meuble de salon/salle à manger, de type plans de pose et plans de travail en panneaux de particules et/ou bois et/ou métal à plus de 75% en gestion durable certifiée de plus de 240cm de longueur | K39: 5.83 | L39: 018 | M39: 7
A40: 01 | B40: Meubles_de_salon_sejour_salle_a_manger | C40: 021 | D40: Plans de pose et plans de travail | E40: 25 | F40: Panneaux de particules à plus de 75% en gestion durable certifiée | G40: 101 | H40: plus de 240cm de longueur | I40: 01021251010 | J40: Meuble de salon/salle à manger, de type plans de pose et plans de travail en panneaux de particules à plus de 75% en gestion durable certifiée de plus de 240cm de longueur | K40: 5.83 | L40: 018 | M40: 7
A41: 01 | B41: Meubles_de_salon_sejour_salle_a_manger | C41: 021 | D41: Plans de pose et plans de travail | E41: 27 | F41: OSB à plus de 75% en gestion durable certifiée | G41: 101 | H41: plus de 240cm de longueur | I41: 01021271010 | J41: Meuble de salon/salle à manger, de type plans de pose et plans de travail en OSB à plus de 75% en gestion durable certifiée de plus de 240cm de longueur | K41: 5.83 | L41: 018 | M41: 7
A42: 01 | B42: Meubles_de_salon_sejour_salle_a_manger | C42: 021 | D42: Plans de pose et plans de travail | E42: 68 | F42: Verre à plus de 95% | G42: 097 | H42: de 0 à 60cm de longueur | I42: 01021680970 | J42: Meuble de salon/salle à manger, de type plans de pose et plans de travail en verre à plus de 95% de 0 à 60cm de longueur | K42: 2.92 | L42: 013 | M42: 3.5
A43: 01 | B43: Meubles_de_salon_sejour_salle_a_manger | C43: 021 | D43: Plans de pose et plans de travail | E43: 69 | F43: Miroir à plus de 95% | G43: 097 | H43: de 0 à 60cm de longueur | I43: 01021690970 | J43: Meuble de salon/salle à manger, de type plans de pose et plans de travail en miroir à plus de 95% de 0 à 60cm de longueur | K43: 2.92 | L43: 013 | M43: 3.5
A44: 01 | B44: Meubles_de_salon_sejour_salle_a_manger | C44: 021 | D44: Plans de pose et plans de travail | E44: 74 | F44: Béton à plus de 95% | G44: 097 | H44: de 0 à 60cm de longueur | I44: 01021740970 | J44: Meuble de salon/salle à manger, de type plans de pose et plans de travail en béton à plus de 95% de 0 à 60cm de longueur | K44: 2.92 | L44: 013 | M44: 3.5
A45: 01 | B45: Meubles_de_salon_sejour_salle_a_manger | C45: 021 | D45: Plans de pose et plans de travail | E45: 84 | F45: Ardoise à plus de 95% | G45: 097 | H45: de 0 à 60cm de longueur | I45: 01021840970 | J45: Meuble de salon/salle à manger, de type plans de pose et plans de travail en ardoise à plus de 95% de 0 à 60cm de longueur | K45: 2.92 | L45: 013 | M45: 3.5
A46: 01 | B46: Meubles_de_salon_sejour_salle_a_manger | C46: 021 | D46: Plans de pose et plans de travail | E46: 86 | F46: Pierre calcaire à plus de 95% | G46: 097 | H46: de 0 à 60cm de longueur | I46: 01021860970 | J46: Meuble de salon/salle à manger, de type plans de pose et plans de travail en pierre calcaire à plus de 95% de 0 à 60cm de longueur | K46: 2.92 | L46: 013 | M46: 3.5
A47: 01 | B47: Meubles_de_salon_sejour_salle_a_manger | C47: 021 | D47: Plans de pose et plans de travail | E47: 91 | F47: Granit à plus de 95% | G47: 097 | H47: de 0 à 60cm de longueur | I47: 01021910970 | J47: Meuble de salon/salle à manger, de type plans de pose et plans de travail en granit à plus de 95% de 0 à 60cm de longueur | K47: 2.92 | L47: 013 | M47: 3.5
A48: 01 | B48: Meubles_de_salon_sejour_salle_a_manger | C48: 021 | D48: Plans de pose et plans de travail | E48: 97 | F48: Céramique à plus de 95% | G48: 097 | H48: de 0 à 60cm de longueur | I48: 01021970970 | J48: Meuble de salon/salle à manger, de type plans de pose et plans de travail en céramique à plus de 95% de 0 à 60cm de longueur | K48: 2.92 | L48: 013 | M48: 3.5
A49: 01 | B49: Meubles_de_salon_sejour_salle_a_manger | C49: 021 | D49: Plans de pose et plans de travail | E49: 98 | F49: Pierre artificielle à plus de 95% | G49: 097 | H49: de 0 à 60cm de longueur | I49: 01021980970 | J49: Meuble de salon/salle à manger, de type plans de pose et plans de travail en pierre artificielle à plus de 95% de 0 à 60cm de longueur | K49: 2.92 | L49: 013 | M49: 3.5
A50: 01 | B50: Meubles_de_salon_sejour_salle_a_manger | C50: 021 | D50: Plans de pose et plans de travail | E50: 68 | F50: Verre à plus de 95% | G50: 098 | H50: de 60 à 120cm de longueur | I50: 01021680980 | J50: Meuble de salon/salle à manger, de type plans de pose et plans de travail en verre à plus de 95% de 60 à 120cm de longueur | K50: 4 | L50: 274 | M50: 4.8
A51: 01 | B51: Meubles_de_salon_sejour_salle_a_manger | C51: 021 | D51: Plans de pose et plans de travail | E51: 69 | F51: Miroir à plus de 95% | G51: 098 | H51: de 60 à 120cm de longueur | I51: 01021690980 | J51: Meuble de salon/salle à manger, de type plans de pose et plans de travail en miroir à plus de 95% de 60 à 120cm de longueur | K51: 4 | L51: 274 | M51: 4.8
A52: 01 | B52: Meubles_de_salon_sejour_salle_a_manger | C52: 021 | D52: Plans de pose et plans de travail | E52: 74 | F52: Béton à plus de 95% | G52: 098 | H52: de 60 à 120cm de longueur | I52: 01021740980 | J52: Meuble de salon/salle à manger, de type plans de pose et plans de travail en béton à plus de 95% de 60 à 120cm de longueur | K52: 4 | L52: 274 | M52: 4.8
A53: 01 | B53: Meubles_de_salon_sejour_salle_a_manger | C53: 021 | D53: Plans de pose et plans de travail | E53: 84 | F53: Ardoise à plus de 95% | G53: 098 | H53: de 60 à 120cm de longueur | I53: 01021840980 | J53: Meuble de salon/salle à manger, de type plans de pose et plans de travail en ardoise à plus de 95% de 60 à 120cm de longueur | K53: 4 | L53: 274 | M53: 4.8
A54: 01 | B54: Meubles_de_salon_sejour_salle_a_manger | C54: 021 | D54: Plans de pose et plans de travail | E54: 86 | F54: Pierre calcaire à plus de 95% | G54: 098 | H54: de 60 à 120cm de longueur | I54: 01021860980 | J54: Meuble de salon/salle à manger, de type plans de pose et plans de travail en pierre calcaire à plus de 95% de 60 à 120cm de longueur | K54: 4 | L54: 274 | M54: 4.8
A55: 01 | B55: Meubles_de_salon_sejour_salle_a_manger | C55: 021 | D55: Plans de pose et plans de travail | E55: 91 | F55: Granit à plus de 95% | G55: 098 | H55: de 60 à 120cm de longueur | I55: 01021910980 | J55: Meuble de salon/salle à manger, de type plans de pose et plans de travail en granit à plus de 95% de 60 à 120cm de longueur | K55: 4 | L55: 274 | M55: 4.8
A56: 01 | B56: Meubles_de_salon_sejour_salle_a_manger | C56: 021 | D56: Plans de pose et plans de travail | E56: 97 | F56: Céramique à plus de 95% | G56: 098 | H56: de 60 à 120cm de longueur | I56: 01021970980 | J56: Meuble de salon/salle à manger, de type plans de pose et plans de travail en céramique à plus de 95% de 60 à 120cm de longueur | K56: 4 | L56: 274 | M56: 4.8
A57: 01 | B57: Meubles_de_salon_sejour_salle_a_manger | C57: 021 | D57: Plans de pose et plans de travail | E57: 98 | F57: Pierre artificielle à plus de 95% | G57: 098 | H57: de 60 à 120cm de longueur | I57: 01021980980 | J57: Meuble de salon/salle à manger, de type plans de pose et plans de travail en pierre artificielle à plus de 95% de 60 à 120cm de longueur | K57: 4 | L57: 274 | M57: 4.8
A58: 01 | B58: Meubles_de_salon_sejour_salle_a_manger | C58: 021 | D58: Plans de pose et plans de travail | E58: 68 | F58: Verre à plus de 95% | G58: 099 | H58: de 120 à 180cm de longueur | I58: 01021680990 | J58: Meuble de salon/salle à manger, de type plans de pose et plans de travail en verre à plus de 95% de 120 à 180cm de longueur | K58: 5.33 | L58: 132 | M58: 6.4
A59: 01 | B59: Meubles_de_salon_sejour_salle_a_manger | C59: 021 | D59: Plans de pose et plans de travail | E59: 69 | F59: Miroir à plus de 95% | G59: 099 | H59: de 120 à 180cm de longueur | I59: 01021690990 | J59: Meuble de salon/salle à manger, de type plans de pose et plans de travail en miroir à plus de 95% de 120 à 180cm de longueur | K59: 5.33 | L59: 132 | M59: 6.4
A60: 01 | B60: Meubles_de_salon_sejour_salle_a_manger | C60: 021 | D60: Plans de pose et plans de travail | E60: 74 | F60: Béton à plus de 95% | G60: 099 | H60: de 120 à 180cm de longueur | I60: 01021740990 | J60: Meuble de salon/salle à manger, de type plans de pose et plans de travail en béton à plus de 95% de 120 à 180cm de longueur | K60: 5.33 | L60: 132 | M60: 6.4
A61: 01 | B61: Meubles_de_salon_sejour_salle_a_manger | C61: 021 | D61: Plans de pose et plans de travail | E61: 84 | F61: Ardoise à plus de 95% | G61: 099 | H61: de 120 à 180cm de longueur | I61: 01021840990 | J61: Meuble de salon/salle à manger, de type plans de pose et plans de travail en ardoise à plus de 95% de 120 à 180cm de longueur | K61: 5.33 | L61: 132 | M61: 6.4
A62: 01 | B62: Meubles_de_salon_sejour_salle_a_manger | C62: 021 | D62: Plans de pose et plans de travail | E62: 86 | F62: Pierre calcaire à plus de 95% | G62: 099 | H62: de 120 à 180cm de longueur | I62: 01021860990 | J62: Meuble de salon/salle à manger, de type plans de pose et plans de travail en pierre calcaire à plus de 95% de 120 à 180cm de longueur | K62: 5.33 | L62: 132 | M62: 6.4
A63: 01 | B63: Meubles_de_salon_sejour_salle_a_manger | C63: 021 | D63: Plans de pose et plans de travail | E63: 91 | F63: Granit à plus de 95% | G63: 099 | H63: de 120 à 180cm de longueur | I63: 01021910990 | J63: Meuble de salon/salle à manger, de type plans de pose et plans de travail en granit à plus de 95% de 120 à 180cm de longueur | K63: 5.33 | L63: 132 | M63: 6.4
A64: 01 | B64: Meubles_de_salon_sejour_salle_a_manger | C64: 021 | D64: Plans de pose et plans de travail | E64: 97 | F64: Céramique à plus de 95% | G64: 099 | H64: de 120 à 180cm de longueur | I64: 01021970990 | J64: Meuble de salon/salle à manger, de type plans de pose et plans de travail en céramique à plus de 95% de 120 à 180cm de longueur | K64: 5.33 | L64: 132 | M64: 6.4
A65: 01 | B65: Meubles_de_salon_sejour_salle_a_manger | C65: 021 | D65: Plans de pose et plans de travail | E65: 98 | F65: Pierre artificielle à plus de 95% | G65: 099 | H65: de 120 à 180cm de longueur | I65: 01021980990 | J65: Meuble de salon/salle à manger, de type plans de pose et plans de travail en pierre artificielle à plus de 95% de 120 à 180cm de longueur | K65: 5.33 | L65: 132 | M65: 6.4
A66: 01 | B66: Meubles_de_salon_sejour_salle_a_manger | C66: 021 | D66: Plans de pose et plans de travail | E66: 68 | F66: Verre à plus de 95% | G66: 100 | H66: de 180 à 240cm de longueur | I66: 01021681000 | J66: Meuble de salon/salle à manger, de type plans de pose et plans de travail en verre à plus de 95% de 180 à 240cm de longueur | K66: 8.33 | L66: 021 | M66: 10
A67: 01 | B67: Meubles_de_salon_sejour_salle_a_manger | C67: 021 | D67: Plans de pose et plans de travail | E67: 69 | F67: Miroir à plus de 95% | G67: 100 | H67: de 180 à 240cm de longueur | I67: 01021691000 | J67: Meuble de salon/salle à manger, de type plans de pose et plans de travail en miroir à plus de 95% de 180 à 240cm de longueur | K67: 8.33 | L67: 021 | M67: 10
A68: 01 | B68: Meubles_de_salon_sejour_salle_a_manger | C68: 021 | D68: Plans de pose et plans de travail | E68: 74 | F68: Béton à plus de 95% | G68: 100 | H68: de 180 à 240cm de longueur | I68: 01021741000 | J68: Meuble de salon/salle à manger, de type plans de pose et plans de travail en béton à plus de 95% de 180 à 240cm de longueur | K68: 8.33 | L68: 021 | M68: 10
A69: 01 | B69: Meubles_de_salon_sejour_salle_a_manger | C69: 021 | D69: Plans de pose et plans de travail | E69: 84 | F69: Ardoise à plus de 95% | G69: 100 | H69: de 180 à 240cm de longueur | I69: 01021841000 | J69: Meuble de salon/salle à manger, de type plans de pose et plans de travail en ardoise à plus de 95% de 180 à 240cm de longueur | K69: 8.33 | L69: 021 | M69: 10
A70: 01 | B70: Meubles_de_salon_sejour_salle_a_manger | C70: 021 | D70: Plans de pose et plans de travail | E70: 86 | F70: Pierre calcaire à plus de 95% | G70: 100 | H70: de 180 à 240cm de longueur | I70: 01021861000 | J70: Meuble de salon/salle à manger, de type plans de pose et plans de travail en pierre calcaire à plus de 95% de 180 à 240cm de longueur | K70: 8.33 | L70: 021 | M70: 10
A71: 01 | B71: Meubles_de_salon_sejour_salle_a_manger | C71: 021 | D71: Plans de pose et plans de travail | E71: 91 | F71: Granit à plus de 95% | G71: 100 | H71: de 180 à 240cm de longueur | I71: 01021911000 | J71: Meuble de salon/salle à manger, de type plans de pose et plans de travail en granit à plus de 95% de 180 à 240cm de longueur | K71: 8.33 | L71: 021 | M71: 10
A72: 01 | B72: Meubles_de_salon_sejour_salle_a_manger | C72: 021 | D72: Plans de pose et plans de travail | E72: 97 | F72: Céramique à plus de 95% | G72: 100 | H72: de 180 à 240cm de longueur | I72: 01021971000 | J72: Meuble de salon/salle à manger, de type plans de pose et plans de travail en céramique à plus de 95% de 180 à 240cm de longueur | K72: 8.33 | L72: 021 | M72: 10
A73: 01 | B73: Meubles_de_salon_sejour_salle_a_manger | C73: 021 | D73: Plans de pose et plans de travail | E73: 98 | F73: Pierre artificielle à plus de 95% | G73: 100 | H73: de 180 à 240cm de longueur | I73: 01021981000 | J73: Meuble de salon/salle à manger, de type plans de pose et plans de travail en pierre artificielle à plus de 95% de 180 à 240cm de longueur | K73: 8.33 | L73: 021 | M73: 10
A74: 01 | B74: Meubles_de_salon_sejour_salle_a_manger | C74: 021 | D74: Plans de pose et plans de travail | E74: 68 | F74: Verre à plus de 95% | G74: 101 | H74: plus de 240cm de longueur | I74: 01021681010 | J74: Meuble de salon/salle à manger, de type plans de pose et plans de travail en verre à plus de 95% de plus de 240cm de longueur | K74: 15 | L74: 023 | M74: 18
A75: 01 | B75: Meubles_de_salon_sejour_salle_a_manger | C75: 021 | D75: Plans de pose et plans de travail | E75: 69 | F75: Miroir à plus de 95% | G75: 101 | H75: plus de 240cm de longueur | I75: 01021691010 | J75: Meuble de salon/salle à manger, de type plans de pose et plans de travail en miroir à plus de 95% de plus de 240cm de longueur | K75: 15 | L75: 023 | M75: 18
A76: 01 | B76: Meubles_de_salon_sejour_salle_a_manger | C76: 021 | D76: Plans de pose et plans de travail | E76: 74 | F76: Béton à plus de 95% | G76: 101 | H76: plus de 240cm de longueur | I76: 01021741010 | J76: Meuble de salon/salle à manger, de type plans de pose et plans de travail en béton à plus de 95% de plus de 240cm de longueur | K76: 15 | L76: 023 | M76: 18
A77: 01 | B77: Meubles_de_salon_sejour_salle_a_manger | C77: 021 | D77: Plans de pose et plans de travail | E77: 84 | F77: Ardoise à plus de 95% | G77: 101 | H77: plus de 240cm de longueur | I77: 01021841010 | J77: Meuble de salon/salle à manger, de type plans de pose et plans de travail en ardoise à plus de 95% de plus de 240cm de longueur | K77: 15 | L77: 023 | M77: 18
A78: 01 | B78: Meubles_de_salon_sejour_salle_a_manger | C78: 021 | D78: Plans de pose et plans de travail | E78: 86 | F78: Pierre calcaire à plus de 95% | G78: 101 | H78: plus de 240cm de longueur | I78: 01021861010 | J78: Meuble de salon/salle à manger, de type plans de pose et plans de travail en pierre calcaire à plus de 95% de plus de 240cm de longueur | K78: 15 | L78: 023 | M78: 18
A79: 01 | B79: Meubles_de_salon_sejour_salle_a_manger | C79: 021 | D79: Plans de pose et plans de travail | E79: 91 | F79: Granit à plus de 95% | G79: 101 | H79: plus de 240cm de longueur | I79: 01021911010 | J79: Meuble de salon/salle à manger, de type plans de pose et plans de travail en granit à plus de 95% de plus de 240cm de longueur | K79: 15 | L79: 023 | M79: 18
A80: 01 | B80: Meubles_de_salon_sejour_salle_a_manger | C80: 021 | D80: Plans de pose et plans de travail | E80: 97 | F80: Céramique à plus de 95% | G80: 101 | H80: plus de 240cm de longueur | I80: 01021971010 | J80: Meuble de salon/salle à manger, de type plans de pose et plans de travail en céramique à plus de 95% de plus de 240cm de longueur | K80: 15 | L80: 023 | M80: 18
A81: 01 | B81: Meubles_de_salon_sejour_salle_a_manger | C81: 021 | D81: Plans de pose et plans de travail | E81: 98 | F81: Pierre artificielle à plus de 95% | G81: 101 | H81: plus de 240cm de longueur | I81: 01021981010 | J81: Meuble de salon/salle à manger, de type plans de pose et plans de travail en pierre artificielle à plus de 95% de plus de 240cm de longueur | K81: 15 | L81: 023 | M81: 18
A82: 01 | B82: Meubles_de_salon_sejour_salle_a_manger | C82: 021 | D82: Plans de pose et plans de travail | E82: 01 | F82: Bois, panneaux et dérivés de bois à plus de 50% en gestion durable certifiée | G82: 097 | H82: de 0 à 60cm de longueur | I82: 01021010970 | J82: Meuble de salon/salle à manger, de type plans de pose et plans de travail en bois, panneaux et dérivés de bois à plus de 50% en gestion durable certifiée de 0 à 60cm de longueur | K82: 1.9 | L82: 660 | M82: 2.28
A83: 01 | B83: Meubles_de_salon_sejour_salle_a_manger | C83: 021 | D83: Plans de pose et plans de travail | E83: 03 | F83: Bambou/Rotin à plus de 50% | G83: 097 | H83: de 0 à 60cm de longueur | I83: 01021030970 | J83: Meuble de salon/salle à manger, de type plans de pose et plans de travail en bambou/rotin à plus de 50% de 0 à 60cm de longueur | K83: 1.9 | L83: 660 | M83: 2.28
A84: 01 | B84: Meubles_de_salon_sejour_salle_a_manger | C84: 021 | D84: Plans de pose et plans de travail | E84: 06 | F84: Matériaux bio sourcés ou textiles non synthétiques à plus de 50% en gestion durable certifiée | G84: 097 | H84: de 0 à 60cm de longueur | I84: 01021060970 | J84: Meuble de salon/salle à manger, de type plans de pose et plans de travail en matériaux bio sourcés ou textiles non synthétiques à plus de 50% en gestion durable certifiée de 0 à 60cm de longueur | K84: 1.9 | L84: 660 | M84: 2.28
A85: 01 | B85: Meubles_de_salon_sejour_salle_a_manger | C85: 021 | D85: Plans de pose et plans de travail | E85: 37 | F85: Matériaux bio sourcés ou textiles non synthétiques à plus de 95% en gestion durable certifiée | G85: 097 | H85: de 0 à 60cm de longueur | I85: 01021370970 | J85: Meuble de salon/salle à manger, de type plans de pose et plans de travail en matériaux bio sourcés ou textiles non synthétiques à plus de 95% en gestion durable certifiée de 0 à 60cm de longueur | K85: 1.9 | L85: 660 | M85: 2.28
A86: 01 | B86: Meubles_de_salon_sejour_salle_a_manger | C86: 021 | D86: Plans de pose et plans de travail | E86: 38 | F86: Papier, carton à plus de 50% en gestion non certifiée | G86: 097 | H86: de 0 à 60cm de longueur | I86: 01021380970 | J86: Meuble de salon/salle à manger, de type plans de pose et plans de travail en papier, carton à plus de 50% en gestion non certifiée de 0 à 60cm de longueur | K86: 1.9 | L86: 660 | M86: 2.28
A87: 01 | B87: Meubles_de_salon_sejour_salle_a_manger | C87: 021 | D87: Plans de pose et plans de travail | E87: 52 | F87: Bois massif à plus de 95% en gestion non certifiée | G87: 097 | H87: de 0 à 60cm de longueur | I87: 01021520970 | J87: Meuble de salon/salle à manger, de type plans de pose et plans de travail en bois massif à plus de 95% en gestion non certifiée de 0 à 60cm de longueur | K87: 1.9 | L87: 660 | M87: 2.28
A88: 01 | B88: Meubles_de_salon_sejour_salle_a_manger | C88: 021 | D88: Plans de pose et plans de travail | E88: 01 | F88: Bois, panneaux et dérivés de bois à plus de 50% en gestion durable certifiée | G88: 098 | H88: de 60 à 120cm de longueur | I88: 01021010980 | J88: Meuble de salon/salle à manger, de type plans de pose et plans de travail en bois, panneaux et dérivés de bois à plus de 50% en gestion durable certifiée de 60 à 120cm de longueur | K88: 3.16 | L88: 662 | M88: 3.79
A89: 01 | B89: Meubles_de_salon_sejour_salle_a_manger | C89: 021 | D89: Plans de pose et plans de travail | E89: 03 | F89: Bambou/Rotin à plus de 50% | G89: 098 | H89: de 60 à 120cm de longueur | I89: 01021030980 | J89: Meuble de salon/salle à manger, de type plans de pose et plans de travail en bambou/rotin à plus de 50% de 60 à 120cm de longueur | K89: 3.16 | L89: 662 | M89: 3.79
A90: 01 | B90: Meubles_de_salon_sejour_salle_a_manger | C90: 021 | D90: Plans de pose et plans de travail | E90: 06 | F90: Matériaux bio sourcés ou textiles non synthétiques à plus de 50% en gestion durable certifiée | G90: 098 | H90: de 60 à 120cm de longueur | I90: 01021060980 | J90: Meuble de salon/salle à manger, de type plans de pose et plans de travail en matériaux bio sourcés ou textiles non synthétiques à plus de 50% en gestion durable certifiée de 60 à 120cm de longueur | K90: 3.16 | L90: 662 | M90: 3.79
A91: 01 | B91: Meubles_de_salon_sejour_salle_a_manger | C91: 021 | D91: Plans de pose et plans de travail | E91: 37 | F91: Matériaux bio sourcés ou textiles non synthétiques à plus de 95% en gestion durable certifiée | G91: 098 | H91: de 60 à 120cm de longueur | I91: 01021370980 | J91: Meuble de salon/salle à manger, de type plans de pose et plans de travail en matériaux bio sourcés ou textiles non synthétiques à plus de 95% en gestion durable certifiée de 60 à 120cm de longueur | K91: 3.16 | L91: 662 | M91: 3.79
A92: 01 | B92: Meubles_de_salon_sejour_salle_a_manger | C92: 021 | D92: Plans de pose et plans de travail | E92: 38 | F92: Papier, carton à plus de 50% en gestion non certifiée | G92: 098 | H92: de 60 à 120cm de longueur | I92: 01021380980 | J92: Meuble de salon/salle à manger, de type plans de pose et plans de travail en papier, carton à plus de 50% en gestion non certifiée de 60 à 120cm de longueur | K92: 3.16 | L92: 662 | M92: 3.79
A93: 01 | B93: Meubles_de_salon_sejour_salle_a_manger | C93: 021 | D93: Plans de pose et plans de travail | E93: 52 | F93: Bois massif à plus de 95% en gestion non certifiée | G93: 098 | H93: de 60 à 120cm de longueur | I93: 01021520980 | J93: Meuble de salon/salle à manger, de type plans de pose et plans de travail en bois massif à plus de 95% en gestion non certifiée de 60 à 120cm de longueur | K93: 3.16 | L93: 662 | M93: 3.79
A94: 01 | B94: Meubles_de_salon_sejour_salle_a_manger | C94: 021 | D94: Plans de pose et plans de travail | E94: 01 | F94: Bois, panneaux et dérivés de bois à plus de 50% en gestion durable certifiée | G94: 099 | H94: de 120 à 180cm de longueur | I94: 01021010990 | J94: Meuble de salon/salle à manger, de type plans de pose et plans de travail en bois, panneaux et dérivés de bois à plus de 50% en gestion durable certifiée de 120 à 180cm de longueur | K94: 4.33 | L94: 408 | M94: 5.2
A95: 01 | B95: Meubles_de_salon_sejour_salle_a_manger | C95: 021 | D95: Plans de pose et plans de travail | E95: 03 | F95: Bambou/Rotin à plus de 50% | G95: 099 | H95: de 120 à 180cm de longueur | I95: 01021030990 | J95: Meuble de salon/salle à manger, de type plans de pose et plans de travail en bambou/rotin à plus de 50% de 120 à 180cm de longueur | K95: 4.33 | L95: 408 | M95: 5.2
A96: 01 | B96: Meubles_de_salon_sejour_salle_a_manger | C96: 021 | D96: Plans de pose et plans de travail | E96: 06 | F96: Matériaux bio sourcés ou textiles non synthétiques à plus de 50% en gestion durable certifiée | G96: 099 | H96: de 120 à 180cm de longueur | I96: 01021060990 | J96: Meuble de salon/salle à manger, de type plans de pose et plans de travail en matériaux bio sourcés ou textiles non synthétiques à plus de 50% en gestion durable certifiée de 120 à 180cm de longueur | K96: 4.33 | L96: 408 | M96: 5.2
A97: 01 | B97: Meubles_de_salon_sejour_salle_a_manger | C97: 021 | D97: Plans de pose et plans de travail | E97: 37 | F97: Matériaux bio sourcés ou textiles non synthétiques à plus de 95% en gestion durable certifiée | G97: 099 | H97: de 120 à 180cm de longueur | I97: 01021370990 | J97: Meuble de salon/salle à manger, de type plans de pose et plans de travail en matériaux bio sourcés ou textiles non synthétiques à plus de 95% en gestion durable certifiée de 120 à 180cm de longueur | K97: 4.33 | L97: 408 | M97: 5.2
A98: 01 | B98: Meubles_de_salon_sejour_salle_a_manger | C98: 021 | D98: Plans de pose et plans de travail | E98: 38 | F98: Papier, carton à plus de 50% en gestion non certifiée | G98: 099 | H98: de 120 à 180cm de longueur | I98: 01021380990 | J98: Meuble de salon/salle à manger, de type plans de pose et plans de travail en papier, carton à plus de 50% en gestion non certifiée de 120 à 180cm de longueur | K98: 4.33 | L98: 408 | M98: 5.2
A99: 01 | B99: Meubles_de_salon_sejour_salle_a_manger | C99: 021 | D99: Plans de pose et plans de travail | E99: 52 | F99: Bois massif à plus de 95% en gestion non certifiée | G99: 099 | H99: de 120 à 180cm de longueur | I99: 01021520990 | J99: Meuble de salon/salle à manger, de type plans de pose et plans de travail en bois massif à plus de 95% en gestion non certifiée de 120 à 180cm de longueur | K99: 4.33 | L99: 408 | M99: 5.2
A100: 01 | B100: Meubles_de_salon_sejour_salle_a_manger | C100: 021 | D100: Plans de pose et plans de travail | E100: 01 | F100: Bois, panneaux et dérivés de bois à plus de 50% en gestion durable certifiée | G100: 100 | H100: de 180 à 240cm de longueur | I100: 01021011000 | J100: Meuble de salon/salle à manger, de type plans de pose et plans de travail en bois, panneaux et dérivés de bois à plus de 50% en gestion durable certifiée de 180 à 240cm de longueur | K100: 5.78 | L100: 665 | M100: 6.94
A101: 01 | B101: Meubles_de_salon_sejour_salle_a_manger | C101: 021 | D101: Plans de pose et plans de travail | E101: 03 | F101: Bambou/Rotin à plus de 50% | G101: 100 | H101: de 180 à 240cm de longueur | I101: 01021031000 | J101: Meuble de salon/salle à manger, de type plans de pose et plans de travail en bambou/rotin à plus de 50% de 180 à 240cm de longueur | K101: 5.78 | L101: 665 | M101: 6.94
A102: 01 | B102: Meubles_de_salon_sejour_salle_a_manger | C102: 021 | D102: Plans de pose et plans de travail | E102: 06 | F102: Matériaux bio sourcés ou textiles non synthétiques à plus de 50% en gestion durable certifiée | G102: 100 | H102: de 180 à 240cm de longueur | I102: 01021061000 | J102: Meuble de salon/salle à manger, de type plans de pose et plans de travail en matériaux bio sourcés ou textiles non synthétiques à plus de 50% en gestion durable certifiée de 180 à 240cm de longueur | K102: 5.78 | L102: 665 | M102: 6.94
A103: 01 | B103: Meubles_de_salon_sejour_salle_a_manger | C103: 021 | D103: Plans de pose et plans de travail | E103: 37 | F103: Matériaux bio sourcés ou textiles non synthétiques à plus de 95% en gestion durable certifiée | G103: 100 | H103: de 180 à 240cm de longueur | I103: 01021371000 | J103: Meuble de salon/salle à manger, de type plans de pose et plans de travail en matériaux bio sourcés ou textiles non synthétiques à plus de 95% en gestion durable certifiée de 180 à 240cm de longueur | K103: 5.78 | L103: 665 | M103: 6.94
A104: 01 | B104: Meubles_de_salon_sejour_salle_a_manger | C104: 021 | D104: Plans de pose et plans de travail | E104: 38 | F104: Papier, carton à plus de 50% en gestion non certifiée | G104: 100 | H104: de 180 à 240cm de longueur | I104: 01021381000 | J104: Meuble de salon/salle à manger, de type plans de pose et plans de travail en papier, carton à plus de 50% en gestion non certifiée de 180 à 240cm de longueur | K104: 5.78 | L104: 665 | M104: 6.94
A105: 01 | B105: Meubles_de_salon_sejour_salle_a_manger | C105: 021 | D105: Plans de pose et plans de travail | E105: 52 | F105: Bois massif à plus de 95% en gestion non certifiée | G105: 100 | H105: de 180 à 240cm de longueur | I105: 01021521000 | J105: Meuble de salon/salle à manger, de type plans de pose et plans de travail en bois massif à plus de 95% en gestion non certifiée de 180 à 240cm de longueur | K105: 5.78 | L105: 665 | M105: 6.94
A106: 01 | B106: Meubles_de_salon_sejour_salle_a_manger | C106: 021 | D106: Plans de pose et plans de travail | E106: 01 | F106: Bois, panneaux et dérivés de bois à plus de 50% en gestion durable certifiée | G106: 101 | H106: plus de 240cm de longueur | I106: 01021011010 | J106: Meuble de salon/salle à manger, de type plans de pose et plans de travail en bois, panneaux et dérivés de bois à plus de 50% en gestion durable certifiée de plus de 240cm de longueur | K106: 9.03 | L106: 667 | M106: 10.84
A107: 01 | B107: Meubles_de_salon_sejour_salle_a_manger | C107: 021 | D107: Plans de pose et plans de travail | E107: 03 | F107: Bambou/Rotin à plus de 50% | G107: 101 | H107: plus de 240cm de longueur | I107: 01021031010 | J107: Meuble de salon/salle à manger, de type plans de pose et plans de travail en bambou/rotin à plus de 50% de plus de 240cm de longueur | K107: 9.03 | L107: 667 | M107: 10.84
A108: 01 | B108: Meubles_de_salon_sejour_salle_a_manger | C108: 021 | D108: Plans de pose et plans de travail | E108: 06 | F108: Matériaux bio sourcés ou textiles non synthétiques à plus de 50% en gestion durable certifiée | G108: 101 | H108: plus de 240cm de longueur | I108: 01021061010 | J108: Meuble de salon/salle à manger, de type plans de pose et plans de travail en matériaux bio sourcés ou textiles non synthétiques à plus de 50% en gestion durable certifiée de plus de 240cm de longueur | K108: 9.03 | L108: 667 | M108: 10.84
A109: 01 | B109: Meubles_de_salon_sejour_salle_a_manger | C109: 021 | D109: Plans de pose et plans de travail | E109: 37 | F109: Matériaux bio sourcés ou textiles non synthétiques à plus de 95% en gestion durable certifiée | G109: 101 | H109: plus de 240cm de longueur | I109: 01021371010 | J109: Meuble de salon/salle à manger, de type plans de pose et plans de travail en matériaux bio sourcés ou textiles non synthétiques à plus de 95% en gestion durable certifiée de plus de 240cm de longueur | K109: 9.03 | L109: 667 | M109: 10.84
A110: 01 | B110: Meubles_de_salon_sejour_salle_a_manger | C110: 021 | D110: Plans de pose et plans de travail | E110: 38 | F110: Papier, carton à plus de 50% en gestion non certifiée | G110: 101 | H110: plus de 240cm de longueur | I110: 01021381010 | J110: Meuble de salon/salle à manger, de type plans de pose et plans de travail en papier, carton à plus de 50% en gestion non certifiée de plus de 240cm de longueur | K110: 9.03 | L110: 667 | M110: 10.84
A111: 01 | B111: Meubles_de_salon_sejour_salle_a_manger | C111: 021 | D111: Plans de pose et plans de travail | E111: 52 | F111: Bois massif à plus de 95% en gestion non certifiée | G111: 101 | H111: plus de 240cm de longueur | I111: 01021521010 | J111: Meuble de salon/salle à manger, de type plans de pose et plans de travail en bois massif à plus de 95% en gestion non certifiée de plus de 240cm de longueur | K111: 9.03 | L111: 667 | M111: 10.84
A112: 01 | B112: Meubles_de_salon_sejour_salle_a_manger | C112: 021 | D112: Plans de pose et plans de travail | E112: 21 | F112: Bois massif à plus de 75% en gestion non certifiée | G112: 097 | H112: de 0 à 60cm de longueur | I112: 01021210970 | J112: Meuble de salon/salle à manger, de type plans de pose et plans de travail en bois massif à plus de 75% en gestion non certifiée de 0 à 60cm de longueur | K112: 2.2 | L112: 390 | M112: 2.64
A113: 01 | B113: Meubles_de_salon_sejour_salle_a_manger | C113: 021 | D113: Plans de pose et plans de travail | E113: 29 | F113: Panneaux de particules et/ou bois et/ou métal à plus de 75% en gestion non certifiée | G113: 097 | H113: de 0 à 60cm de longueur | I113: 01021290970 | J113: Meuble de salon/salle à manger, de type plans de pose et plans de travail en panneaux de particules et/ou bois et/ou métal à plus de 75% en gestion non certifiée de 0 à 60cm de longueur | K113: 2.2 | L113: 390 | M113: 2.64
A114: 01 | B114: Meubles_de_salon_sejour_salle_a_manger | C114: 021 | D114: Plans de pose et plans de travail | E114: 30 | F114: Panneaux de particules à plus de 75% en gestion non certifiée | G114: 097 | H114: de 0 à 60cm de longueur | I114: 01021300970 | J114: Meuble de salon/salle à manger, de type plans de pose et plans de travail en panneaux de particules à plus de 75% en gestion non certifiée de 0 à 60cm de longueur | K114: 2.2 | L114: 390 | M114: 2.64
A115: 01 | B115: Meubles_de_salon_sejour_salle_a_manger | C115: 021 | D115: Plans de pose et plans de travail | E115: 31 | F115: OSB et métal à plus de 75% en gestion non certifiée | G115: 097 | H115: de 0 à 60cm de longueur | I115: 01021310970 | J115: Meuble de salon/salle à manger, de type plans de pose et plans de travail en OSB et métal à plus de 75% en gestion non certifiée de 0 à 60cm de longueur | K115: 2.2 | L115: 390 | M115: 2.64
A116: 01 | B116: Meubles_de_salon_sejour_salle_a_manger | C116: 021 | D116: Plans de pose et plans de travail | E116: 60 | F116: OSB à plus de 75% en gestion non certifiée | G116: 097 | H116: de 0 à 60cm de longueur | I116: 01021600970 | J116: Meuble de salon/salle à manger, de type plans de pose et plans de travail en OSB à plus de 75% en gestion non certifiée de 0 à 60cm de longueur | K116: 2.2 | L116: 390 | M116: 2.64
A117: 01 | B117: Meubles_de_salon_sejour_salle_a_manger | C117: 021 | D117: Plans de pose et plans de travail | E117: 21 | F117: Bois massif à plus de 75% en gestion non certifiée | G117: 098 | H117: de 60 à 120cm de longueur | I117: 01021210980 | J117: Meuble de salon/salle à manger, de type plans de pose et plans de travail en bois massif à plus de 75% en gestion non certifiée de 60 à 120cm de longueur | K117: 3.22 | L117: 679 | M117: 3.86
A118: 01 | B118: Meubles_de_salon_sejour_salle_a_manger | C118: 021 | D118: Plans de pose et plans de travail | E118: 29 | F118: Panneaux de particules et/ou bois et/ou métal à plus de 75% en gestion non certifiée | G118: 098 | H118: de 60 à 120cm de longueur | I118: 01021290980 | J118: Meuble de salon/salle à manger, de type plans de pose et plans de travail en panneaux de particules et/ou bois et/ou métal à plus de 75% en gestion non certifiée de 60 à 120cm de longueur | K118: 3.22 | L118: 679 | M118: 3.86
A119: 01 | B119: Meubles_de_salon_sejour_salle_a_manger | C119: 021 | D119: Plans de pose et plans de travail | E119: 30 | F119: Panneaux de particules à plus de 75% en gestion non certifiée | G119: 098 | H119: de 60 à 120cm de longueur | I119: 01021300980 | J119: Meuble de salon/salle à manger, de type plans de pose et plans de travail en panneaux de particules à plus de 75% en gestion non certifiée de 60 à 120cm de longueur | K119: 3.22 | L119: 679 | M119: 3.86
A120: 01 | B120: Meubles_de_salon_sejour_salle_a_manger | C120: 021 | D120: Plans de pose et plans de travail | E120: 31 | F120: OSB et métal à plus de 75% en gestion non certifiée | G120: 098 | H120: de 60 à 120cm de longueur | I120: 01021310980 | J120: Meuble de salon/salle à manger, de type plans de pose et plans de travail en OSB et métal à plus de 75% en gestion non certifiée de 60 à 120cm de longueur | K120: 3.22 | L120: 679 | M120: 3.86
A121: 01 | B121: Meubles_de_salon_sejour_salle_a_manger | C121: 021 | D121: Plans de pose et plans de travail | E121: 60 | F121: OSB à plus de 75% en gestion non certifiée | G121: 098 | H121: de 60 à 120cm de longueur | I121: 01021600980 | J121: Meuble de salon/salle à manger, de type plans de pose et plans de travail en OSB à plus de 75% en gestion non certifiée de 60 à 120cm de longueur | K121: 3.22 | L121: 679 | M121: 3.86
A122: 01 | B122: Meubles_de_salon_sejour_salle_a_manger | C122: 021 | D122: Plans de pose et plans de travail | E122: 21 | F122: Bois massif à plus de 75% en gestion non certifiée | G122: 099 | H122: de 120 à 180cm de longueur | I122: 01021210990 | J122: Meuble de salon/salle à manger, de type plans de pose et plans de travail en bois massif à plus de 75% en gestion non certifiée de 120 à 180cm de longueur | K122: 4.62 | L122: 680 | M122: 5.54
A123: 01 | B123: Meubles_de_salon_sejour_salle_a_manger | C123: 021 | D123: Plans de pose et plans de travail | E123: 29 | F123: Panneaux de particules et/ou bois et/ou métal à plus de 75% en gestion non certifiée | G123: 099 | H123: de 120 à 180cm de longueur | I123: 01021290990 | J123: Meuble de salon/salle à manger, de type plans de pose et plans de travail en panneaux de particules et/ou bois et/ou métal à plus de 75% en gestion non certifiée de 120 à 180cm de longueur | K123: 4.62 | L123: 680 | M123: 5.54
A124: 01 | B124: Meubles_de_salon_sejour_salle_a_manger | C124: 021 | D124: Plans de pose et plans de travail | E124: 30 | F124: Panneaux de particules à plus de 75% en gestion non certifiée | G124: 099 | H124: de 120 à 180cm de longueur | I124: 01021300990 | J124: Meuble de salon/salle à manger, de type plans de pose et plans de travail en panneaux de particules à plus de 75% en gestion non certifiée de 120 à 180cm de longueur | K124: 4.62 | L124: 680 | M124: 5.54
A125: 01 | B125: Meubles_de_salon_sejour_salle_a_manger | C125: 021 | D125: Plans de pose et plans de travail | E125: 31 | F125: OSB et métal à plus de 75% en gestion non certifiée | G125: 099 | H125: de 120 à 180cm de longueur | I125: 01021310990 | J125: Meuble de salon/salle à manger, de type plans de pose et plans de travail en OSB et métal à plus de 75% en gestion non certifiée de 120 à 180cm de longueur | K125: 4.62 | L125: 680 | M125: 5.54
A126: 01 | B126: Meubles_de_salon_sejour_salle_a_manger | C126: 021 | D126: Plans de pose et plans de travail | E126: 60 | F126: OSB à plus de 75% en gestion non certifiée | G126: 099 | H126: de 120 à 180cm de longueur | I126: 01021600990 | J126: Meuble de salon/salle à manger, de type plans de pose et plans de travail en OSB à plus de 75% en gestion non certifiée de 120 à 180cm de longueur | K126: 4.62 | L126: 680 | M126: 5.54
A127: 01 | B127: Meubles_de_salon_sejour_salle_a_manger | C127: 021 | D127: Plans de pose et plans de travail | E127: 21 | F127: Bois massif à plus de 75% en gestion non certifiée | G127: 100 | H127: de 180 à 240cm de longueur | I127: 01021211000 | J127: Meuble de salon/salle à manger, de type plans de pose et plans de travail en bois massif à plus de 75% en gestion non certifiée de 180 à 240cm de longueur | K127: 6.17 | L127: 681 | M127: 7.4
A128: 01 | B128: Meubles_de_salon_sejour_salle_a_manger | C128: 021 | D128: Plans de pose et plans de travail | E128: 29 | F128: Panneaux de particules et/ou bois et/ou métal à plus de 75% en gestion non certifiée | G128: 100 | H128: de 180 à 240cm de longueur | I128: 01021291000 | J128: Meuble de salon/salle à manger, de type plans de pose et plans de travail en panneaux de particules et/ou bois et/ou métal à plus de 75% en gestion non certifiée de 180 à 240cm de longueur | K128: 6.17 | L128: 681 | M128: 7.4
A129: 01 | B129: Meubles_de_salon_sejour_salle_a_manger | C129: 021 | D129: Plans de pose et plans de travail | E129: 30 | F129: Panneaux de particules à plus de 75% en gestion non certifiée | G129: 100 | H129: de 180 à 240cm de longueur | I129: 01021301000 | J129: Meuble de salon/salle à manger, de type plans de pose et plans de travail en panneaux de particules à plus de 75% en gestion non certifiée de 180 à 240cm de longueur | K129: 6.17 | L129: 681 | M129: 7.4
A130: 01 | B130: Meubles_de_salon_sejour_salle_a_manger | C130: 021 | D130: Plans de pose et plans de travail | E130: 31 | F130: OSB et métal à plus de 75% en gestion non certifiée | G130: 100 | H130: de 180 à 240cm de longueur | I130: 01021311000 | J130: Meuble de salon/salle à manger, de type plans de pose et plans de travail en OSB et métal à plus de 75% en gestion non certifiée de 180 à 240cm de longueur | K130: 6.17 | L130: 681 | M130: 7.4
A131: 01 | B131: Meubles_de_salon_sejour_salle_a_manger | C131: 021 | D131: Plans de pose et plans de travail | E131: 60 | F131: OSB à plus de 75% en gestion non certifiée | G131: 100 | H131: de 180 à 240cm de longueur | I131: 01021601000 | J131: Meuble de salon/salle à manger, de type plans de pose et plans de travail en OSB à plus de 75% en gestion non certifiée de 180 à 240cm de longueur | K131: 6.17 | L131: 681 | M131: 7.4
A132: 01 | B132: Meubles_de_salon_sejour_salle_a_manger | C132: 021 | D132: Plans de pose et plans de travail | E132: 21 | F132: Bois massif à plus de 75% en gestion non certifiée | G132: 101 | H132: plus de 240cm de longueur | I132: 01021211010 | J132: Meuble de salon/salle à manger, de type plans de pose et plans de travail en bois massif à plus de 75% en gestion non certifiée de plus de 240cm de longueur | K132: 10.27 | L132: 682 | M132: 12.32
A133: 01 | B133: Meubles_de_salon_sejour_salle_a_manger | C133: 021 | D133: Plans de pose et plans de travail | E133: 29 | F133: Panneaux de particules et/ou bois et/ou métal à plus de 75% en gestion non certifiée | G133: 101 | H133: plus de 240cm de longueur | I133: 01021291010 | J133: Meuble de salon/salle à manger, de type plans de pose et plans de travail en panneaux de particules et/ou bois et/ou métal à plus de 75% en gestion non certifiée de plus de 240cm de longueur | K133: 10.27 | L133: 682 | M133: 12.32
A134: 01 | B134: Meubles_de_salon_sejour_salle_a_manger | C134: 021 | D134: Plans de pose et plans de travail | E134: 30 | F134: Panneaux de particules à plus de 75% en gestion non certifiée | G134: 101 | H134: plus de 240cm de longueur | I134: 01021301010 | J134: Meuble de salon/salle à manger, de type plans de pose et plans de travail en panneaux de particules à plus de 75% en gestion non certifiée de plus de 240cm de longueur | K134: 10.27 | L134: 682 | M134: 12.32
A135: 01 | B135: Meubles_de_salon_sejour_salle_a_manger | C135: 021 | D135: Plans de pose et plans de travail | E135: 31 | F135: OSB et métal à plus de 75% en gestion non certifiée | G135: 101 | H135: plus de 240cm de longueur | I135: 01021311010 | J135: Meuble de salon/salle à manger, de type plans de pose et plans de travail en OSB et métal à plus de 75% en gestion non certifiée de plus de 240cm de longueur | K135: 10.27 | L135: 682 | M135: 12.32
A136: 01 | B136: Meubles_de_salon_sejour_salle_a_manger | C136: 021 | D136: Plans de pose et plans de travail | E136: 60 | F136: OSB à plus de 75% en gestion non certifiée | G136: 101 | H136: plus de 240cm de longueur | I136: 01021601010 | J136: Meuble de salon/salle à manger, de type plans de pose et plans de travail en OSB à plus de 75% en gestion non certifiée de plus de 240cm de longueur | K136: 10.27 | L136: 682 | M136: 12.32
A137: 01 | B137: Meubles_de_salon_sejour_salle_a_manger | C137: 021 | D137: Plans de pose et plans de travail | E137: 41 | F137: Plastiques (mono résine) à plus de 95% | G137: 097 | H137: de 0 à 60cm de longueur | I137: 01021410970 | J137: Meuble de salon/salle à manger, de type plans de pose et plans de travail en plastiques (mono résine) à plus de 95% de 0 à 60cm de longueur | K137: 2.94 | L137: 689 | M137: 3.53
A138: 01 | B138: Meubles_de_salon_sejour_salle_a_manger | C138: 021 | D138: Plans de pose et plans de travail | E138: 42 | F138: Polyterephtalate d'Ethylène (PET) à plus de 95% | G138: 097 | H138: de 0 à 60cm de longueur | I138: 01021420970 | J138: Meuble de salon/salle à manger, de type plans de pose et plans de travail en polyterephtalate d'ethylène (pet) à plus de 95% de 0 à 60cm de longueur | K138: 2.94 | L138: 689 | M138: 3.53
A139: 01 | B139: Meubles_de_salon_sejour_salle_a_manger | C139: 021 | D139: Plans de pose et plans de travail | E139: 45 | F139: PE ou PP ou mélange PP/PE à plus de 95% | G139: 097 | H139: de 0 à 60cm de longueur | I139: 01021450970 | J139: Meuble de salon/salle à manger, de type plans de pose et plans de travail en PE ou PP ou mélange PP/PE à plus de 95% de 0 à 60cm de longueur | K139: 2.94 | L139: 689 | M139: 3.53
A140: 01 | B140: Meubles_de_salon_sejour_salle_a_manger | C140: 021 | D140: Plans de pose et plans de travail | E140: 46 | F140: ABS à plus de 95% | G140: 097 | H140: de 0 à 60cm de longueur | I140: 01021460970 | J140: Meuble de salon/salle à manger, de type plans de pose et plans de travail en ABS à plus de 95% de 0 à 60cm de longueur | K140: 2.94 | L140: 689 | M140: 3.53
A141: 01 | B141: Meubles_de_salon_sejour_salle_a_manger | C141: 021 | D141: Plans de pose et plans de travail | E141: 47 | F141: Polystyrène à plus de 95% | G141: 097 | H141: de 0 à 60cm de longueur | I141: 01021470970 | J141: Meuble de salon/salle à manger, de type plans de pose et plans de travail en polystyrène à plus de 95% de 0 à 60cm de longueur | K141: 2.94 | L141: 689 | M141: 3.53
A142: 01 | B142: Meubles_de_salon_sejour_salle_a_manger | C142: 021 | D142: Plans de pose et plans de travail | E142: 48 | F142: PVC à plus de 95% | G142: 097 | H142: de 0 à 60cm de longueur | I142: 01021480970 | J142: Meuble de salon/salle à manger, de type plans de pose et plans de travail en PVC à plus de 95% de 0 à 60cm de longueur | K142: 2.94 | L142: 689 | M142: 3.53
A143: 01 | B143: Meubles_de_salon_sejour_salle_a_manger | C143: 021 | D143: Plans de pose et plans de travail | E143: 65 | F143: Matériaux ou fibres synthétiques à plus de 95% | G143: 097 | H143: de 0 à 60cm de longueur | I143: 01021650970 | J143: Meuble de salon/salle à manger, de type plans de pose et plans de travail en matériaux ou fibres synthétiques à plus de 95% de 0 à 60cm de longueur | K143: 2.94 | L143: 689 | M143: 3.53
A144: 01 | B144: Meubles_de_salon_sejour_salle_a_manger | C144: 021 | D144: Plans de pose et plans de travail | E144: 66 | F144: Textile et rembourrage en polyester à plus de 95% | G144: 097 | H144: de 0 à 60cm de longueur | I144: 01021660970 | J144: Meuble de salon/salle à manger, de type plans de pose et plans de travail en textile et rembourrage en polyester à plus de 95% de 0 à 60cm de longueur | K144: 2.94 | L144: 689 | M144: 3.53
A145: 01 | B145: Meubles_de_salon_sejour_salle_a_manger | C145: 021 | D145: Plans de pose et plans de travail | E145: 41 | F145: Plastiques (mono résine) à plus de 95% | G145: 098 | H145: de 60 à 120cm de longueur | I145: 01021410980 | J145: Meuble de salon/salle à manger, de type plans de pose et plans de travail en plastiques (mono résine) à plus de 95% de 60 à 120cm de longueur | K145: 4.1 | L145: 690 | M145: 4.92
A146: 01 | B146: Meubles_de_salon_sejour_salle_a_manger | C146: 021 | D146: Plans de pose et plans de travail | E146: 42 | F146: Polyterephtalate d'Ethylène (PET) à plus de 95% | G146: 098 | H146: de 60 à 120cm de longueur | I146: 01021420980 | J146: Meuble de salon/salle à manger, de type plans de pose et plans de travail en polyterephtalate d'ethylène (pet) à plus de 95% de 60 à 120cm de longueur | K146: 4.1 | L146: 690 | M146: 4.92
A147: 01 | B147: Meubles_de_salon_sejour_salle_a_manger | C147: 021 | D147: Plans de pose et plans de travail | E147: 45 | F147: PE ou PP ou mélange PP/PE à plus de 95% | G147: 098 | H147: de 60 à 120cm de longueur | I147: 01021450980 | J147: Meuble de salon/salle à manger, de type plans de pose et plans de travail en PE ou PP ou mélange PP/PE à plus de 95% de 60 à 120cm de longueur | K147: 4.1 | L147: 690 | M147: 4.92
A148: 01 | B148: Meubles_de_salon_sejour_salle_a_manger | C148: 021 | D148: Plans de pose et plans de travail | E148: 46 | F148: ABS à plus de 95% | G148: 098 | H148: de 60 à 120cm de longueur | I148: 01021460980 | J148: Meuble de salon/salle à manger, de type plans de pose et plans de travail en ABS à plus de 95% de 60 à 120cm de longueur | K148: 4.1 | L148: 690 | M148: 4.92
A149: 01 | B149: Meubles_de_salon_sejour_salle_a_manger | C149: 021 | D149: Plans de pose et plans de travail | E149: 47 | F149: Polystyrène à plus de 95% | G149: 098 | H149: de 60 à 120cm de longueur | I149: 01021470980 | J149: Meuble de salon/salle à manger, de type plans de pose et plans de travail en polystyrène à plus de 95% de 60 à 120cm de longueur | K149: 4.1 | L149: 690 | M149: 4.92
A150: 01 | B150: Meubles_de_salon_sejour_salle_a_manger | C150: 021 | D150: Plans de pose et plans de travail | E150: 48 | F150: PVC à plus de 95% | G150: 098 | H150: de 60 à 120cm de longueur | I150: 01021480980 | J150: Meuble de salon/salle à manger, de type plans de pose et plans de travail en PVC à plus de 95% de 60 à 120cm de longueur | K150: 4.1 | L150: 690 | M150: 4.92
A151: 01 | B151: Meubles_de_salon_sejour_salle_a_manger | C151: 021 | D151: Plans de pose et plans de travail | E151: 65 | F151: Matériaux ou fibres synthétiques à plus de 95% | G151: 098 | H151: de 60 à 120cm de longueur | I151: 01021650980 | J151: Meuble de salon/salle à manger, de type plans de pose et plans de travail en matériaux ou fibres synthétiques à plus de 95% de 60 à 120cm de longueur | K151: 4.1 | L151: 690 | M151: 4.92
A152: 01 | B152: Meubles_de_salon_sejour_salle_a_manger | C152: 021 | D152: Plans de pose et plans de travail | E152: 66 | F152: Textile et rembourrage en polyester à plus de 95% | G152: 098 | H152: de 60 à 120cm de longueur | I152: 01021660980 | J152: Meuble de salon/salle à manger, de type plans de pose et plans de travail en textile et rembourrage en polyester à plus de 95% de 60 à 120cm de longueur | K152: 4.1 | L152: 690 | M152: 4.92
A153: 01 | B153: Meubles_de_salon_sejour_salle_a_manger | C153: 021 | D153: Plans de pose et plans de travail | E153: 41 | F153: Plastiques (mono résine) à plus de 95% | G153: 099 | H153: de 120 à 180cm de longueur | I153: 01021410990 | J153: Meuble de salon/salle à manger, de type plans de pose et plans de travail en plastiques (mono résine) à plus de 95% de 120 à 180cm de longueur | K153: 5.87 | L153: 691 | M153: 7.04
A154: 01 | B154: Meubles_de_salon_sejour_salle_a_manger | C154: 021 | D154: Plans de pose et plans de travail | E154: 42 | F154: Polyterephtalate d'Ethylène (PET) à plus de 95% | G154: 099 | H154: de 120 à 180cm de longueur | I154: 01021420990 | J154: Meuble de salon/salle à manger, de type plans de pose et plans de travail en polyterephtalate d'ethylène (pet) à plus de 95% de 120 à 180cm de longueur | K154: 5.87 | L154: 691 | M154: 7.04
A155: 01 | B155: Meubles_de_salon_sejour_salle_a_manger | C155: 021 | D155: Plans de pose et plans de travail | E155: 45 | F155: PE ou PP ou mélange PP/PE à plus de 95% | G155: 099 | H155: de 120 à 180cm de longueur | I155: 01021450990 | J155: Meuble de salon/salle à manger, de type plans de pose et plans de travail en PE ou PP ou mélange PP/PE à plus de 95% de 120 à 180cm de longueur | K155: 5.87 | L155: 691 | M155: 7.04
A156: 01 | B156: Meubles_de_salon_sejour_salle_a_manger | C156: 021 | D156: Plans de pose et plans de travail | E156: 46 | F156: ABS à plus de 95% | G156: 099 | H156: de 120 à 180cm de longueur | I156: 01021460990 | J156: Meuble de salon/salle à manger, de type plans de pose et plans de travail en ABS à plus de 95% de 120 à 180cm de longueur | K156: 5.87 | L156: 691 | M156: 7.04
A157: 01 | B157: Meubles_de_salon_sejour_salle_a_manger | C157: 021 | D157: Plans de pose et plans de travail | E157: 47 | F157: Polystyrène à plus de 95% | G157: 099 | H157: de 120 à 180cm de longueur | I157: 01021470990 | J157: Meuble de salon/salle à manger, de type plans de pose et plans de travail en polystyrène à plus de 95% de 120 à 180cm de longueur | K157: 5.87 | L157: 691 | M157: 7.04
A158: 01 | B158: Meubles_de_salon_sejour_salle_a_manger | C158: 021 | D158: Plans de pose et plans de travail | E158: 48 | F158: PVC à plus de 95% | G158: 099 | H158: de 120 à 180cm de longueur | I158: 01021480990 | J158: Meuble de salon/salle à manger, de type plans de pose et plans de travail en PVC à plus de 95% de 120 à 180cm de longueur | K158: 5.87 | L158: 691 | M158: 7.04
A159: 01 | B159: Meubles_de_salon_sejour_salle_a_manger | C159: 021 | D159: Plans de pose et plans de travail | E159: 65 | F159: Matériaux ou fibres synthétiques à plus de 95% | G159: 099 | H159: de 120 à 180cm de longueur | I159: 01021650990 | J159: Meuble de salon/salle à manger, de type plans de pose et plans de travail en matériaux ou fibres synthétiques à plus de 95% de 120 à 180cm de longueur | K159: 5.87 | L159: 691 | M159: 7.04
A160: 01 | B160: Meubles_de_salon_sejour_salle_a_manger | C160: 021 | D160: Plans de pose et plans de travail | E160: 66 | F160: Textile et rembourrage en polyester à plus de 95% | G160: 099 | H160: de 120 à 180cm de longueur | I160: 01021660990 | J160: Meuble de salon/salle à manger, de type plans de pose et plans de travail en textile et rembourrage en polyester à plus de 95% de 120 à 180cm de longueur | K160: 5.87 | L160: 691 | M160: 7.04
A161: 01 | B161: Meubles_de_salon_sejour_salle_a_manger | C161: 021 | D161: Plans de pose et plans de travail | E161: 41 | F161: Plastiques (mono résine) à plus de 95% | G161: 100 | H161: de 180 à 240cm de longueur | I161: 01021411000 | J161: Meuble de salon/salle à manger, de type plans de pose et plans de travail en plastiques (mono résine) à plus de 95% de 180 à 240cm de longueur | K161: 9.28 | L161: 692 | M161: 11.14
A162: 01 | B162: Meubles_de_salon_sejour_salle_a_manger | C162: 021 | D162: Plans de pose et plans de travail | E162: 42 | F162: Polyterephtalate d'Ethylène (PET) à plus de 95% | G162: 100 | H162: de 180 à 240cm de longueur | I162: 01021421000 | J162: Meuble de salon/salle à manger, de type plans de pose et plans de travail en polyterephtalate d'ethylène (pet) à plus de 95% de 180 à 240cm de longueur | K162: 9.28 | L162: 692 | M162: 11.14
A163: 01 | B163: Meubles_de_salon_sejour_salle_a_manger | C163: 021 | D163: Plans de pose et plans de travail | E163: 45 | F163: PE ou PP ou mélange PP/PE à plus de 95% | G163: 100 | H163: de 180 à 240cm de longueur | I163: 01021451000 | J163: Meuble de salon/salle à manger, de type plans de pose et plans de travail en PE ou PP ou mélange PP/PE à plus de 95% de 180 à 240cm de longueur | K163: 9.28 | L163: 692 | M163: 11.14
A164: 01 | B164: Meubles_de_salon_sejour_salle_a_manger | C164: 021 | D164: Plans de pose et plans de travail | E164: 46 | F164: ABS à plus de 95% | G164: 100 | H164: de 180 à 240cm de longueur | I164: 01021461000 | J164: Meuble de salon/salle à manger, de type plans de pose et plans de travail en ABS à plus de 95% de 180 à 240cm de longueur | K164: 9.28 | L164: 692 | M164: 11.14
A165: 01 | B165: Meubles_de_salon_sejour_salle_a_manger | C165: 021 | D165: Plans de pose et plans de travail | E165: 47 | F165: Polystyrène à plus de 95% | G165: 100 | H165: de 180 à 240cm de longueur | I165: 01021471000 | J165: Meuble de salon/salle à manger, de type plans de pose et plans de travail en polystyrène à plus de 95% de 180 à 240cm de longueur | K165: 9.28 | L165: 692 | M165: 11.14
A166: 01 | B166: Meubles_de_salon_sejour_salle_a_manger | C166: 021 | D166: Plans de pose et plans de travail | E166: 48 | F166: PVC à plus de 95% | G166: 100 | H166: de 180 à 240cm de longueur | I166: 01021481000 | J166: Meuble de salon/salle à manger, de type plans de pose et plans de travail en PVC à plus de 95% de 180 à 240cm de longueur | K166: 9.28 | L166: 692 | M166: 11.14
A167: 01 | B167: Meubles_de_salon_sejour_salle_a_manger | C167: 021 | D167: Plans de pose et plans de travail | E167: 65 | F167: Matériaux ou fibres synthétiques à plus de 95% | G167: 100 | H167: de 180 à 240cm de longueur | I167: 01021651000 | J167: Meuble de salon/salle à manger, de type plans de pose et plans de travail en matériaux ou fibres synthétiques à plus de 95% de 180 à 240cm de longueur | K167: 9.28 | L167: 692 | M167: 11.14
A168: 01 | B168: Meubles_de_salon_sejour_salle_a_manger | C168: 021 | D168: Plans de pose et plans de travail | E168: 66 | F168: Textile et rembourrage en polyester à plus de 95% | G168: 100 | H168: de 180 à 240cm de longueur | I168: 01021661000 | J168: Meuble de salon/salle à manger, de type plans de pose et plans de travail en textile et rembourrage en polyester à plus de 95% de 180 à 240cm de longueur | K168: 9.28 | L168: 692 | M168: 11.14
A169: 01 | B169: Meubles_de_salon_sejour_salle_a_manger | C169: 021 | D169: Plans de pose et plans de travail | E169: 41 | F169: Plastiques (mono résine) à plus de 95% | G169: 101 | H169: plus de 240cm de longueur | I169: 01021411010 | J169: Meuble de salon/salle à manger, de type plans de pose et plans de travail en plastiques (mono résine) à plus de 95% de plus de 240cm de longueur | K169: 15.46 | L169: 693 | M169: 18.55
A170: 01 | B170: Meubles_de_salon_sejour_salle_a_manger | C170: 021 | D170: Plans de pose et plans de travail | E170: 42 | F170: Polyterephtalate d'Ethylène (PET) à plus de 95% | G170: 101 | H170: plus de 240cm de longueur | I170: 01021421010 | J170: Meuble de salon/salle à manger, de type plans de pose et plans de travail en polyterephtalate d'ethylène (pet) à plus de 95% de plus de 240cm de longueur | K170: 15.46 | L170: 693 | M170: 18.55
A171: 01 | B171: Meubles_de_salon_sejour_salle_a_manger | C171: 021 | D171: Plans de pose et plans de travail | E171: 45 | F171: PE ou PP ou mélange PP/PE à plus de 95% | G171: 101 | H171: plus de 240cm de longueur | I171: 01021451010 | J171: Meuble de salon/salle à manger, de type plans de pose et plans de travail en PE ou PP ou mélange PP/PE à plus de 95% de plus de 240cm de longueur | K171: 15.46 | L171: 693 | M171: 18.55
A172: 01 | B172: Meubles_de_salon_sejour_salle_a_manger | C172: 021 | D172: Plans de pose et plans de travail | E172: 46 | F172: ABS à plus de 95% | G172: 101 | H172: plus de 240cm de longueur | I172: 01021461010 | J172: Meuble de salon/salle à manger, de type plans de pose et plans de travail en ABS à plus de 95% de plus de 240cm de longueur | K172: 15.46 | L172: 693 | M172: 18.55
A173: 01 | B173: Meubles_de_salon_sejour_salle_a_manger | C173: 021 | D173: Plans de pose et plans de travail | E173: 47 | F173: Polystyrène à plus de 95% | G173: 101 | H173: plus de 240cm de longueur | I173: 01021471010 | J173: Meuble de salon/salle à manger, de type plans de pose et plans de travail en polystyrène à plus de 95% de plus de 240cm de longueur | K173: 15.46 | L173: 693 | M173: 18.55
A174: 01 | B174: Meubles_de_salon_sejour_salle_a_manger | C174: 021 | D174: Plans de pose et plans de travail | E174: 48 | F174: PVC à plus de 95% | G174: 101 | H174: plus de 240cm de longueur | I174: 01021481010 | J174: Meuble de salon/salle à manger, de type plans de pose et plans de travail en PVC à plus de 95% de plus de 240cm de longueur | K174: 15.46 | L174: 693 | M174: 18.55
A175: 01 | B175: Meubles_de_salon_sejour_salle_a_manger | C175: 021 | D175: Plans de pose et plans de travail | E175: 65 | F175: Matériaux ou fibres synthétiques à plus de 95% | G175: 101 | H175: plus de 240cm de longueur | I175: 01021651010 | J175: Meuble de salon/salle à manger, de type plans de pose et plans de travail en matériaux ou fibres synthétiques à plus de 95% de plus de 240cm de longueur | K175: 15.46 | L175: 693 | M175: 18.55
A176: 01 | B176: Meubles_de_salon_sejour_salle_a_manger | C176: 021 | D176: Plans de pose et plans de travail | E176: 66 | F176: Textile et rembourrage en polyester à plus de 95% | G176: 101 | H176: plus de 240cm de longueur | I176: 01021661010 | J176: Meuble de salon/salle à manger, de type plans de pose et plans de travail en textile et rembourrage en polyester à plus de 95% de plus de 240cm de longueur | K176: 15.46 | L176: 693 | M176: 18.55
A177: 01 | B177: Meubles_de_salon_sejour_salle_a_manger | C177: 021 | D177: Plans de pose et plans de travail | E177: 05 | F177: Plastiques | G177: 097 | H177: de 0 à 60cm de longueur | I177: 01021050970 | J177: Meuble de salon/salle à manger, de type plans de pose et plans de travail en plastiques de 0 à 60cm de longueur | K177: 3.14 | L177: 699 | M177: 3.77
A178: 01 | B178: Meubles_de_salon_sejour_salle_a_manger | C178: 021 | D178: Plans de pose et plans de travail | E178: 67 | F178: Matériaux ou fibres synthétiques à plus de 50% | G178: 097 | H178: de 0 à 60cm de longueur | I178: 01021670970 | J178: Meuble de salon/salle à manger, de type plans de pose et plans de travail en matériaux ou fibres synthétiques à plus de 50% de 0 à 60cm de longueur | K178: 3.14 | L178: 699 | M178: 3.77
A179: 01 | B179: Meubles_de_salon_sejour_salle_a_manger | C179: 021 | D179: Plans de pose et plans de travail | E179: 05 | F179: Plastiques | G179: 098 | H179: de 60 à 120cm de longueur | I179: 01021050980 | J179: Meuble de salon/salle à manger, de type plans de pose et plans de travail en plastiques de 60 à 120cm de longueur | K179: 4.38 | L179: 591 | M179: 5.26
A180: 01 | B180: Meubles_de_salon_sejour_salle_a_manger | C180: 021 | D180: Plans de pose et plans de travail | E180: 67 | F180: Matériaux ou fibres synthétiques à plus de 50% | G180: 098 | H180: de 60 à 120cm de longueur | I180: 01021670980 | J180: Meuble de salon/salle à manger, de type plans de pose et plans de travail en matériaux ou fibres synthétiques à plus de 50% de 60 à 120cm de longueur | K180: 4.38 | L180: 591 | M180: 5.26
A181: 01 | B181: Meubles_de_salon_sejour_salle_a_manger | C181: 021 | D181: Plans de pose et plans de travail | E181: 05 | F181: Plastiques | G181: 099 | H181: de 120 à 180cm de longueur | I181: 01021050990 | J181: Meuble de salon/salle à manger, de type plans de pose et plans de travail en plastiques de 120 à 180cm de longueur | K181: 6.28 | L181: 700 | M181: 7.54
A182: 01 | B182: Meubles_de_salon_sejour_salle_a_manger | C182: 021 | D182: Plans de pose et plans de travail | E182: 67 | F182: Matériaux ou fibres synthétiques à plus de 50% | G182: 099 | H182: de 120 à 180cm de longueur | I182: 01021670990 | J182: Meuble de salon/salle à manger, de type plans de pose et plans de travail en matériaux ou fibres synthétiques à plus de 50% de 120 à 180cm de longueur | K182: 6.28 | L182: 700 | M182: 7.54
A183: 01 | B183: Meubles_de_salon_sejour_salle_a_manger | C183: 021 | D183: Plans de pose et plans de travail | E183: 05 | F183: Plastiques | G183: 100 | H183: de 180 à 240cm de longueur | I183: 01021051000 | J183: Meuble de salon/salle à manger, de type plans de pose et plans de travail en plastiques de 180 à 240cm de longueur | K183: 9.92 | L183: 701 | M183: 11.9
A184: 01 | B184: Meubles_de_salon_sejour_salle_a_manger | C184: 021 | D184: Plans de pose et plans de travail | E184: 67 | F184: Matériaux ou fibres synthétiques à plus de 50% | G184: 100 | H184: de 180 à 240cm de longueur | I184: 01021671000 | J184: Meuble de salon/salle à manger, de type plans de pose et plans de travail en matériaux ou fibres synthétiques à plus de 50% de 180 à 240cm de longueur | K184: 9.92 | L184: 701 | M184: 11.9
A185: 01 | B185: Meubles_de_salon_sejour_salle_a_manger | C185: 021 | D185: Plans de pose et plans de travail | E185: 05 | F185: Plastiques | G185: 101 | H185: plus de 240cm de longueur | I185: 01021051010 | J185: Meuble de salon/salle à manger, de type plans de pose et plans de travail en plastiques de plus de 240cm de longueur | K185: 16.54 | L185: 702 | M185: 19.85
A186: 01 | B186: Meubles_de_salon_sejour_salle_a_manger | C186: 021 | D186: Plans de pose et plans de travail | E186: 67 | F186: Matériaux ou fibres synthétiques à plus de 50% | G186: 101 | H186: plus de 240cm de longueur | I186: 01021671010 | J186: Meuble de salon/salle à manger, de type plans de pose et plans de travail en matériaux ou fibres synthétiques à plus de 50% de plus de 240cm de longueur | K186: 16.54 | L186: 702 | M186: 19.85
A187: 01 | B187: Meubles_de_salon_sejour_salle_a_manger | C187: 021 | D187: Plans de pose et plans de travail | E187: 04 | F187: Matériaux bio sourcés ou textiles non synthétiques à plus de 50% en gestion non certifiée | G187: 097 | H187: de 0 à 60cm de longueur | I187: 01021040970 | J187: Meuble de salon/salle à manger, de type plans de pose et plans de travail en matériaux bio sourcés ou textiles non synthétiques à plus de 50% en gestion non certifiée de 0 à 60cm de longueur | K187: 2.66 | L187: 661 | M187: 3.19
A188: 01 | B188: Meubles_de_salon_sejour_salle_a_manger | C188: 021 | D188: Plans de pose et plans de travail | E188: 33 | F188: Bois, panneaux et dérivés de bois à plus de 50% en gestion non certifiée | G188: 097 | H188: de 0 à 60cm de longueur | I188: 01021330970 | J188: Meuble de salon/salle à manger, de type plans de pose et plans de travail en bois, panneaux et dérivés de bois à plus de 50% en gestion non certifiée de 0 à 60cm de longueur | K188: 2.66 | L188: 661 | M188: 3.19
A189: 01 | B189: Meubles_de_salon_sejour_salle_a_manger | C189: 021 | D189: Plans de pose et plans de travail | E189: 55 | F189: Matériaux bio sourcés ou textiles non synthétiques à plus de 95% en gestion non certifiée | G189: 097 | H189: de 0 à 60cm de longueur | I189: 01021550970 | J189: Meuble de salon/salle à manger, de type plans de pose et plans de travail en matériaux bio sourcés ou textiles non synthétiques à plus de 95% en gestion non certifiée de 0 à 60cm de longueur | K189: 2.66 | L189: 661 | M189: 3.19
A190: 01 | B190: Meubles_de_salon_sejour_salle_a_manger | C190: 021 | D190: Plans de pose et plans de travail | E190: 04 | F190: Matériaux bio sourcés ou textiles non synthétiques à plus de 50% en gestion non certifiée | G190: 098 | H190: de 60 à 120cm de longueur | I190: 01021040980 | J190: Meuble de salon/salle à manger, de type plans de pose et plans de travail en matériaux bio sourcés ou textiles non synthétiques à plus de 50% en gestion non certifiée de 60 à 120cm de longueur | K190: 4.45 | L190: 663 | M190: 5.34
A191: 01 | B191: Meubles_de_salon_sejour_salle_a_manger | C191: 021 | D191: Plans de pose et plans de travail | E191: 33 | F191: Bois, panneaux et dérivés de bois à plus de 50% en gestion non certifiée | G191: 098 | H191: de 60 à 120cm de longueur | I191: 01021330980 | J191: Meuble de salon/salle à manger, de type plans de pose et plans de travail en bois, panneaux et dérivés de bois à plus de 50% en gestion non certifiée de 60 à 120cm de longueur | K191: 4.45 | L191: 663 | M191: 5.34
A192: 01 | B192: Meubles_de_salon_sejour_salle_a_manger | C192: 021 | D192: Plans de pose et plans de travail | E192: 55 | F192: Matériaux bio sourcés ou textiles non synthétiques à plus de 95% en gestion non certifiée | G192: 098 | H192: de 60 à 120cm de longueur | I192: 01021550980 | J192: Meuble de salon/salle à manger, de type plans de pose et plans de travail en matériaux bio sourcés ou textiles non synthétiques à plus de 95% en gestion non certifiée de 60 à 120cm de longueur | K192: 4.45 | L192: 663 | M192: 5.34
A193: 01 | B193: Meubles_de_salon_sejour_salle_a_manger | C193: 021 | D193: Plans de pose et plans de travail | E193: 04 | F193: Matériaux bio sourcés ou textiles non synthétiques à plus de 50% en gestion non certifiée | G193: 099 | H193: de 120 à 180cm de longueur | I193: 01021040990 | J193: Meuble de salon/salle à manger, de type plans de pose et plans de travail en matériaux bio sourcés ou textiles non synthétiques à plus de 50% en gestion non certifiée de 120 à 180cm de longueur | K193: 6.09 | L193: 664 | M193: 7.31
A194: 01 | B194: Meubles_de_salon_sejour_salle_a_manger | C194: 021 | D194: Plans de pose et plans de travail | E194: 33 | F194: Bois, panneaux et dérivés de bois à plus de 50% en gestion non certifiée | G194: 099 | H194: de 120 à 180cm de longueur | I194: 01021330990 | J194: Meuble de salon/salle à manger, de type plans de pose et plans de travail en bois, panneaux et dérivés de bois à plus de 50% en gestion non certifiée de 120 à 180cm de longueur | K194: 6.09 | L194: 664 | M194: 7.31
A195: 01 | B195: Meubles_de_salon_sejour_salle_a_manger | C195: 021 | D195: Plans de pose et plans de travail | E195: 55 | F195: Matériaux bio sourcés ou textiles non synthétiques à plus de 95% en gestion non certifiée | G195: 099 | H195: de 120 à 180cm de longueur | I195: 01021550990 | J195: Meuble de salon/salle à manger, de type plans de pose et plans de travail en matériaux bio sourcés ou textiles non synthétiques à plus de 95% en gestion non certifiée de 120 à 180cm de longueur | K195: 6.09 | L195: 664 | M195: 7.31
A196: 01 | B196: Meubles_de_salon_sejour_salle_a_manger | C196: 021 | D196: Plans de pose et plans de travail | E196: 04 | F196: Matériaux bio sourcés ou textiles non synthétiques à plus de 50% en gestion non certifiée | G196: 100 | H196: de 180 à 240cm de longueur | I196: 01021041000 | J196: Meuble de salon/salle à manger, de type plans de pose et plans de travail en matériaux bio sourcés ou textiles non synthétiques à plus de 50% en gestion non certifiée de 180 à 240cm de longueur | K196: 8.11 | L196: 707 | M196: 9.73
A197: 01 | B197: Meubles_de_salon_sejour_salle_a_manger | C197: 021 | D197: Plans de pose et plans de travail | E197: 33 | F197: Bois, panneaux et dérivés de bois à plus de 50% en gestion non certifiée | G197: 100 | H197: de 180 à 240cm de longueur | I197: 01021331000 | J197: Meuble de salon/salle à manger, de type plans de pose et plans de travail en bois, panneaux et dérivés de bois à plus de 50% en gestion non certifiée de 180 à 240cm de longueur | K197: 8.11 | L197: 707 | M197: 9.73
A198: 01 | B198: Meubles_de_salon_sejour_salle_a_manger | C198: 021 | D198: Plans de pose et plans de travail | E198: 55 | F198: Matériaux bio sourcés ou textiles non synthétiques à plus de 95% en gestion non certifiée | G198: 100 | H198: de 180 à 240cm de longueur | I198: 01021551000 | J198: Meuble de salon/salle à manger, de type plans de pose et plans de travail en matériaux bio sourcés ou textiles non synthétiques à plus de 95% en gestion non certifiée de 180 à 240cm de longueur | K198: 8.11 | L198: 707 | M198: 9.73
A199: 01 | B199: Meubles_de_salon_sejour_salle_a_manger | C199: 021 | D199: Plans de pose et plans de travail | E199: 04 | F199: Matériaux bio sourcés ou textiles non synthétiques à plus de 50% en gestion non certifiée | G199: 101 | H199: plus de 240cm de longueur | I199: 01021041010 | J199: Meuble de salon/salle à manger, de type plans de pose et plans de travail en matériaux bio sourcés ou textiles non synthétiques à plus de 50% en gestion non certifiée de plus de 240cm de longueur | K199: 12.68 | L199: 668 | M199: 15.22
A200: 01 | B200: Meubles_de_salon_sejour_salle_a_manger | C200: 021 | D200: Plans de pose et plans de travail | E200: 33 | F200: Bois, panneaux et dérivés de bois à plus de 50% en gestion non certifiée | G200: 101 | H200: plus de 240cm de longueur | I200: 01021331010 | J200: Meuble de salon/salle à manger, de type plans de pose et plans de travail en bois, panneaux et dérivés de bois à plus de 50% en gestion non certifiée de plus de 240cm de longueur | K200: 12.68 | L200: 668 | M200: 15.22
... 2131 more rows

Sheet Codes 2024 supprimés en 2025
A1: Code produit | B1: Libellé | C1: Tarif HT | D1: Code Eco part | E1: Tarif TTC | F1: raison | G1: nouveau code matériau | H1: nouveau code caractéristique | I1: Proposition code produit
A2: 01017010350 | B2: Meuble de salon/salle à manger, servant au rangement, en bois, compris entre 400 kg et 500 kg exclus | C2: 25 | D2: 151 | E2: 30 | F2: tranches de poids | H2: 034 | I2: =IF(H2="034",MID(A2,1,7)&"0340","") -> 01017010340
A3: 01017010360 | B3: Meuble de salon/salle à manger, servant au rangement, en bois, compris entre 500 kg et 600 kg exclus | C3: 25 | D3: 151 | E3: 30 | F3: tranches de poids | H3: 034 | I3: 01017010340
A4: 01017010370 | B4: Meuble de salon/salle à manger, servant au rangement, en bois, compris entre 600 kg et 700 kg exclus | C4: 25 | D4: 151 | E4: 30 | F4: tranches de poids | H4: 034 | I4: 01017010340
A5: 01017010380 | B5: Meuble de salon/salle à manger, servant au rangement, en bois, compris entre 700 kg et 800 kg exclus | C5: 25 | D5: 151 | E5: 30 | F5: tranches de poids | H5: 034 | I5: 01017010340
A6: 01017010390 | B6: Meuble de salon/salle à manger, servant au rangement, en bois, compris entre 800 kg et 900 kg exclus | C6: 25 | D6: 151 | E6: 30 | F6: tranches de poids | H6: 034 | I6: 01017010340
A7: 01017010400 | B7: Meuble de salon/salle à manger, servant au rangement, en bois, compris entre 900 kg et 1 000 kg exclus | C7: 25 | D7: 151 | E7: 30 | F7: tranches de poids | H7: 034 | I7: 01017010340
A8: 01017010410 | B8: Meuble de salon/salle à manger, servant au rangement, en bois, compris entre 1 000 kg et 1 100 kg exclus | C8: 25 | D8: 151 | E8: 30 | F8: tranches de poids | H8: 034 | I8: 01017010340
A9: 01017010420 | B9: Meuble de salon/salle à manger, servant au rangement, en bois, compris entre 1 100 kg et 1 200 kg exclus | C9: 25 | D9: 151 | E9: 30 | F9: tranches de poids | H9: 034 | I9: 01017010340
A10: 01017010430 | B10: Meuble de salon/salle à manger, servant au rangement, en bois, compris entre 1 200 kg et 1 300 kg exclus | C10: 25 | D10: 151 | E10: 30 | F10: tranches de poids | H10: 034 | I10: 01017010340
A11: 01017010440 | B11: Meuble de salon/salle à manger, servant au rangement, en bois, compris entre 1 300 kg et 1 400 kg exclus | C11: 25 | D11: 151 | E11: 30 | F11: tranches de poids | H11: 034 | I11: 01017010340
A12: 01017010450 | B12: Meuble de salon/salle à manger, servant au rangement, en bois, compris entre 1 400 kg et 1 500 kg exclus | C12: 25 | D12: 151 | E12: 30 | F12: tranches de poids | H12: 034 | I12: 01017010340
A13: 01017010460 | B13: Meuble de salon/salle à manger, servant au rangement, en bois, compris entre 1 500 kg et 1 600 kg exclus | C13: 25 | D13: 151 | E13: 30 | F13: tranches de poids | H13: 034 | I13: 01017010340
A14: 01017010470 | B14: Meuble de salon/salle à manger, servant au rangement, en bois, compris entre 1 600 kg et 1 700 kg exclus | C14: 25 | D14: 151 | E14: 30 | F14: tranches de poids | H14: 034 | I14: 01017010340
A15: 01017010480 | B15: Meuble de salon/salle à manger, servant au rangement, en bois, compris entre 1 700 kg et 1 800 kg exclus | C15: 25 | D15: 151 | E15: 30 | F15: tranches de poids | H15: 034 | I15: 01017010340
A16: 01017010490 | B16: Meuble de salon/salle à manger, servant au rangement, en bois, compris entre 1 800 kg et 1 900 kg exclus | C16: 25 | D16: 151 | E16: 30 | F16: tranches de poids | H16: 034 | I16: 01017010340
A17: 01017010500 | B17: Meuble de salon/salle à manger, servant au rangement, en bois, compris entre 1 900 kg et 2 000 kg exclus | C17: 25 | D17: 151 | E17: 30 | F17: tranches de poids | H17: 034 | I17: 01017010340
A18: 01017010510 | B18: Meuble de salon/salle à manger, servant au rangement, en bois, supérieur à 2 000 kg | C18: 25 | D18: 151 | E18: 30 | F18: tranches de poids | H18: 034 | I18: 01017010340
A19: 01017020350 | B19: Meuble de salon/salle à manger, servant au rangement, en métal, compris entre 400 kg et 500 kg exclus | C19: 17.5 | D19: 073 | E19: 21 | F19: tranches de poids | H19: 034 | I19: 01017020340
A20: 01017020360 | B20: Meuble de salon/salle à manger, servant au rangement, en métal, compris entre 500 kg et 600 kg exclus | C20: 17.5 | D20: 073 | E20: 21 | F20: tranches de poids | H20: 034 | I20: 01017020340
A21: 01017020370 | B21: Meuble de salon/salle à manger, servant au rangement, en métal, compris entre 600 kg et 700 kg exclus | C21: 17.5 | D21: 073 | E21: 21 | F21: tranches de poids | H21: 034 | I21: 01017020340
A22: 01017020380 | B22: Meuble de salon/salle à manger, servant au rangement, en métal, compris entre 700 kg et 800 kg exclus | C22: 17.5 | D22: 073 | E22: 21 | F22: tranches de poids | H22: 034 | I22: 01017020340
A23: 01017020390 | B23: Meuble de salon/salle à manger, servant au rangement, en métal, compris entre 800 kg et 900 kg exclus | C23: 17.5 | D23: 073 | E23: 21 | F23: tranches de poids | H23: 034 | I23: 01017020340
A24: 01017020400 | B24: Meuble de salon/salle à manger, servant au rangement, en métal, compris entre 900 kg et 1 000 kg exclus | C24: 17.5 | D24: 073 | E24: 21 | F24: tranches de poids | H24: 034 | I24: 01017020340
A25: 01017020410 | B25: Meuble de salon/salle à manger, servant au rangement, en métal, compris entre 1 000 kg et 1 100 kg exclus | C25: 17.5 | D25: 073 | E25: 21 | F25: tranches de poids | H25: 034 | I25: 01017020340
A26: 01017020420 | B26: Meuble de salon/salle à manger, servant au rangement, en métal, compris entre 1 100 kg et 1 200 kg exclus | C26: 17.5 | D26: 073 | E26: 21 | F26: tranches de poids | H26: 034 | I26: 01017020340
A27: 01017020430 | B27: Meuble de salon/salle à manger, servant au rangement, en métal, compris entre 1 200 kg et 1 300 kg exclus | C27: 17.5 | D27: 073 | E27: 21 | F27: tranches de poids | H27: 034 | I27: 01017020340
A28: 01017020440 | B28: Meuble de salon/salle à manger, servant au rangement, en métal, compris entre 1 300 kg et 1 400 kg exclus | C28: 17.5 | D28: 073 | E28: 21 | F28: tranches de poids | H28: 034 | I28: 01017020340
A29: 01017020450 | B29: Meuble de salon/salle à manger, servant au rangement, en métal, compris entre 1 400 kg et 1 500 kg exclus | C29: 17.5 | D29: 073 | E29: 21 | F29: tranches de poids | H29: 034 | I29: 01017020340
A30: 01017020460 | B30: Meuble de salon/salle à manger, servant au rangement, en métal, compris entre 1 500 kg et 1 600 kg exclus | C30: 17.5 | D30: 073 | E30: 21 | F30: tranches de poids | H30: 034 | I30: 01017020340
A31: 01017020470 | B31: Meuble de salon/salle à manger, servant au rangement, en métal, compris entre 1 600 kg et 1 700 kg exclus | C31: 17.5 | D31: 073 | E31: 21 | F31: tranches de poids | H31: 034 | I31: 01017020340
A32: 01017020480 | B32: Meuble de salon/salle à manger, servant au rangement, en métal, compris entre 1 700 kg et 1 800 kg exclus | C32: 17.5 | D32: 073 | E32: 21 | F32: tranches de poids | H32: 034 | I32: 01017020340
A33: 01017020490 | B33: Meuble de salon/salle à manger, servant au rangement, en métal, compris entre 1 800 kg et 1 900 kg exclus | C33: 17.5 | D33: 073 | E33: 21 | F33: tranches de poids | H33: 034 | I33: 01017020340
A34: 01017020500 | B34: Meuble de salon/salle à manger, servant au rangement, en métal, compris entre 1 900 kg et 2 000 kg exclus | C34: 17.5 | D34: 073 | E34: 21 | F34: tranches de poids | H34: 034 | I34: 01017020340
A35: 01017020510 | B35: Meuble de salon/salle à manger, servant au rangement, en métal, supérieur à 2 000 kg | C35: 17.5 | D35: 073 | E35: 21 | F35: tranches de poids | H35: 034 | I35: 01017020340
A36: 01017030350 | B36: Meuble de salon/salle à manger, servant au rangement, en bambou / rotin, compris entre 400 kg et 500 kg exclus | C36: 25 | D36: 151 | E36: 30 | F36: tranches de poids | H36: 034 | I36: 01017030340
A37: 01017030360 | B37: Meuble de salon/salle à manger, servant au rangement, en bambou / rotin, compris entre 500 kg et 600 kg exclus | C37: 25 | D37: 151 | E37: 30 | F37: tranches de poids | H37: 034 | I37: 01017030340
A38: 01017030370 | B38: Meuble de salon/salle à manger, servant au rangement, en bambou / rotin, compris entre 600 kg et 700 kg exclus | C38: 25 | D38: 151 | E38: 30 | F38: tranches de poids | H38: 034 | I38: 01017030340
A39: 01017030380 | B39: Meuble de salon/salle à manger, servant au rangement, en bambou / rotin, compris entre 700 kg et 800 kg exclus | C39: 25 | D39: 151 | E39: 30 | F39: tranches de poids | H39: 034 | I39: 01017030340
A40: 01017030390 | B40: Meuble de salon/salle à manger, servant au rangement, en bambou / rotin, compris entre 800 kg et 900 kg exclus | C40: 25 | D40: 151 | E40: 30 | F40: tranches de poids | H40: 034 | I40: 01017030340
A41: 01017030400 | B41: Meuble de salon/salle à manger, servant au rangement, en bambou / rotin, compris entre 900 kg et 1 000 kg exclus | C41: 25 | D41: 151 | E41: 30 | F41: tranches de poids | H41: 034 | I41: 01017030340
A42: 01017030410 | B42: Meuble de salon/salle à manger, servant au rangement, en bambou / rotin, compris entre 1 000 kg et 1 100 kg exclus | C42: 25 | D42: 151 | E42: 30 | F42: tranches de poids | H42: 034 | I42: 01017030340
A43: 01017030420 | B43: Meuble de salon/salle à manger, servant au rangement, en bambou / rotin, compris entre 1 100 kg et 1 200 kg exclus | C43: 25 | D43: 151 | E43: 30 | F43: tranches de poids | H43: 034 | I43: 01017030340
A44: 01017030430 | B44: Meuble de salon/salle à manger, servant au rangement, en bambou / rotin, compris entre 1 200 kg et 1 300 kg exclus | C44: 25 | D44: 151 | E44: 30 | F44: tranches de poids | H44: 034 | I44: 01017030340
A45: 01017030440 | B45: Meuble de salon/salle à manger, servant au rangement, en bambou / rotin, compris entre 1 300 kg et 1 400 kg exclus | C45: 25 | D45: 151 | E45: 30 | F45: tranches de poids | H45: 034 | I45: 01017030340
A46: 01017030450 | B46: Meuble de salon/salle à manger, servant au rangement, en bambou / rotin, compris entre 1 400 kg et 1 500 kg exclus | C46: 25 | D46: 151 | E46: 30 | F46: tranches de poids | H46: 034 | I46: 01017030340
A47: 01017030460 | B47: Meuble de salon/salle à manger, servant au rangement, en bambou / rotin, compris entre 1 500 kg et 1 600 kg exclus | C47: 25 | D47: 151 | E47: 30 | F47: tranches de poids | H47: 034 | I47: 01017030340
A48: 01017030470 | B48: Meuble de salon/salle à manger, servant au rangement, en bambou / rotin, compris entre 1 600 kg et 1 700 kg exclus | C48: 25 | D48: 151 | E48: 30 | F48: tranches de poids | H48: 034 | I48: 01017030340
A49: 01017030480 | B49: Meuble de salon/salle à manger, servant au rangement, en bambou / rotin, compris entre 1 700 kg et 1 800 kg exclus | C49: 25 | D49: 151 | E49: 30 | F49: tranches de poids | H49: 034 | I49: 01017030340
A50: 01017030490 | B50: Meuble de salon/salle à manger, servant au rangement, en bambou / rotin, compris entre 1 800 kg et 1 900 kg exclus | C50: 25 | D50: 151 | E50: 30 | F50: tranches de poids | H50: 034 | I50: 01017030340
A51: 01017030500 | B51: Meuble de salon/salle à manger, servant au rangement, en bambou / rotin, compris entre 1 900 kg et 2 000 kg exclus | C51: 25 | D51: 151 | E51: 30 | F51: tranches de poids | H51: 034 | I51: 01017030340
A52: 01017030510 | B52: Meuble de salon/salle à manger, servant au rangement, en bambou / rotin, supérieur à 2 000 kg | C52: 25 | D52: 151 | E52: 30 | F52: tranches de poids | H52: 034 | I52: 01017030340
A53: 01017040350 | B53: Meuble de salon/salle à manger, servant au rangement, en osier, compris entre 400 kg et 500 kg exclus | C53: 25 | D53: 151 | E53: 30 | F53: tranches de poids | H53: 034 | I53: 01017040340
A54: 01017040360 | B54: Meuble de salon/salle à manger, servant au rangement, en osier, compris entre 500 kg et 600 kg exclus | C54: 25 | D54: 151 | E54: 30 | F54: tranches de poids | H54: 034 | I54: 01017040340
A55: 01017040370 | B55: Meuble de salon/salle à manger, servant au rangement, en osier, compris entre 600 kg et 700 kg exclus | C55: 25 | D55: 151 | E55: 30 | F55: tranches de poids | H55: 034 | I55: 01017040340
A56: 01017040380 | B56: Meuble de salon/salle à manger, servant au rangement, en osier, compris entre 700 kg et 800 kg exclus | C56: 25 | D56: 151 | E56: 30 | F56: tranches de poids | H56: 034 | I56: 01017040340
A57: 01017040390 | B57: Meuble de salon/salle à manger, servant au rangement, en osier, compris entre 800 kg et 900 kg exclus | C57: 25 | D57: 151 | E57: 30 | F57: tranches de poids | H57: 034 | I57: 01017040340
A58: 01017040400 | B58: Meuble de salon/salle à manger, servant au rangement, en osier, compris entre 900 kg et 1 000 kg exclus | C58: 25 | D58: 151 | E58: 30 | F58: tranches de poids | H58: 034 | I58: 01017040340
A59: 01017040410 | B59: Meuble de salon/salle à manger, servant au rangement, en osier, compris entre 1 000 kg et 1 100 kg exclus | C59: 25 | D59: 151 | E59: 30 | F59: tranches de poids | H59: 034 | I59: 01017040340
A60: 01017040420 | B60: Meuble de salon/salle à manger, servant au rangement, en osier, compris entre 1 100 kg et 1 200 kg exclus | C60: 25 | D60: 151 | E60: 30 | F60: tranches de poids | H60: 034 | I60: 01017040340
A61: 01017040430 | B61: Meuble de salon/salle à manger, servant au rangement, en osier, compris entre 1 200 kg et 1 300 kg exclus | C61: 25 | D61: 151 | E61: 30 | F61: tranches de poids | H61: 034 | I61: 01017040340
A62: 01017040440 | B62: Meuble de salon/salle à manger, servant au rangement, en osier, compris entre 1 300 kg et 1 400 kg exclus | C62: 25 | D62: 151 | E62: 30 | F62: tranches de poids | H62: 034 | I62: 01017040340
A63: 01017040450 | B63: Meuble de salon/salle à manger, servant au rangement, en osier, compris entre 1 400 kg et 1 500 kg exclus | C63: 25 | D63: 151 | E63: 30 | F63: tranches de poids | H63: 034 | I63: 01017040340
A64: 01017040460 | B64: Meuble de salon/salle à manger, servant au rangement, en osier, compris entre 1 500 kg et 1 600 kg exclus | C64: 25 | D64: 151 | E64: 30 | F64: tranches de poids | H64: 034 | I64: 01017040340
A65: 01017040470 | B65: Meuble de salon/salle à manger, servant au rangement, en osier, compris entre 1 600 kg et 1 700 kg exclus | C65: 25 | D65: 151 | E65: 30 | F65: tranches de poids | H65: 034 | I65: 01017040340
A66: 01017040480 | B66: Meuble de salon/salle à manger, servant au rangement, en osier, compris entre 1 700 kg et 1 800 kg exclus | C66: 25 | D66: 151 | E66: 30 | F66: tranches de poids | H66: 034 | I66: =IF(H66="034",MID(A66,1,7)&"0340","") -> 01017040340
A67: 01017040490 | B67: Meuble de salon/salle à manger, servant au rangement, en osier, compris entre 1 800 kg et 1 900 kg exclus | C67: 25 | D67: 151 | E67: 30 | F67: tranches de poids | H67: 034 | I67: 01017040340
A68: 01017040500 | B68: Meuble de salon/salle à manger, servant au rangement, en osier, compris entre 1 900 kg et 2 000 kg exclus | C68: 25 | D68: 151 | E68: 30 | F68: tranches de poids | H68: 034 | I68: 01017040340
A69: 01017040510 | B69: Meuble de salon/salle à manger, servant au rangement, en osier, supérieur à 2 000 kg | C69: 25 | D69: 151 | E69: 30 | F69: tranches de poids | H69: 034 | I69: 01017040340
A70: 01017050350 | B70: Meuble de salon/salle à manger, servant au rangement, en plastiques, compris entre 400 kg et 500 kg exclus | C70: 29.17 | D70: 534 | E70: 35 | F70: tranches de poids | H70: 034 | I70: 01017050340
A71: 01017050360 | B71: Meuble de salon/salle à manger, servant au rangement, en plastiques, compris entre 500 kg et 600 kg exclus | C71: 29.17 | D71: 534 | E71: 35 | F71: tranches de poids | H71: 034 | I71: 01017050340
A72: 01017050370 | B72: Meuble de salon/salle à manger, servant au rangement, en plastiques, compris entre 600 kg et 700 kg exclus | C72: 29.17 | D72: 534 | E72: 35 | F72: tranches de poids | H72: 034 | I72: 01017050340
A73: 01017050380 | B73: Meuble de salon/salle à manger, servant au rangement, en plastiques, compris entre 700 kg et 800 kg exclus | C73: 29.17 | D73: 534 | E73: 35 | F73: tranches de poids | H73: 034 | I73: 01017050340
A74: 01017050390 | B74: Meuble de salon/salle à manger, servant au rangement, en plastiques, compris entre 800 kg et 900 kg exclus | C74: 29.17 | D74: 534 | E74: 35 | F74: tranches de poids | H74: 034 | I74: 01017050340
A75: 01017050400 | B75: Meuble de salon/salle à manger, servant au rangement, en plastiques, compris entre 900 kg et 1 000 kg exclus | C75: 29.17 | D75: 534 | E75: 35 | F75: tranches de poids | H75: 034 | I75: 01017050340
A76: 01017050410 | B76: Meuble de salon/salle à manger, servant au rangement, en plastiques, compris entre 1 000 kg et 1 100 kg exclus | C76: 29.17 | D76: 534 | E76: 35 | F76: tranches de poids | H76: 034 | I76: 01017050340
A77: 01017050420 | B77: Meuble de salon/salle à manger, servant au rangement, en plastiques, compris entre 1 100 kg et 1 200 kg exclus | C77: 29.17 | D77: 534 | E77: 35 | F77: tranches de poids | H77: 034 | I77: 01017050340
A78: 01017050430 | B78: Meuble de salon/salle à manger, servant au rangement, en plastiques, compris entre 1 200 kg et 1 300 kg exclus | C78: 29.17 | D78: 534 | E78: 35 | F78: tranches de poids | H78: 034 | I78: 01017050340
A79: 01017050440 | B79: Meuble de salon/salle à manger, servant au rangement, en plastiques, compris entre 1 300 kg et 1 400 kg exclus | C79: 29.17 | D79: 534 | E79: 35 | F79: tranches de poids | H79: 034 | I79: 01017050340
A80: 01017050450 | B80: Meuble de salon/salle à manger, servant au rangement, en plastiques, compris entre 1 400 kg et 1 500 kg exclus | C80: 29.17 | D80: 534 | E80: 35 | F80: tranches de poids | H80: 034 | I80: 01017050340
A81: 01017050460 | B81: Meuble de salon/salle à manger, servant au rangement, en plastiques, compris entre 1 500 kg et 1 600 kg exclus | C81: 29.17 | D81: 534 | E81: 35 | F81: tranches de poids | H81: 034 | I81: 01017050340
A82: 01017050470 | B82: Meuble de salon/salle à manger, servant au rangement, en plastiques, compris entre 1 600 kg et 1 700 kg exclus | C82: 29.17 | D82: 534 | E82: 35 | F82: tranches de poids | H82: 034 | I82: 01017050340
A83: 01017050480 | B83: Meuble de salon/salle à manger, servant au rangement, en plastiques, compris entre 1 700 kg et 1 800 kg exclus | C83: 29.17 | D83: 534 | E83: 35 | F83: tranches de poids | H83: 034 | I83: 01017050340
A84: 01017050490 | B84: Meuble de salon/salle à manger, servant au rangement, en plastiques, compris entre 1 800 kg et 1 900 kg exclus | C84: 29.17 | D84: 534 | E84: 35 | F84: tranches de poids | H84: 034 | I84: 01017050340
A85: 01017050500 | B85: Meuble de salon/salle à manger, servant au rangement, en plastiques, compris entre 1 900 kg et 2 000 kg exclus | C85: 29.17 | D85: 534 | E85: 35 | F85: tranches de poids | H85: 034 | I85: 01017050340
A86: 01017050510 | B86: Meuble de salon/salle à manger, servant au rangement, en plastiques, supérieur à 2 000 kg | C86: 29.17 | D86: 534 | E86: 35 | F86: tranches de poids | H86: 034 | I86: 01017050340
A87: 01017060350 | B87: Meuble de salon/salle à manger, servant au rangement, en matière textile, compris entre 400 kg et 500 kg exclus | C87: 29.17 | D87: 534 | E87: 35 | F87: tranches de poids | H87: 034 | I87: 01017060340
A88: 01017060360 | B88: Meuble de salon/salle à manger, servant au rangement, en matière textile, compris entre 500 kg et 600 kg exclus | C88: 29.17 | D88: 534 | E88: 35 | F88: tranches de poids | H88: 034 | I88: 01017060340
A89: 01017060370 | B89: Meuble de salon/salle à manger, servant au rangement, en matière textile, compris entre 600 kg et 700 kg exclus | C89: 29.17 | D89: 534 | E89: 35 | F89: tranches de poids | H89: 034 | I89: 01017060340
A90: 01017060380 | B90: Meuble de salon/salle à manger, servant au rangement, en matière textile, compris entre 700 kg et 800 kg exclus | C90: 29.17 | D90: 534 | E90: 35 | F90: tranches de poids | H90: 034 | I90: 01017060340
A91: 01017060390 | B91: Meuble de salon/salle à manger, servant au rangement, en matière textile, compris entre 800 kg et 900 kg exclus | C91: 29.17 | D91: 534 | E91: 35 | F91: tranches de poids | H91: 034 | I91: 01017060340
A92: 01017060400 | B92: Meuble de salon/salle à manger, servant au rangement, en matière textile, compris entre 900 kg et 1 000 kg exclus | C92: 29.17 | D92: 534 | E92: 35 | F92: tranches de poids | H92: 034 | I92: 01017060340
A93: 01017060410 | B93: Meuble de salon/salle à manger, servant au rangement, en matière textile, compris entre 1 000 kg et 1 100 kg exclus | C93: 29.17 | D93: 534 | E93: 35 | F93: tranches de poids | H93: 034 | I93: 01017060340
A94: 01017060420 | B94: Meuble de salon/salle à manger, servant au rangement, en matière textile, compris entre 1 100 kg et 1 200 kg exclus | C94: 29.17 | D94: 534 | E94: 35 | F94: tranches de poids | H94: 034 | I94: 01017060340
A95: 01017060430 | B95: Meuble de salon/salle à manger, servant au rangement, en matière textile, compris entre 1 200 kg et 1 300 kg exclus | C95: 29.17 | D95: 534 | E95: 35 | F95: tranches de poids | H95: 034 | I95: 01017060340
A96: 01017060440 | B96: Meuble de salon/salle à manger, servant au rangement, en matière textile, compris entre 1 300 kg et 1 400 kg exclus | C96: 29.17 | D96: 534 | E96: 35 | F96: tranches de poids | H96: 034 | I96: 01017060340
A97: 01017060450 | B97: Meuble de salon/salle à manger, servant au rangement, en matière textile, compris entre 1 400 kg et 1 500 kg exclus | C97: 29.17 | D97: 534 | E97: 35 | F97: tranches de poids | H97: 034 | I97: 01017060340
A98: 01017060460 | B98: Meuble de salon/salle à manger, servant au rangement, en matière textile, compris entre 1 500 kg et 1 600 kg exclus | C98: 29.17 | D98: 534 | E98: 35 | F98: tranches de poids | H98: 034 | I98: 01017060340
A99: 01017060470 | B99: Meuble de salon/salle à manger, servant au rangement, en matière textile, compris entre 1 600 kg et 1 700 kg exclus | C99: 29.17 | D99: 534 | E99: 35 | F99: tranches de poids | H99: 034 | I99: 01017060340
A100: 01017060480 | B100: Meuble de salon/salle à manger, servant au rangement, en matière textile, compris entre 1 700 kg et 1 800 kg exclus | C100: 29.17 | D100: 534 | E100: 35 | F100: tranches de poids | H100: 034 | I100: 01017060340
A101: 01017060490 | B101: Meuble de salon/salle à manger, servant au rangement, en matière textile, compris entre 1 800 kg et 1 900 kg exclus | C101: 29.17 | D101: 534 | E101: 35 | F101: tranches de poids | H101: 034 | I101: 01017060340
A102: 01017060500 | B102: Meuble de salon/salle à manger, servant au rangement, en matière textile, compris entre 1 900 kg et 2 000 kg exclus | C102: 29.17 | D102: 534 | E102: 35 | F102: tranches de poids | H102: 034 | I102: 01017060340
A103: 01017060510 | B103: Meuble de salon/salle à manger, servant au rangement, en matière textile, supérieur à 2 000 kg | C103: 29.17 | D103: 534 | E103: 35 | F103: tranches de poids | H103: 034 | I103: 01017060340
A104: 01017070350 | B104: Meuble de salon/salle à manger, servant au rangement, en verre, compris entre 400 kg et 500 kg exclus | C104: 29.17 | D104: 534 | E104: 35 | F104: tranches de poids | H104: 034 | I104: 01017070340
A105: 01017070360 | B105: Meuble de salon/salle à manger, servant au rangement, en verre, compris entre 500 kg et 600 kg exclus | C105: 29.17 | D105: 534 | E105: 35 | F105: tranches de poids | H105: 034 | I105: 01017070340
A106: 01017070370 | B106: Meuble de salon/salle à manger, servant au rangement, en verre, compris entre 600 kg et 700 kg exclus | C106: 29.17 | D106: 534 | E106: 35 | F106: tranches de poids | H106: 034 | I106: 01017070340
A107: 01017070380 | B107: Meuble de salon/salle à manger, servant au rangement, en verre, compris entre 700 kg et 800 kg exclus | C107: 29.17 | D107: 534 | E107: 35 | F107: tranches de poids | H107: 034 | I107: 01017070340
A108: 01017070390 | B108: Meuble de salon/salle à manger, servant au rangement, en verre, compris entre 800 kg et 900 kg exclus | C108: 29.17 | D108: 534 | E108: 35 | F108: tranches de poids | H108: 034 | I108: 01017070340
A109: 01017070400 | B109: Meuble de salon/salle à manger, servant au rangement, en verre, compris entre 900 kg et 1 000 kg exclus | C109: 29.17 | D109: 534 | E109: 35 | F109: tranches de poids | H109: 034 | I109: 01017070340
A110: 01017070410 | B110: Meuble de salon/salle à manger, servant au rangement, en verre, compris entre 1 000 kg et 1 100 kg exclus | C110: 29.17 | D110: 534 | E110: 35 | F110: tranches de poids | H110: 034 | I110: 01017070340
A111: 01017070420 | B111: Meuble de salon/salle à manger, servant au rangement, en verre, compris entre 1 100 kg et 1 200 kg exclus | C111: 29.17 | D111: 534 | E111: 35 | F111: tranches de poids | H111: 034 | I111: 01017070340
A112: 01017070430 | B112: Meuble de salon/salle à manger, servant au rangement, en verre, compris entre 1 200 kg et 1 300 kg exclus | C112: 29.17 | D112: 534 | E112: 35 | F112: tranches de poids | H112: 034 | I112: 01017070340
A113: 01017070440 | B113: Meuble de salon/salle à manger, servant au rangement, en verre, compris entre 1 300 kg et 1 400 kg exclus | C113: 29.17 | D113: 534 | E113: 35 | F113: tranches de poids | H113: 034 | I113: 01017070340
A114: 01017070450 | B114: Meuble de salon/salle à manger, servant au rangement, en verre, compris entre 1 400 kg et 1 500 kg exclus | C114: 29.17 | D114: 534 | E114: 35 | F114: tranches de poids | H114: 034 | I114: 01017070340
A115: 01017070460 | B115: Meuble de salon/salle à manger, servant au rangement, en verre, compris entre 1 500 kg et 1 600 kg exclus | C115: 29.17 | D115: 534 | E115: 35 | F115: tranches de poids | H115: 034 | I115: 01017070340
A116: 01017070470 | B116: Meuble de salon/salle à manger, servant au rangement, en verre, compris entre 1 600 kg et 1 700 kg exclus | C116: 29.17 | D116: 534 | E116: 35 | F116: tranches de poids | H116: 034 | I116: 01017070340
A117: 01017070480 | B117: Meuble de salon/salle à manger, servant au rangement, en verre, compris entre 1 700 kg et 1 800 kg exclus | C117: 29.17 | D117: 534 | E117: 35 | F117: tranches de poids | H117: 034 | I117: 01017070340
A118: 01017070490 | B118: Meuble de salon/salle à manger, servant au rangement, en verre, compris entre 1 800 kg et 1 900 kg exclus | C118: 29.17 | D118: 534 | E118: 35 | F118: tranches de poids | H118: 034 | I118: 01017070340
A119: 01017070500 | B119: Meuble de salon/salle à manger, servant au rangement, en verre, compris entre 1 900 kg et 2 000 kg exclus | C119: 29.17 | D119: 534 | E119: 35 | F119: tranches de poids | H119: 034 | I119: 01017070340
A120: 01017070510 | B120: Meuble de salon/salle à manger, servant au rangement, en verre, supérieur à 2 000 kg | C120: 29.17 | D120: 534 | E120: 35 | F120: tranches de poids | H120: 034 | I120: 01017070340
A121: 01017080200 | B121: Meuble de salon/salle à manger, servant au rangement, en pierre, inférieur strictement à 0,5 kg | C121: 0.06 | D121: 096 | E121: 0.07 | F121: suppression matériau inerte | G121: 0
A122: 01017080210 | B122: Meuble de salon/salle à manger, servant au rangement, en pierre, compris entre 0,5 kg et 1 kg exclus | C122: 0.17 | D122: 005 | E122: 0.2 | F122: suppression matériau inerte | G122: 0
A123: 01017080220 | B123: Meuble de salon/salle à manger, servant au rangement, en pierre, compris entre 1 kg et 2 kg exclus | C123: 0.29 | D123: 324 | E123: 0.35 | F123: suppression matériau inerte | G123: 0
A124: 01017080230 | B124: Meuble de salon/salle à manger, servant au rangement, en pierre, compris entre 2 kg et 5 kg exclus | C124: 0.58 | D124: 535 | E124: 0.7 | F124: suppression matériau inerte | G124: 0
A125: 01017080240 | B125: Meuble de salon/salle à manger, servant au rangement, en pierre, compris entre 5 kg et 10 kg exclus | C125: 1.17 | D125: 537 | E125: 1.4 | F125: suppression matériau inerte | G125: 0
A126: 01017080250 | B126: Meuble de salon/salle à manger, servant au rangement, en pierre, compris entre 10 kg et 20 kg exclus | C126: 2.33 | D126: 062 | E126: 2.8 | F126: suppression matériau inerte | G126: 0
A127: 01017080260 | B127: Meuble de salon/salle à manger, servant au rangement, en pierre, compris entre 20 kg et 30 kg exclus | C127: 3.83 | D127: 521 | E127: 4.6 | F127: suppression matériau inerte | G127: 0
A128: 01017080270 | B128: Meuble de salon/salle à manger, servant au rangement, en pierre, compris entre 30 kg et 40 kg exclus | C128: 5.25 | D128: 349 | E128: 6.3 | F128: suppression matériau inerte | G128: 0
A129: 01017080280 | B129: Meuble de salon/salle à manger, servant au rangement, en pierre, compris entre 40 kg et 60 kg exclus | C129: 8.34 | D129: 526 | E129: 10.01 | F129: suppression matériau inerte | G129: 0
A130: 01017080290 | B130: Meuble de salon/salle à manger, servant au rangement, en pierre, compris entre 60 kg et 100 kg exclus | C130: 12.5 | D130: 072 | E130: 15 | F130: suppression matériau inerte | G130: 0 | I130: =IF(H130="034",MID(A130,1,7)&"0340","") -> 
A131: 01017080300 | B131: Meuble de salon/salle à manger, servant au rangement, en pierre, compris entre 100 kg et 150 kg exclus | C131: 20.83 | D131: 149 | E131: 25 | F131: suppression matériau inerte | G131: 0
A132: 01017080310 | B132: Meuble de salon/salle à manger, servant au rangement, en pierre, compris entre 150 kg et 200 kg exclus | C132: 29.17 | D132: 534 | E132: 35 | F132: suppression matériau inerte | G132: 0
A133: 01017080320 | B133: Meuble de salon/salle à manger, servant au rangement, en pierre, compris entre 200 kg et 250 kg exclus | C133: 29.17 | D133: 534 | E133: 35 | F133: suppression matériau inerte | G133: 0
A134: 01017080330 | B134: Meuble de salon/salle à manger, servant au rangement, en pierre, compris entre 250 kg et 300 kg exclus | C134: 29.17 | D134: 534 | E134: 35 | F134: suppression matériau inerte | G134: 0
A135: 01017080340 | B135: Meuble de salon/salle à manger, servant au rangement, en pierre, compris entre 300 kg et 400 kg exclus | C135: 29.17 | D135: 534 | E135: 35 | F135: suppression matériau inerte | G135: 0
A136: 01017080350 | B136: Meuble de salon/salle à manger, servant au rangement, en pierre, compris entre 400 kg et 500 kg exclus | C136: 29.17 | D136: 534 | E136: 35 | F136: tranches de poids suppression matériau inerte | G136: 0 | H136: 034 | I136: 01017080340
A137: 01017080360 | B137: Meuble de salon/salle à manger, servant au rangement, en pierre, compris entre 500 kg et 600 kg exclus | C137: 29.17 | D137: 534 | E137: 35 | F137: tranches de poids suppression matériau inerte | G137: 0 | H137: 034 | I137: 01017080340
A138: 01017080370 | B138: Meuble de salon/salle à manger, servant au rangement, en pierre, compris entre 600 kg et 700 kg exclus | C138: 29.17 | D138: 534 | E138: 35 | F138: tranches de poids suppression matériau inerte | G138: 0 | H138: 034 | I138: 01017080340
A139: 01017080380 | B139: Meuble de salon/salle à manger, servant au rangement, en pierre, compris entre 700 kg et 800 kg exclus | C139: 29.17 | D139: 534 | E139: 35 | F139: tranches de poids suppression matériau inerte | G139: 0 | H139: 034 | I139: 01017080340
A140: 01017080390 | B140: Meuble de salon/salle à manger, servant au rangement, en pierre, compris entre 800 kg et 900 kg exclus | C140: 29.17 | D140: 534 | E140: 35 | F140: tranches de poids suppression matériau inerte | G140: 0 | H140: 034 | I140: 01017080340
A141: 01017080400 | B141: Meuble de salon/salle à manger, servant au rangement, en pierre, compris entre 900 kg et 1 000 kg exclus | C141: 29.17 | D141: 534 | E141: 35 | F141: tranches de poids suppression matériau inerte | G141: 0 | H141: 034 | I141: 01017080340
A142: 01017080410 | B142: Meuble de salon/salle à manger, servant au rangement, en pierre, compris entre 1 000 kg et 1 100 kg exclus | C142: 29.17 | D142: 534 | E142: 35 | F142: tranches de poids suppression matériau inerte | G142: 0 | H142: 034 | I142: 01017080340
A143: 01017080420 | B143: Meuble de salon/salle à manger, servant au rangement, en pierre, compris entre 1 100 kg et 1 200 kg exclus | C143: 29.17 | D143: 534 | E143: 35 | F143: tranches de poids suppression matériau inerte | G143: 0 | H143: 034 | I143: 01017080340
A144: 01017080430 | B144: Meuble de salon/salle à manger, servant au rangement, en pierre, compris entre 1 200 kg et 1 300 kg exclus | C144: 29.17 | D144: 534 | E144: 35 | F144: tranches de poids suppression matériau inerte | G144: 0 | H144: 034 | I144: 01017080340
A145: 01017080440 | B145: Meuble de salon/salle à manger, servant au rangement, en pierre, compris entre 1 300 kg et 1 400 kg exclus | C145: 29.17 | D145: 534 | E145: 35 | F145: tranches de poids suppression matériau inerte | G145: 0 | H145: 034 | I145: 01017080340
A146: 01017080450 | B146: Meuble de salon/salle à manger, servant au rangement, en pierre, compris entre 1 400 kg et 1 500 kg exclus | C146: 29.17 | D146: 534 | E146: 35 | F146: tranches de poids suppression matériau inerte | G146: 0 | H146: 034 | I146: 01017080340
A147: 01017080460 | B147: Meuble de salon/salle à manger, servant au rangement, en pierre, compris entre 1 500 kg et 1 600 kg exclus | C147: 29.17 | D147: 534 | E147: 35 | F147: tranches de poids suppression matériau inerte | G147: 0 | H147: 034 | I147: 01017080340
A148: 01017080470 | B148: Meuble de salon/salle à manger, servant au rangement, en pierre, compris entre 1 600 kg et 1 700 kg exclus | C148: 29.17 | D148: 534 | E148: 35 | F148: tranches de poids suppression matériau inerte | G148: 0 | H148: 034 | I148: 01017080340
A149: 01017080480 | B149: Meuble de salon/salle à manger, servant au rangement, en pierre, compris entre 1 700 kg et 1 800 kg exclus | C149: 29.17 | D149: 534 | E149: 35 | F149: tranches de poids suppression matériau inerte | G149: 0 | H149: 034 | I149: 01017080340
A150: 01017080490 | B150: Meuble de salon/salle à manger, servant au rangement, en pierre, compris entre 1 800 kg et 1 900 kg exclus | C150: 29.17 | D150: 534 | E150: 35 | F150: tranches de poids suppression matériau inerte | G150: 0 | H150: 034 | I150: 01017080340
A151: 01017080500 | B151: Meuble de salon/salle à manger, servant au rangement, en pierre, compris entre 1 900 kg et 2 000 kg exclus | C151: 29.17 | D151: 534 | E151: 35 | F151: tranches de poids suppression matériau inerte | G151: 0 | H151: 034 | I151: 01017080340
A152: 01017080510 | B152: Meuble de salon/salle à manger, servant au rangement, en pierre, supérieur à 2 000 kg | C152: 29.17 | D152: 534 | E152: 35 | F152: tranches de poids suppression matériau inerte | G152: 0 | H152: 034 | I152: 01017080340
A153: 01017081060 | B153: Meuble de salon/salle à manger, servant au rangement, en pierre, Inférieur strictement à 0,25 kg | C153: 0.03 | D153: 092 | E153: 0.04 | F153: suppression matériau inerte | G153: 0
A154: 01017081070 | B154: Meuble de salon/salle à manger, servant au rangement, en pierre, Compris entre 0,25 kg et 0,5 kg exclus | C154: 0.06 | D154: 096 | E154: 0.07 | F154: suppression matériau inerte | G154: 0
A155: 01017120350 | B155: Meuble de salon/salle à manger, servant au rangement, en autre matériau, compris entre 400 kg et 500 kg exclus | C155: 29.17 | D155: 534 | E155: 35 | F155: tranches de poids | H155: 034 | I155: 01017120340
A156: 01017120360 | B156: Meuble de salon/salle à manger, servant au rangement, en autre matériau, compris entre 500 kg et 600 kg exclus | C156: 29.17 | D156: 534 | E156: 35 | F156: tranches de poids | H156: 034 | I156: 01017120340
A157: 01017120370 | B157: Meuble de salon/salle à manger, servant au rangement, en autre matériau, compris entre 600 kg et 700 kg exclus | C157: 29.17 | D157: 534 | E157: 35 | F157: tranches de poids | H157: 034 | I157: 01017120340
A158: 01017120380 | B158: Meuble de salon/salle à manger, servant au rangement, en autre matériau, compris entre 700 kg et 800 kg exclus | C158: 29.17 | D158: 534 | E158: 35 | F158: tranches de poids | H158: 034 | I158: 01017120340
A159: 01017120390 | B159: Meuble de salon/salle à manger, servant au rangement, en autre matériau, compris entre 800 kg et 900 kg exclus | C159: 29.17 | D159: 534 | E159: 35 | F159: tranches de poids | H159: 034 | I159: 01017120340
A160: 01017120400 | B160: Meuble de salon/salle à manger, servant au rangement, en autre matériau, compris entre 900 kg et 1 000 kg exclus | C160: 29.17 | D160: 534 | E160: 35 | F160: tranches de poids | H160: 034 | I160: 01017120340
A161: 01017120410 | B161: Meuble de salon/salle à manger, servant au rangement, en autre matériau, compris entre 1 000 kg et 1 100 kg exclus | C161: 29.17 | D161: 534 | E161: 35 | F161: tranches de poids | H161: 034 | I161: 01017120340
A162: 01017120420 | B162: Meuble de salon/salle à manger, servant au rangement, en autre matériau, compris entre 1 100 kg et 1 200 kg exclus | C162: 29.17 | D162: 534 | E162: 35 | F162: tranches de poids | H162: 034 | I162: 01017120340
A163: 01017120430 | B163: Meuble de salon/salle à manger, servant au rangement, en autre matériau, compris entre 1 200 kg et 1 300 kg exclus | C163: 29.17 | D163: 534 | E163: 35 | F163: tranches de poids | H163: 034 | I163: 01017120340
A164: 01017120440 | B164: Meuble de salon/salle à manger, servant au rangement, en autre matériau, compris entre 1 300 kg et 1 400 kg exclus | C164: 29.17 | D164: 534 | E164: 35 | F164: tranches de poids | H164: 034 | I164: 01017120340
A165: 01017120450 | B165: Meuble de salon/salle à manger, servant au rangement, en autre matériau, compris entre 1 400 kg et 1 500 kg exclus | C165: 29.17 | D165: 534 | E165: 35 | F165: tranches de poids | H165: 034 | I165: 01017120340
A166: 01017120460 | B166: Meuble de salon/salle à manger, servant au rangement, en autre matériau, compris entre 1 500 kg et 1 600 kg exclus | C166: 29.17 | D166: 534 | E166: 35 | F166: tranches de poids | H166: 034 | I166: 01017120340
A167: 01017120470 | B167: Meuble de salon/salle à manger, servant au rangement, en autre matériau, compris entre 1 600 kg et 1 700 kg exclus | C167: 29.17 | D167: 534 | E167: 35 | F167: tranches de poids | H167: 034 | I167: 01017120340
A168: 01017120480 | B168: Meuble de salon/salle à manger, servant au rangement, en autre matériau, compris entre 1 700 kg et 1 800 kg exclus | C168: 29.17 | D168: 534 | E168: 35 | F168: tranches de poids | H168: 034 | I168: 01017120340
A169: 01017120490 | B169: Meuble de salon/salle à manger, servant au rangement, en autre matériau, compris entre 1 800 kg et 1 900 kg exclus | C169: 29.17 | D169: 534 | E169: 35 | F169: tranches de poids | H169: 034 | I169: 01017120340
A170: 01017120500 | B170: Meuble de salon/salle à manger, servant au rangement, en autre matériau, compris entre 1 900 kg et 2 000 kg exclus | C170: 29.17 | D170: 534 | E170: 35 | F170: tranches de poids | H170: 034 | I170: 01017120340
A171: 01017120510 | B171: Meuble de salon/salle à manger, servant au rangement, en autre matériau, supérieur à 2 000 kg | C171: 29.17 | D171: 534 | E171: 35 | F171: tranches de poids | H171: 034 | I171: 01017120340
A172: 01017150350 | B172: Meuble de salon/salle à manger, servant au rangement, en composite, compris entre 400 kg et 500 kg exclus | C172: 29.17 | D172: 534 | E172: 35 | F172: tranches de poids | H172: 034 | I172: 01017150340
A173: 01017150360 | B173: Meuble de salon/salle à manger, servant au rangement, en composite, compris entre 500 kg et 600 kg exclus | C173: 29.17 | D173: 534 | E173: 35 | F173: tranches de poids | H173: 034 | I173: 01017150340
A174: 01017150370 | B174: Meuble de salon/salle à manger, servant au rangement, en composite, compris entre 600 kg et 700 kg exclus | C174: 29.17 | D174: 534 | E174: 35 | F174: tranches de poids | H174: 034 | I174: 01017150340
A175: 01017150380 | B175: Meuble de salon/salle à manger, servant au rangement, en composite, compris entre 700 kg et 800 kg exclus | C175: 29.17 | D175: 534 | E175: 35 | F175: tranches de poids | H175: 034 | I175: 01017150340
A176: 01017150390 | B176: Meuble de salon/salle à manger, servant au rangement, en composite, compris entre 800 kg et 900 kg exclus | C176: 29.17 | D176: 534 | E176: 35 | F176: tranches de poids | H176: 034 | I176: 01017150340
A177: 01017150400 | B177: Meuble de salon/salle à manger, servant au rangement, en composite, compris entre 900 kg et 1 000 kg exclus | C177: 29.17 | D177: 534 | E177: 35 | F177: tranches de poids | H177: 034 | I177: 01017150340
A178: 01017150410 | B178: Meuble de salon/salle à manger, servant au rangement, en composite, compris entre 1 000 kg et 1 100 kg exclus | C178: 29.17 | D178: 534 | E178: 35 | F178: tranches de poids | H178: 034 | I178: 01017150340
